{"text_format":"1","workbook":"xlsx","n_sheets":12,"sheets":["Instructions","Data for Populations","CoC List","Identifying Populations","1a","1b","2","3","4","5","6","Subpopulations"],"not_rendered":{"charts":19,"images":0,"macros":1,"external_links":0,"defined_names":3,"comments":0,"pivot_tables":0},"unopened":[],"bounds":{"document_bytes":16777216,"sheet_cells":100000,"rows_first":2000,"rows_last":500,"rows_between":2000,"halvings":0,"cell_chars":16384,"cell_head_chars":4096},"cells_cut":0,"cells_raw":0,"read":"whole","date_system":"1900"}

{"sheet":"Instructions","index":0,"n_rows":25,"n_cols":3,"rows_kept":25,"cut":false,"hidden":false,"merged":[[24,1,24,18],[1,1,1,19],[4,1,4,18],[6,1,6,18],[11,1,11,18],[13,1,13,19],[15,2,15,18],[16,2,16,18],[17,2,17,18],[19,1,19,18],[23,1,23,18],[7,1,7,18]]}
[]
[null,"California System Performance Measures (CA SPMs) & Goals Worksheet\nPurpose and instructions"]
[null,"About this resource"]
[]
[null,"This worksheet is intended to help communities use CA SPM data in their local planning processes, including for their HHAP-5 proposals. While the HHAP-5 application does not require setting numerical outcome goals, this resource is intended to offer communities a way to look at historical data to identify actions they may take to improve system-level outcomes. \n\nThe tool also assists communities in identifying racial and ethnic disparities in their homelessness response systems, and includes publicly-available non-CA SPM data about how subpopulations (grouped based on shared demographic characteristics and experiences) are experiencing homelessness in their communities. "]
[]
[null,"This worksheet DOES generate possible forward-looking outcomes, and DOES NOT predict outcomes."]
[null,"Please note, if you see a security warning that reads \"Macros have been disabled\" when you open this workbook, you must click \"Enable Content\" in order to use the tool."]
[]
[null,"How to use this resource"]
[]
[null,"In preparation for the HHAP-5 application process, Cal ICH distributed a community-specific data file titled \"CA SPM Data Report.\" Please use the data from CY 2020, CY 2021, and CY 2022 in the \"Topline\" tab of that file to input the baseline data in this workbook, and use the Measure 7 data from the \"Detail\" tabs for 2020, 2021, and 2022 to inform your analysis of racial and ethnic disparities. You may find other data from the \"Detail\" tabs helpful for understanding other factors that may be impacting your CA SPMs. \n\nYou may also use the \"Identifying Populations\" tab in this workbook to compare rates of homelessness, access to services, and exits to permanent housing among different subpopulations in your community. We recommend that you review the charts in this tab before analyzing the measures in each measure-specific tab, so that you can identify one or more subpopulations to explore for each measure. \nOnce you select a year (row 81) and your CoC (row 82) in the \"Identifying Populations\" tab, the charts will populate with data from the American Community Survey (ACS) for the \"Total # of People in CoC\" and the Point-in-Time (PIT) count for \"People experiencing homelessness at a point in time.\" You will need to provide your CoC's own data from CA SPM 7.1a for \"People accessing services who are experiencing homelessness\" and from CA SPM 7.3 for \"People exiting homelessness into permanent housing.\""]
[]
[null,"On each of the blue measure-specific tabs in this workbook, there are three key sections:"]
[]
[null,"1)","Baseline data: You are first prompted to enter your community's data from the Topline tab of your \"CA SPM Data Report\" file.  Only enter data in the cells highlighted blue."]
[null,"2)","Meaning making: Past performance is visualized with a trend line and a future projection based on the current trajectory. Discussion questions are provided for each measure to facilitate interpretation of these trends and discussion of factors that are likely to influence future performance."]
[null,"3)","Target setting: After you understand the past data and factors likely to influence outcomes, you are prompted to enter a potential target for calendar year 2026. This is visualized as a new trend line, and is used to calculate year by year changes that would be needed to reach the target. Setting numerical targets is not a requirement of the HHAP-5 application, but may be helpful in identifying key actions to improve system-level outcomes, and in tracking progress towards improving the CA SPMs. You can revise your target as needed and see the impact of different scenarios. Discussion questions are provided to help facilitate this process."]
[]
[null,"This resource provides a complementary exercise on each tab to help you hone-in on a potential equity-related outcome target for populations disproportionately affected by homelessness. Using this portion of the resource requires familiarity with Measure 7 in the Detail tabs of your CA SPM Data Report, which shows data about subpopulations."]
[]
[null,"Who to contact if you need support using this resource"]
[]
[null,"If you would like support using this tool or have questions about the CA SPMs, please contact Cal ICH at  "]
[null,"HDIS@bcsh.ca.gov."]

{"sheet":"Data for Populations","index":1,"n_rows":1971,"n_cols":6,"rows_kept":1971,"cut":false,"hidden":true,"merged":[]}
[]
[null,null,null,"Copy this column into Column D of the \"Identifying Populations\" tab, beginning at row 84","If you would like to use 2022 data, copy this column into Column E of the \"Identifying Populations\" tab, beginning at row 84"]
["Select Your CoC","PIT Year","Population","Total # of People in CoC","# of People Experiencing Homelessness","# of People Experiencing Unsheltered Homelessness"]
["CA-500",2022,"All persons ",1916831,10028,7708]
["CA-500",2022,"Persons in HHs without children ",null,9074,7521]
["CA-500",2022,"Persons in HHs with at least 1 adult and 1 child ",null,898,141]
["CA-500",2022,"Persons in HHs with only children ",null,56,46]
["CA-500",2022,"Woman/Girl",null,3722,2812]
["CA-500",2022,"Man/Boy",null,6099,4710]
["CA-500",2022,"People who are Transgender ",null,106,97]
["CA-500",2022,"People with No Single Gender",null,89,80]
["CA-500",2022,"People who are Questioning",null,12,9]
["CA-500",2022,"People who are Hispanic/Latino ",476352,4724,3570]
["CA-500",2022,"People who are Non-Hispanic/ Non-Latino ",1440479,5304,4138]
["CA-500",2022,"People who are American Indian or Alaska Native ",12641,727,574]
["CA-500",2022,"People who are Asian ",746381,583,432]
["CA-500",2022,"People who are Black or African American ",45838,1426,1091]
["CA-500",2022,"People who are Native Hawaiian or Other Pacific Islander ",6993,249,195]
["CA-500",2022,"People who are White ",693455,6008,4645]
["CA-500",2022,"People who are Multiple Races ",218953,1035,771]
["CA-500",2022,"# of Adults who are Experiencing Significant Mental Illness"]
["CA-500",2022,"# of Adults who are Experiencing Substance Abuse Disorders"]
["CA-500",2022,"# of Adults who are Veterans",null,660,520]
["CA-500",2022,"# of Adults with HIV/AIDS"]
["CA-500",2022,"# of Adults who are Currently Fleeing Domestic Violence"]
["CA-500",2022,"# of Unaccompanied Youth (18- 24 years old)",null,1099,1000]
["CA-500",2022,"# of Parenting Youth (18-24 years old)",null,47,7]
["CA-501",2022,"All persons ",851036,7754,4397]
["CA-501",2022,"Persons in HHs without children ",null,7063,4239]
["CA-501",2022,"Persons in HHs with at least 1 adult and 1 child ",null,605,76]
["CA-501",2022,"Persons in HHs with only children ",null,86,82]
["CA-501",2022,"Woman/Girl",null,2623,1481]
["CA-501",2022,"Man/Boy",null,4802,2651]
["CA-501",2022,"People who are Transgender ",null,224,181]
["CA-501",2022,"People with No Single Gender",null,84,63]
["CA-501",2022,"People who are Questioning",null,21,21]
["CA-501",2022,"People who are Hispanic/Latino ",131517,2357,1517]
["CA-501",2022,"People who are Non-Hispanic/ Non-Latino ",719519,5397,2880]
["CA-501",2022,"People who are American Indian or Alaska Native ",4725,336,297]
["CA-501",2022,"People who are Asian ",296122,427,305]
["CA-501",2022,"People who are Black or African American ",44058,2957,1472]
["CA-501",2022,"People who are Native Hawaiian or Other Pacific Islander ",3312,227,175]
["CA-501",2022,"People who are White ",356474,3312,1871]
["CA-501",2022,"People who are Multiple Races ",80858,495,277]
["CA-501",2022,"# of Adults who are Experiencing Significant Mental Illness"]
["CA-501",2022,"# of Adults who are Experiencing Substance Abuse Disorders"]
["CA-501",2022,"# of Adults who are Veterans",null,605,404]
["CA-501",2022,"# of Adults with HIV/AIDS"]
["CA-501",2022,"# of Adults who are Currently Fleeing Domestic Violence"]
["CA-501",2022,"# of Unaccompanied Youth (18- 24 years old)",null,987,820]
["CA-501",2022,"# of Parenting Youth (18-24 years old)",null,21,2]
["CA-502",2022,"All persons ",1663823,9747,7135]
["CA-502",2022,"Persons in HHs without children ",null,8806,6725]
["CA-502",2022,"Persons in HHs with at least 1 adult and 1 child ",null,844,322]
["CA-502",2022,"Persons in HHs with only children ",null,97,88]
["CA-502",2022,"Woman/Girl",null,3576,2581]
["CA-502",2022,"Man/Boy",null,6036,4445]
["CA-502",2022,"People who are Transgender ",null,49,34]
["CA-502",2022,"People with No Single Gender",null,52,41]
["CA-502",2022,"People who are Questioning",null,34,34]
["CA-502",2022,"People who are Hispanic/Latino ",369603,2395,1907]
["CA-502",2022,"People who are Non-Hispanic/ Non-Latino ",1294220,7352,5228]
["CA-502",2022,"People who are American Indian or Alaska Native ",14165,418,314]
["CA-502",2022,"People who are Asian ",534659,450,367]
["CA-502",2022,"People who are Black or African American ",169497,4183,2801]
["CA-502",2022,"People who are Native Hawaiian or Other Pacific Islander ",12832,262,222]
["CA-502",2022,"People who are White ",565911,3765,2974]
["CA-502",2022,"People who are Multiple Races ",165327,669,457]
["CA-502",2022,"# of Adults who are Experiencing Significant Mental Illness"]
["CA-502",2022,"# of Adults who are Experiencing Substance Abuse Disorders"]
["CA-502",2022,"# of Adults who are Veterans",null,550,430]
["CA-502",2022,"# of Adults with HIV/AIDS"]
["CA-502",2022,"# of Adults who are Currently Fleeing Domestic Violence"]
["CA-502",2022,"# of Unaccompanied Youth (18- 24 years old)",null,735,574]
["CA-502",2022,"# of Parenting Youth (18-24 years old)",null,48,12]
["CA-503",2022,"All persons ",1579211,9278,6664]
["CA-503",2022,"Persons in HHs without children ",null,7868,6174]
["CA-503",2022,"Persons in HHs with at least 1 adult and 1 child ",null,1377,472]
["CA-503",2022,"Persons in HHs with only children ",null,33,18]
["CA-503",2022,"Woman/Girl",null,3024,1806]
["CA-503",2022,"Man/Boy",null,6050,4691]
["CA-503",2022,"People who are Transgender ",null,116,95]
["CA-503",2022,"People with No Single Gender",null,88,72]
["CA-503",2022,"People who are Questioning",null,0,0]
["CA-503",2022,"People who are Hispanic/Latino ",378350,1847,1320]
["CA-503",2022,"People who are Non-Hispanic/ Non-Latino ",1200861,7431,5344]
["CA-503",2022,"People who are American Indian or Alaska Native ",11842,678,614]
["CA-503",2022,"People who are Asian ",271712,225,167]
["CA-503",2022,"People who are Black or African American ",151960,2900,1870]
["CA-503",2022,"People who are Native Hawaiian or Other Pacific Islander ",18052,163,117]
["CA-503",2022,"People who are White ",785699,4311,3101]
["CA-503",2022,"People who are Multiple Races ",188913,1001,795]
["CA-503",2022,"# of Adults who are Experiencing Significant Mental Illness"]
["CA-503",2022,"# of Adults who are Experiencing Substance Abuse Disorders"]
["CA-503",2022,"# of Adults who are Veterans",null,625,415]
["CA-503",2022,"# of Adults with HIV/AIDS"]
["CA-503",2022,"# of Adults who are Currently Fleeing Domestic Violence"]
["CA-503",2022,"# of Unaccompanied Youth (18- 24 years old)",null,520,322]
["CA-503",2022,"# of Parenting Youth (18-24 years old)",null,62,26]
["CA-504",2022,"All persons ",488436,2893,2088]
["CA-504",2022,"Persons in HHs without children ",null,2715,2062]
["CA-504",2022,"Persons in HHs with at least 1 adult and 1 child ",null,155,5]
["CA-504",2022,"Persons in HHs with only children ",null,23,21]
["CA-504",2022,"Woman/Girl",null,1005,685]
["CA-504",2022,"Man/Boy",null,1814,1331]
["CA-504",2022,"People who are Transgender ",null,39,39]
["CA-504",2022,"People with No Single Gender",null,24,22]
["CA-504",2022,"People who are Questioning",null,11,11]
["CA-504",2022,"People who are Hispanic/Latino ",136614,716,503]
["CA-504",2022,"People who are Non-Hispanic/ Non-Latino ",351822,2177,1585]
["CA-504",2022,"People who are American Indian or Alaska Native ",5200,273,185]
["CA-504",2022,"People who are Asian ",21833,39,30]
["CA-504",2022,"People who are Black or African American ",7589,231,172]
["CA-504",2022,"People who are Native Hawaiian or Other Pacific Islander ",1605,45,37]
["CA-504",2022,"People who are White ",330543,1934,1356]
["CA-504",2022,"People who are Multiple Races ",55373,371,308]
["CA-504",2022,"# of Adults who are Experiencing Significant Mental Illness"]
["CA-504",2022,"# of Adults who are Experiencing Substance Abuse Disorders"]
["CA-504",2022,"# of Adults who are Veterans",null,191,146]
["CA-504",2022,"# of Adults with HIV/AIDS"]
["CA-504",2022,"# of Adults who are Currently Fleeing Domestic Violence"]
["CA-504",2022,"# of Unaccompanied Youth (18- 24 years old)",null,498,480]
["CA-504",2022,"# of Parenting Youth (18-24 years old)",null,7,0]
["CA-505",2022,"All persons ",1162648,3093,2329]
["CA-505",2022,"Persons in HHs without children ",null,2877,2263]
["CA-505",2022,"Persons in HHs with at least 1 adult and 1 child ",null,213,64]
["CA-505",2022,"Persons in HHs with only children ",null,3,2]
["CA-505",2022,"Woman/Girl",null,1268,880]
["CA-505",2022,"Man/Boy",null,1693,1324]
["CA-505",2022,"People who are Transgender ",null,5,0]
["CA-505",2022,"People with No Single Gender",null,26,24]
["CA-505",2022,"People who are Questioning",null,101,101]
["CA-505",2022,"People who are Hispanic/Latino ",306895,740,558]
["CA-505",2022,"People who are Non-Hispanic/ Non-Latino ",855753,2353,1771]
["CA-505",2022,"People who are American Indian or Alaska Native ",8354,289,208]
["CA-505",2022,"People who are Asian ",212568,29,16]
["CA-505",2022,"People who are Black or African American ",101345,986,713]
["CA-505",2022,"People who are Native Hawaiian or Other Pacific Islander ",5802,79,64]
["CA-505",2022,"People who are White ",542206,1588,1248]
["CA-505",2022,"People who are Multiple Races ",143973,122,80]
["CA-505",2022,"# of Adults who are Experiencing Significant Mental Illness"]
["CA-505",2022,"# of Adults who are Experiencing Substance Abuse Disorders"]
["CA-505",2022,"# of Adults who are Veterans",null,130,95]
["CA-505",2022,"# of Adults with HIV/AIDS"]
["CA-505",2022,"# of Adults who are Currently Fleeing Domestic Violence"]
["CA-505",2022,"# of Unaccompanied Youth (18- 24 years old)",null,206,172]
["CA-505",2022,"# of Parenting Youth (18-24 years old)",null,2,1]
["CA-506",2022,"All persons ",502362,2404,1625]
["CA-506",2022,"Persons in HHs without children ",null,1993,1611]
["CA-506",2022,"Persons in HHs with at least 1 adult and 1 child ",null,408,11]
["CA-506",2022,"Persons in HHs with only children ",null,3,3]
["CA-506",2022,"Woman/Girl",null,656,308]
["CA-506",2022,"Man/Boy",null,1717,1287]
["CA-506",2022,"People who are Transgender ",null,12,12]
["CA-506",2022,"People with No Single Gender",null,19,18]
["CA-506",2022,"People who are Questioning",null,0,0]
["CA-506",2022,"People who are Hispanic/Latino ",301722,1348,877]
["CA-506",2022,"People who are Non-Hispanic/ Non-Latino ",200640,1056,748]
["CA-506",2022,"People who are American Indian or Alaska Native ",4657,308,276]
["CA-506",2022,"People who are Asian ",28005,111,95]
["CA-506",2022,"People who are Black or African American ",10395,310,236]
["CA-506",2022,"People who are Native Hawaiian or Other Pacific Islander ",2263,65,45]
["CA-506",2022,"People who are White ",208801,1417,825]
["CA-506",2022,"People who are Multiple Races ",65297,193,148]
["CA-506",2022,"# of Adults who are Experiencing Significant Mental Illness"]
["CA-506",2022,"# of Adults who are Experiencing Substance Abuse Disorders"]
["CA-506",2022,"# of Adults who are Veterans",null,160,82]
["CA-506",2022,"# of Adults with HIV/AIDS"]
["CA-506",2022,"# of Adults who are Currently Fleeing Domestic Violence"]
["CA-506",2022,"# of Unaccompanied Youth (18- 24 years old)",null,211,199]
["CA-506",2022,"# of Parenting Youth (18-24 years old)",null,10,0]
["CA-507",2022,"All persons ",260485,1121,830]
["CA-507",2022,"Persons in HHs without children ",null,895,737]
["CA-507",2022,"Persons in HHs with at least 1 adult and 1 child ",null,224,91]
["CA-507",2022,"Persons in HHs with only children ",null,2,2]
["CA-507",2022,"Woman/Girl",null,438,298]
["CA-507",2022,"Man/Boy",null,663,513]
["CA-507",2022,"People who are Transgender ",null,8,7]
["CA-507",2022,"People with No Single Gender",null,12,12]
["CA-507",2022,"People who are Questioning",null,0,0]
["CA-507",2022,"People who are Hispanic/Latino ",43143,260,164]
["CA-507",2022,"People who are Non-Hispanic/ Non-Latino ",217342,861,666]
["CA-507",2022,"People who are American Indian or Alaska Native ",1131,47,39]
["CA-507",2022,"People who are Asian ",16403,25,25]
["CA-507",2022,"People who are Black or African American ",6224,245,175]
["CA-507",2022,"People who are Native Hawaiian or Other Pacific Islander ",430,19,19]
["CA-507",2022,"People who are White ",192209,729,525]
["CA-507",2022,"People who are Multiple Races ",23361,56,47]
["CA-507",2022,"# of Adults who are Experiencing Significant Mental Illness"]
["CA-507",2022,"# of Adults who are Experiencing Substance Abuse Disorders"]
["CA-507",2022,"# of Adults who are Veterans",null,65,51]
["CA-507",2022,"# of Adults with HIV/AIDS"]
["CA-507",2022,"# of Adults who are Currently Fleeing Domestic Violence"]
["CA-507",2022,"# of Unaccompanied Youth (18- 24 years old)",null,124,118]
["CA-507",2022,"# of Parenting Youth (18-24 years old)",null,10,6]
["CA-508",2022,"All persons ",268571,2299,1774]
["CA-508",2022,"Persons in HHs without children ",null,2141,1759]
["CA-508",2022,"Persons in HHs with at least 1 adult and 1 child ",null,158,15]
["CA-508",2022,"Persons in HHs with only children ",null,0,0]
["CA-508",2022,"Woman/Girl",null,741,419]
["CA-508",2022,"Man/Boy",null,1526,1325]
["CA-508",2022,"People who are Transgender ",null,11,10]
["CA-508",2022,"People with No Single Gender",null,21,20]
["CA-508",2022,"People who are Questioning",null,0,0]
["CA-508",2022,"People who are Hispanic/Latino ",91923,897,698]
["CA-508",2022,"People who are Non-Hispanic/ Non-Latino ",176648,1402,1076]
["CA-508",2022,"People who are American Indian or Alaska Native ",2541,79,53]
["CA-508",2022,"People who are Asian ",13163,23,20]
["CA-508",2022,"People who are Black or African American ",2839,270,233]
["CA-508",2022,"People who are Native Hawaiian or Other Pacific Islander ",595,11,7]
["CA-508",2022,"People who are White ",176572,1700,1274]
["CA-508",2022,"People who are Multiple Races ",31913,216,187]
["CA-508",2022,"# of Adults who are Experiencing Significant Mental Illness"]
["CA-508",2022,"# of Adults who are Experiencing Substance Abuse Disorders"]
["CA-508",2022,"# of Adults who are Veterans",null,332,310]
["CA-508",2022,"# of Adults with HIV/AIDS"]
["CA-508",2022,"# of Adults who are Currently Fleeing Domestic Violence"]
["CA-508",2022,"# of Unaccompanied Youth (18- 24 years old)",null,222,216]
["CA-508",2022,"# of Parenting Youth (18-24 years old)",null,6,0]
["CA-509",2022,"All persons ",91145,830,560]
["CA-509",2022,"Persons in HHs without children ",null,709,545]
["CA-509",2022,"Persons in HHs with at least 1 adult and 1 child ",null,115,9]
["CA-509",2022,"Persons in HHs with only children ",null,6,6]
["CA-509",2022,"Woman/Girl",null,265,133]
["CA-509",2022,"Man/Boy",null,525,391]
["CA-509",2022,"People who are Transgender ",null,16,14]
["CA-509",2022,"People with No Single Gender",null,21,20]
["CA-509",2022,"People who are Questioning",null,3,2]
["CA-509",2022,"People who are Hispanic/Latino ",24414,127,67]
["CA-509",2022,"People who are Non-Hispanic/ Non-Latino ",66731,703,493]
["CA-509",2022,"People who are American Indian or Alaska Native ",3500,73,36]
["CA-509",2022,"People who are Asian ",1961,7,2]
["CA-509",2022,"People who are Black or African American ",658,19,6]
["CA-509",2022,"People who are Native Hawaiian or Other Pacific Islander ",86,7,6]
["CA-509",2022,"People who are White ",67114,697,501]
["CA-509",2022,"People who are Multiple Races ",11226,27,9]
["CA-509",2022,"# of Adults who are Experiencing Significant Mental Illness"]
["CA-509",2022,"# of Adults who are Experiencing Substance Abuse Disorders"]
["CA-509",2022,"# of Adults who are Veterans",null,19,6]
["CA-509",2022,"# of Adults with HIV/AIDS"]
["CA-509",2022,"# of Adults who are Currently Fleeing Domestic Violence"]
["CA-509",2022,"# of Unaccompanied Youth (18- 24 years old)",null,39,26]
["CA-509",2022,"# of Parenting Youth (18-24 years old)",null,1,0]
["CA-510",2022,"All persons ",552063,1857,946]
["CA-510",2022,"Persons in HHs without children ",null,1549,938]
["CA-510",2022,"Persons in HHs with at least 1 adult and 1 child ",null,307,7]
["CA-510",2022,"Persons in HHs with only children ",null,1,1]
["CA-510",2022,"Woman/Girl",null,638,274]
["CA-510",2022,"Man/Boy",null,1207,668]
["CA-510",2022,"People who are Transgender ",null,0,0]
["CA-510",2022,"People with No Single Gender",null,9,3]
["CA-510",2022,"People who are Questioning",null,3,1]
["CA-510",2022,"People who are Hispanic/Latino ",268427,631,318]
["CA-510",2022,"People who are Non-Hispanic/ Non-Latino ",283636,1226,628]
["CA-510",2022,"People who are American Indian or Alaska Native ",6802,114,73]
["CA-510",2022,"People who are Asian ",33212,36,15]
["CA-510",2022,"People who are Black or African American ",15731,200,86]
["CA-510",2022,"People who are Native Hawaiian or Other Pacific Islander ",3326,26,16]
["CA-510",2022,"People who are White ",316065,1374,701]
["CA-510",2022,"People who are Multiple Races ",106332,107,55]
["CA-510",2022,"# of Adults who are Experiencing Significant Mental Illness"]
["CA-510",2022,"# of Adults who are Experiencing Substance Abuse Disorders"]
["CA-510",2022,"# of Adults who are Veterans",null,108,41]
["CA-510",2022,"# of Adults with HIV/AIDS"]
["CA-510",2022,"# of Adults who are Currently Fleeing Domestic Violence"]
["CA-510",2022,"# of Unaccompanied Youth (18- 24 years old)",null,68,36]
["CA-510",2022,"# of Parenting Youth (18-24 years old)",null,15,0]
["CA-511",2022,"All persons ",779445,2319,1355]
["CA-511",2022,"Persons in HHs without children ",null,1829,1354]
["CA-511",2022,"Persons in HHs with at least 1 adult and 1 child ",null,487,0]
["CA-511",2022,"Persons in HHs with only children ",null,3,1]
["CA-511",2022,"Woman/Girl",null,891,459]
["CA-511",2022,"Man/Boy",null,1421,891]
["CA-511",2022,"People who are Transgender ",null,2,2]
["CA-511",2022,"People with No Single Gender",null,2,1]
["CA-511",2022,"People who are Questioning",null,3,2]
["CA-511",2022,"People who are Hispanic/Latino ",331382,726,411]
["CA-511",2022,"People who are Non-Hispanic/ Non-Latino ",448063,1593,944]
["CA-511",2022,"People who are American Indian or Alaska Native ",7932,49,23]
["CA-511",2022,"People who are Asian ",133870,66,35]
["CA-511",2022,"People who are Black or African American ",54792,519,271]
["CA-511",2022,"People who are Native Hawaiian or Other Pacific Islander ",4778,26,7]
["CA-511",2022,"People who are White ",328081,1463,930]
["CA-511",2022,"People who are Multiple Races ",143390,196,89]
["CA-511",2022,"# of Adults who are Experiencing Significant Mental Illness"]
["CA-511",2022,"# of Adults who are Experiencing Substance Abuse Disorders"]
["CA-511",2022,"# of Adults who are Veterans",null,127,90]
["CA-511",2022,"# of Adults with HIV/AIDS"]
["CA-511",2022,"# of Adults who are Currently Fleeing Domestic Violence"]
["CA-511",2022,"# of Unaccompanied Youth (18- 24 years old)",null,69,32]
["CA-511",2022,"# of Parenting Youth (18-24 years old)",null,27,0]
["CA-512",2022,"All persons ",754250,1808,1092]
["CA-512",2022,"Persons in HHs without children ",null,1421,1022]
["CA-512",2022,"Persons in HHs with at least 1 adult and 1 child ",null,386,70]
["CA-512",2022,"Persons in HHs with only children ",null,1,0]
["CA-512",2022,"Woman/Girl",null,578,271]
["CA-512",2022,"Man/Boy",null,1211,805]
["CA-512",2022,"People who are Transgender ",null,9,8]
["CA-512",2022,"People with No Single Gender",null,10,8]
["CA-512",2022,"People who are Questioning",null,0,0]
["CA-512",2022,"People who are Hispanic/Latino ",180393,849,574]
["CA-512",2022,"People who are Non-Hispanic/ Non-Latino ",573857,959,518]
["CA-512",2022,"People who are American Indian or Alaska Native ",6446,94,67]
["CA-512",2022,"People who are Asian ",230174,105,72]
["CA-512",2022,"People who are Black or African American ",17238,348,223]
["CA-512",2022,"People who are Native Hawaiian or Other Pacific Islander ",9180,63,0]
["CA-512",2022,"People who are White ",327625,1099,675]
["CA-512",2022,"People who are Multiple Races ",81220,99,55]
["CA-512",2022,"# of Adults who are Experiencing Significant Mental Illness"]
["CA-512",2022,"# of Adults who are Experiencing Substance Abuse Disorders"]
["CA-512",2022,"# of Adults who are Veterans",null,85,55]
["CA-512",2022,"# of Adults with HIV/AIDS"]
["CA-512",2022,"# of Adults who are Currently Fleeing Domestic Violence"]
["CA-512",2022,"# of Unaccompanied Youth (18- 24 years old)",null,48,34]
["CA-512",2022,"# of Parenting Youth (18-24 years old)",null,3,0]
["CA-513",2022,"All persons ",625961,1235,823]
["CA-513",2022,"Persons in HHs without children ",null,1089,792]
["CA-513",2022,"Persons in HHs with at least 1 adult and 1 child ",null,146,31]
["CA-513",2022,"Persons in HHs with only children ",null,0,0]
["CA-513",2022,"Woman/Girl",null,461,264]
["CA-513",2022,"Man/Boy",null,769,555]
["CA-513",2022,"People who are Transgender ",null,1,0]
["CA-513",2022,"People with No Single Gender",null,1,1]
["CA-513",2022,"People who are Questioning",null,3,3]
["CA-513",2022,"People who are Hispanic/Latino ",398576,590,395]
["CA-513",2022,"People who are Non-Hispanic/ Non-Latino ",227385,645,428]
["CA-513",2022,"People who are American Indian or Alaska Native ",9088,78,53]
["CA-513",2022,"People who are Asian ",22898,13,10]
["CA-513",2022,"People who are Black or African American ",17543,119,59]
["CA-513",2022,"People who are Native Hawaiian or Other Pacific Islander ",1093,23,12]
["CA-513",2022,"People who are White ",319491,960,657]
["CA-513",2022,"People who are Multiple Races ",106718,42,32]
["CA-513",2022,"# of Adults who are Experiencing Significant Mental Illness"]
["CA-513",2022,"# of Adults who are Experiencing Substance Abuse Disorders"]
["CA-513",2022,"# of Adults who are Veterans",null,67,38]
["CA-513",2022,"# of Adults with HIV/AIDS"]
["CA-513",2022,"# of Adults who are Currently Fleeing Domestic Violence"]
["CA-513",2022,"# of Unaccompanied Youth (18- 24 years old)",null,53,24]
["CA-513",2022,"# of Parenting Youth (18-24 years old)",null,4,0]
["CA-514",2022,"All persons ",1165523,4216,2338]
["CA-514",2022,"Persons in HHs without children ",null,3498,2328]
["CA-514",2022,"Persons in HHs with at least 1 adult and 1 child ",null,710,2]
["CA-514",2022,"Persons in HHs with only children ",null,8,8]
["CA-514",2022,"Woman/Girl",null,1530,665]
["CA-514",2022,"Man/Boy",null,2654,1656]
["CA-514",2022,"People who are Transgender ",null,16,5]
["CA-514",2022,"People with No Single Gender",null,13,10]
["CA-514",2022,"People who are Questioning",null,3,2]
["CA-514",2022,"People who are Hispanic/Latino ",640629,2053,1107]
["CA-514",2022,"People who are Non-Hispanic/ Non-Latino ",524894,2163,1231]
["CA-514",2022,"People who are American Indian or Alaska Native ",15619,305,233]
["CA-514",2022,"People who are Asian ",111757,130,39]
["CA-514",2022,"People who are Black or African American ",49126,605,273]
["CA-514",2022,"People who are Native Hawaiian or Other Pacific Islander ",1871,35,23]
["CA-514",2022,"People who are White ",561046,2544,1377]
["CA-514",2022,"People who are Multiple Races ",197270,597,393]
["CA-514",2022,"# of Adults who are Experiencing Significant Mental Illness"]
["CA-514",2022,"# of Adults who are Experiencing Substance Abuse Disorders"]
["CA-514",2022,"# of Adults who are Veterans",null,205,99]
["CA-514",2022,"# of Adults with HIV/AIDS"]
["CA-514",2022,"# of Adults who are Currently Fleeing Domestic Violence"]
["CA-514",2022,"# of Unaccompanied Youth (18- 24 years old)",null,97,58]
["CA-514",2022,"# of Parenting Youth (18-24 years old)",null,19,0]
["CA-515",2022,"All persons ",406608,750,408]
["CA-515",2022,"Persons in HHs without children ",null,652,405]
["CA-515",2022,"Persons in HHs with at least 1 adult and 1 child ",null,98,3]
["CA-515",2022,"Persons in HHs with only children ",null,0,0]
["CA-515",2022,"Woman/Girl",null,279,111]
["CA-515",2022,"Man/Boy",null,467,295]
["CA-515",2022,"People who are Transgender ",null,1,0]
["CA-515",2022,"People with No Single Gender",null,3,2]
["CA-515",2022,"People who are Questioning",null,0,0]
["CA-515",2022,"People who are Hispanic/Latino ",60469,110,45]
["CA-515",2022,"People who are Non-Hispanic/ Non-Latino ",346139,640,363]
["CA-515",2022,"People who are American Indian or Alaska Native ",1838,19,12]
["CA-515",2022,"People who are Asian ",35465,14,6]
["CA-515",2022,"People who are Black or African American ",6579,61,18]
["CA-515",2022,"People who are Native Hawaiian or Other Pacific Islander ",626,6,4]
["CA-515",2022,"People who are White ",306615,615,347]
["CA-515",2022,"People who are Multiple Races ",41096,35,21]
["CA-515",2022,"# of Adults who are Experiencing Significant Mental Illness"]
["CA-515",2022,"# of Adults who are Experiencing Substance Abuse Disorders"]
["CA-515",2022,"# of Adults who are Veterans",null,42,25]
["CA-515",2022,"# of Adults with HIV/AIDS"]
["CA-515",2022,"# of Adults who are Currently Fleeing Domestic Violence"]
["CA-515",2022,"# of Unaccompanied Youth (18- 24 years old)",null,41,22]
["CA-515",2022,"# of Parenting Youth (18-24 years old)",null,1,0]
["CA-516",2022,"All persons ",316453,1837,1096]
["CA-516",2022,"Persons in HHs without children ",null,1447,1030]
["CA-516",2022,"Persons in HHs with at least 1 adult and 1 child ",null,389,65]
["CA-516",2022,"Persons in HHs with only children ",null,1,1]
["CA-516",2022,"Woman/Girl",null,705,398]
["CA-516",2022,"Man/Boy",null,1123,689]
["CA-516",2022,"People who are Transgender ",null,1,1]
["CA-516",2022,"People with No Single Gender",null,1,1]
["CA-516",2022,"People who are Questioning",null,7,7]
["CA-516",2022,"People who are Hispanic/Latino ",41685,172,97]
["CA-516",2022,"People who are Non-Hispanic/ Non-Latino ",274768,1665,999]
["CA-516",2022,"People who are American Indian or Alaska Native ",8006,208,135]
["CA-516",2022,"People who are Asian ",7970,10,8]
["CA-516",2022,"People who are Black or African American ",6419,51,30]
["CA-516",2022,"People who are Native Hawaiian or Other Pacific Islander ",877,13,6]
["CA-516",2022,"People who are White ",252728,1434,867]
["CA-516",2022,"People who are Multiple Races ",30861,121,50]
["CA-516",2022,"# of Adults who are Experiencing Significant Mental Illness"]
["CA-516",2022,"# of Adults who are Experiencing Substance Abuse Disorders"]
["CA-516",2022,"# of Adults who are Veterans",null,130,63]
["CA-516",2022,"# of Adults with HIV/AIDS"]
["CA-516",2022,"# of Adults who are Currently Fleeing Domestic Violence"]
["CA-516",2022,"# of Unaccompanied Youth (18- 24 years old)",null,75,58]
["CA-516",2022,"# of Parenting Youth (18-24 years old)",null,8,0]
["CA-517",2022,"All persons ",137384,495,366]
["CA-517",2022,"Persons in HHs without children ",null,467,362]
["CA-517",2022,"Persons in HHs with at least 1 adult and 1 child ",null,28,4]
["CA-517",2022,"Persons in HHs with only children ",null,0,0]
["CA-517",2022,"Woman/Girl",null,170,120]
["CA-517",2022,"Man/Boy",null,321,243]
["CA-517",2022,"People who are Transgender ",null,1,0]
["CA-517",2022,"People with No Single Gender",null,3,3]
["CA-517",2022,"People who are Questioning",null,0,0]
["CA-517",2022,"People who are Hispanic/Latino ",48182,129,101]
["CA-517",2022,"People who are Non-Hispanic/ Non-Latino ",89202,366,265]
["CA-517",2022,"People who are American Indian or Alaska Native ",1386,26,15]
["CA-517",2022,"People who are Asian ",10960,1,0]
["CA-517",2022,"People who are Black or African American ",2520,33,20]
["CA-517",2022,"People who are Native Hawaiian or Other Pacific Islander ",422,4,3]
["CA-517",2022,"People who are White ",87333,415,319]
["CA-517",2022,"People who are Multiple Races ",16038,16,9]
["CA-517",2022,"# of Adults who are Experiencing Significant Mental Illness"]
["CA-517",2022,"# of Adults who are Experiencing Substance Abuse Disorders"]
["CA-517",2022,"# of Adults who are Veterans",null,20,11]
["CA-517",2022,"# of Adults with HIV/AIDS"]
["CA-517",2022,"# of Adults who are Currently Fleeing Domestic Violence"]
["CA-517",2022,"# of Unaccompanied Youth (18- 24 years old)",null,29,19]
["CA-517",2022,"# of Parenting Youth (18-24 years old)",null,0,0]
["CA-518",2022,"All persons ",450995,1179,920]
["CA-518",2022,"Persons in HHs without children ",null,1081,881]
["CA-518",2022,"Persons in HHs with at least 1 adult and 1 child ",null,91,32]
["CA-518",2022,"Persons in HHs with only children ",null,7,7]
["CA-518",2022,"Woman/Girl",null,387,295]
["CA-518",2022,"Man/Boy",null,771,605]
["CA-518",2022,"People who are Transgender ",null,1,0]
["CA-518",2022,"People with No Single Gender",null,10,10]
["CA-518",2022,"People who are Questioning",null,10,10]
["CA-518",2022,"People who are Hispanic/Latino ",126198,219,170]
["CA-518",2022,"People who are Non-Hispanic/ Non-Latino ",324797,960,750]
["CA-518",2022,"People who are American Indian or Alaska Native ",3273,20,13]
["CA-518",2022,"People who are Asian ",70814,13,11]
["CA-518",2022,"People who are Black or African American ",59699,392,281]
["CA-518",2022,"People who are Native Hawaiian or Other Pacific Islander ",4529,59,56]
["CA-518",2022,"People who are White ",207575,604,512]
["CA-518",2022,"People who are Multiple Races ",55127,91,47]
["CA-518",2022,"# of Adults who are Experiencing Significant Mental Illness"]
["CA-518",2022,"# of Adults who are Experiencing Substance Abuse Disorders"]
["CA-518",2022,"# of Adults who are Veterans",null,34,12]
["CA-518",2022,"# of Adults with HIV/AIDS"]
["CA-518",2022,"# of Adults who are Currently Fleeing Domestic Violence"]
["CA-518",2022,"# of Unaccompanied Youth (18- 24 years old)",null,59,24]
["CA-518",2022,"# of Parenting Youth (18-24 years old)",null,6,0]
["CA-519",2022,"All persons ",213605,1006,588]
["CA-519",2022,"Persons in HHs without children ",null,857,585]
["CA-519",2022,"Persons in HHs with at least 1 adult and 1 child ",null,144,0]
["CA-519",2022,"Persons in HHs with only children ",null,5,3]
["CA-519",2022,"Woman/Girl",null,413,217]
["CA-519",2022,"Man/Boy",null,581,362]
["CA-519",2022,"People who are Transgender ",null,2,1]
["CA-519",2022,"People with No Single Gender",null,8,6]
["CA-519",2022,"People who are Questioning",null,2,2]
["CA-519",2022,"People who are Hispanic/Latino ",38361,175,84]
["CA-519",2022,"People who are Non-Hispanic/ Non-Latino ",175244,831,504]
["CA-519",2022,"People who are American Indian or Alaska Native ",2426,58,39]
["CA-519",2022,"People who are Asian ",11182,19,11]
["CA-519",2022,"People who are Black or African American ",3862,34,21]
["CA-519",2022,"People who are Native Hawaiian or Other Pacific Islander ",680,8,7]
["CA-519",2022,"People who are White ",161779,795,451]
["CA-519",2022,"People who are Multiple Races ",21743,92,59]
["CA-519",2022,"# of Adults who are Experiencing Significant Mental Illness"]
["CA-519",2022,"# of Adults who are Experiencing Substance Abuse Disorders"]
["CA-519",2022,"# of Adults who are Veterans",null,53,39]
["CA-519",2022,"# of Adults with HIV/AIDS"]
["CA-519",2022,"# of Adults who are Currently Fleeing Domestic Violence"]
["CA-519",2022,"# of Unaccompanied Youth (18- 24 years old)",null,36,16]
["CA-519",2022,"# of Parenting Youth (18-24 years old)",null,5,0]
["CA-520",2022,"All persons ",282290,855,368]
["CA-520",2022,"Persons in HHs without children ",null,620,361]
["CA-520",2022,"Persons in HHs with at least 1 adult and 1 child ",null,231,3]
["CA-520",2022,"Persons in HHs with only children ",null,4,4]
["CA-520",2022,"Woman/Girl",null,316,102]
["CA-520",2022,"Man/Boy",null,536,264]
["CA-520",2022,"People who are Transgender ",null,3,2]
["CA-520",2022,"People with No Single Gender",null,0,0]
["CA-520",2022,"People who are Questioning",null,0,0]
["CA-520",2022,"People who are Hispanic/Latino ",174732,369,228]
["CA-520",2022,"People who are Non-Hispanic/ Non-Latino ",107558,486,140]
["CA-520",2022,"People who are American Indian or Alaska Native ",3311,50,41]
["CA-520",2022,"People who are Asian ",20601,27,8]
["CA-520",2022,"People who are Black or African American ",8329,121,4]
["CA-520",2022,"People who are Native Hawaiian or Other Pacific Islander ",796,1,0]
["CA-520",2022,"People who are White ",117491,524,238]
["CA-520",2022,"People who are Multiple Races ",27695,132,77]
["CA-520",2022,"# of Adults who are Experiencing Significant Mental Illness"]
["CA-520",2022,"# of Adults who are Experiencing Substance Abuse Disorders"]
["CA-520",2022,"# of Adults who are Veterans",null,29,12]
["CA-520",2022,"# of Adults with HIV/AIDS"]
["CA-520",2022,"# of Adults who are Currently Fleeing Domestic Violence"]
["CA-520",2022,"# of Unaccompanied Youth (18- 24 years old)",null,46,25]
["CA-520",2022,"# of Parenting Youth (18-24 years old)",null,1,1]
["CA-521",2022,"All persons ",217141,746,378]
["CA-521",2022,"Persons in HHs without children ",null,598,372]
["CA-521",2022,"Persons in HHs with at least 1 adult and 1 child ",null,148,6]
["CA-521",2022,"Persons in HHs with only children ",null,0,0]
["CA-521",2022,"Woman/Girl",null,272,89]
["CA-521",2022,"Man/Boy",null,473,289]
["CA-521",2022,"People who are Transgender ",null,1,0]
["CA-521",2022,"People with No Single Gender",null,0,0]
["CA-521",2022,"People who are Questioning",null,0,0]
["CA-521",2022,"People who are Hispanic/Latino ",69989,218,121]
["CA-521",2022,"People who are Non-Hispanic/ Non-Latino ",147152,528,257]
["CA-521",2022,"People who are American Indian or Alaska Native ",1628,71,52]
["CA-521",2022,"People who are Asian ",32018,16,10]
["CA-521",2022,"People who are Black or African American ",5971,136,47]
["CA-521",2022,"People who are Native Hawaiian or Other Pacific Islander ",953,14,7]
["CA-521",2022,"People who are White ",127655,493,262]
["CA-521",2022,"People who are Multiple Races ",31311,16,0]
["CA-521",2022,"# of Adults who are Experiencing Significant Mental Illness"]
["CA-521",2022,"# of Adults who are Experiencing Substance Abuse Disorders"]
["CA-521",2022,"# of Adults who are Veterans",null,22,14]
["CA-521",2022,"# of Adults with HIV/AIDS"]
["CA-521",2022,"# of Adults who are Currently Fleeing Domestic Violence"]
["CA-521",2022,"# of Unaccompanied Youth (18- 24 years old)",null,40,9]
["CA-521",2022,"# of Parenting Youth (18-24 years old)",null,5,0]
["CA-522",2022,"All persons ",136132,1648,1309]
["CA-522",2022,"Persons in HHs without children ",null,1562,1291]
["CA-522",2022,"Persons in HHs with at least 1 adult and 1 child ",null,81,18]
["CA-522",2022,"Persons in HHs with only children ",null,5,0]
["CA-522",2022,"Woman/Girl",null,454,344]
["CA-522",2022,"Man/Boy",null,1181,955]
["CA-522",2022,"People who are Transgender ",null,6,5]
["CA-522",2022,"People with No Single Gender",null,7,5]
["CA-522",2022,"People who are Questioning",null,0,0]
["CA-522",2022,"People who are Hispanic/Latino ",17129,125,86]
["CA-522",2022,"People who are Non-Hispanic/ Non-Latino ",119003,1523,1223]
["CA-522",2022,"People who are American Indian or Alaska Native ",5521,140,101]
["CA-522",2022,"People who are Asian ",4389,2,0]
["CA-522",2022,"People who are Black or African American ",1866,55,48]
["CA-522",2022,"People who are Native Hawaiian or Other Pacific Islander ",386,16,5]
["CA-522",2022,"People who are White ",102072,1326,1074]
["CA-522",2022,"People who are Multiple Races ",14392,109,81]
["CA-522",2022,"# of Adults who are Experiencing Significant Mental Illness"]
["CA-522",2022,"# of Adults who are Experiencing Substance Abuse Disorders"]
["CA-522",2022,"# of Adults who are Veterans",null,202,132]
["CA-522",2022,"# of Adults with HIV/AIDS"]
["CA-522",2022,"# of Adults who are Currently Fleeing Domestic Violence"]
["CA-522",2022,"# of Unaccompanied Youth (18- 24 years old)",null,50,38]
["CA-522",2022,"# of Parenting Youth (18-24 years old)",null,0,0]
["CA-523",2022,"All persons ",66357,340,196]
["CA-523",2022,"Persons in HHs without children ",null,161,125]
["CA-523",2022,"Persons in HHs with at least 1 adult and 1 child ",null,174,66]
["CA-523",2022,"Persons in HHs with only children ",null,5,5]
["CA-523",2022,"Woman/Girl",null,161,86]
["CA-523",2022,"Man/Boy",null,179,110]
["CA-523",2022,"People who are Transgender ",null,0,0]
["CA-523",2022,"People with No Single Gender",null,0,0]
["CA-523",2022,"People who are Questioning",null,0,0]
["CA-523",2022,"People who are Hispanic/Latino ",26896,73,48]
["CA-523",2022,"People who are Non-Hispanic/ Non-Latino ",39461,267,148]
["CA-523",2022,"People who are American Indian or Alaska Native ",1501,7,4]
["CA-523",2022,"People who are Asian ",1541,1,1]
["CA-523",2022,"People who are Black or African American ",687,5,4]
["CA-523",2022,"People who are Native Hawaiian or Other Pacific Islander ",118,2,2]
["CA-523",2022,"People who are White ",45468,292,161]
["CA-523",2022,"People who are Multiple Races ",8044,33,24]
["CA-523",2022,"# of Adults who are Experiencing Significant Mental Illness"]
["CA-523",2022,"# of Adults who are Experiencing Substance Abuse Disorders"]
["CA-523",2022,"# of Adults who are Veterans",null,17,14]
["CA-523",2022,"# of Adults with HIV/AIDS"]
["CA-523",2022,"# of Adults who are Currently Fleeing Domestic Violence"]
["CA-523",2022,"# of Unaccompanied Youth (18- 24 years old)",null,7,5]
["CA-523",2022,"# of Parenting Youth (18-24 years old)",null,2,0]
["CA-524",2022,"All persons ",180806,1094,839]
["CA-524",2022,"Persons in HHs without children ",null,629,480]
["CA-524",2022,"Persons in HHs with at least 1 adult and 1 child ",null,465,359]
["CA-524",2022,"Persons in HHs with only children ",null,0,0]
["CA-524",2022,"Woman/Girl",null,518,395]
["CA-524",2022,"Man/Boy",null,574,443]
["CA-524",2022,"People who are Transgender ",null,1,1]
["CA-524",2022,"People with No Single Gender",null,0,0]
["CA-524",2022,"People who are Questioning",null,1,0]
["CA-524",2022,"People who are Hispanic/Latino ",56346,201,162]
["CA-524",2022,"People who are Non-Hispanic/ Non-Latino ",124460,893,677]
["CA-524",2022,"People who are American Indian or Alaska Native ",2775,53,44]
["CA-524",2022,"People who are Asian ",22850,9,4]
["CA-524",2022,"People who are Black or African American ",4846,110,89]
["CA-524",2022,"People who are Native Hawaiian or Other Pacific Islander ",779,3,2]
["CA-524",2022,"People who are White ",106465,684,502]
["CA-524",2022,"People who are Multiple Races ",26179,235,198]
["CA-524",2022,"# of Adults who are Experiencing Significant Mental Illness"]
["CA-524",2022,"# of Adults who are Experiencing Substance Abuse Disorders"]
["CA-524",2022,"# of Adults who are Veterans",null,49,38]
["CA-524",2022,"# of Adults with HIV/AIDS"]
["CA-524",2022,"# of Adults who are Currently Fleeing Domestic Violence"]
["CA-524",2022,"# of Unaccompanied Youth (18- 24 years old)",null,17,13]
["CA-524",2022,"# of Parenting Youth (18-24 years old)",null,30,26]
["CA-525",2022,"All persons ",191713,511,438]
["CA-525",2022,"Persons in HHs without children ",null,487,430]
["CA-525",2022,"Persons in HHs with at least 1 adult and 1 child ",null,18,8]
["CA-525",2022,"Persons in HHs with only children ",null,6,0]
["CA-525",2022,"Woman/Girl",null,167,138]
["CA-525",2022,"Man/Boy",null,325,284]
["CA-525",2022,"People who are Transgender ",null,6,4]
["CA-525",2022,"People with No Single Gender",null,4,3]
["CA-525",2022,"People who are Questioning",null,9,9]
["CA-525",2022,"People who are Hispanic/Latino ",25930,43,17]
["CA-525",2022,"People who are Non-Hispanic/ Non-Latino ",165783,468,421]
["CA-525",2022,"People who are American Indian or Alaska Native ",1056,13,11]
["CA-525",2022,"People who are Asian ",9945,12,9]
["CA-525",2022,"People who are Black or African American ",1405,16,13]
["CA-525",2022,"People who are Native Hawaiian or Other Pacific Islander ",330,5,3]
["CA-525",2022,"People who are White ",158083,455,399]
["CA-525",2022,"People who are Multiple Races ",14534,10,3]
["CA-525",2022,"# of Adults who are Experiencing Significant Mental Illness"]
["CA-525",2022,"# of Adults who are Experiencing Substance Abuse Disorders"]
["CA-525",2022,"# of Adults who are Veterans",null,6,3]
["CA-525",2022,"# of Adults with HIV/AIDS"]
["CA-525",2022,"# of Adults who are Currently Fleeing Domestic Violence"]
["CA-525",2022,"# of Unaccompanied Youth (18- 24 years old)",null,82,73]
["CA-525",2022,"# of Parenting Youth (18-24 years old)",null,0,0]
["CA-526",2022,"All persons ",158374,625,494]
["CA-526",2022,"Persons in HHs without children ",null,531,441]
["CA-526",2022,"Persons in HHs with at least 1 adult and 1 child ",null,94,53]
["CA-526",2022,"Persons in HHs with only children ",null,0,0]
["CA-526",2022,"Woman/Girl",null,256,193]
["CA-526",2022,"Man/Boy",null,367,299]
["CA-526",2022,"People who are Transgender ",null,0,0]
["CA-526",2022,"People with No Single Gender",null,0,0]
["CA-526",2022,"People who are Questioning",null,2,2]
["CA-526",2022,"People who are Hispanic/Latino ",21639,69,43]
["CA-526",2022,"People who are Non-Hispanic/ Non-Latino ",136735,556,451]
["CA-526",2022,"People who are American Indian or Alaska Native ",2202,40,36]
["CA-526",2022,"People who are Asian ",2455,0,0]
["CA-526",2022,"People who are Black or African American ",2142,4,1]
["CA-526",2022,"People who are Native Hawaiian or Other Pacific Islander ",400,1,1]
["CA-526",2022,"People who are White ",130916,539,423]
["CA-526",2022,"People who are Multiple Races ",13988,41,33]
["CA-526",2022,"# of Adults who are Experiencing Significant Mental Illness"]
["CA-526",2022,"# of Adults who are Experiencing Substance Abuse Disorders"]
["CA-526",2022,"# of Adults who are Veterans",null,48,38]
["CA-526",2022,"# of Adults with HIV/AIDS"]
["CA-526",2022,"# of Adults who are Currently Fleeing Domestic Violence"]
["CA-526",2022,"# of Unaccompanied Youth (18- 24 years old)",null,24,22]
["CA-526",2022,"# of Parenting Youth (18-24 years old)",null,3,3]
["CA-527",2022,"All persons ",65484,291,218]
["CA-527",2022,"Persons in HHs without children ",null,231,214]
["CA-527",2022,"Persons in HHs with at least 1 adult and 1 child ",null,60,4]
["CA-527",2022,"Persons in HHs with only children ",null,0,0]
["CA-527",2022,"Woman/Girl",null,104,61]
["CA-527",2022,"Man/Boy",null,187,157]
["CA-527",2022,"People who are Transgender ",null,0,0]
["CA-527",2022,"People with No Single Gender",null,0,0]
["CA-527",2022,"People who are Questioning",null,0,0]
["CA-527",2022,"People who are Hispanic/Latino ",17585,48,16]
["CA-527",2022,"People who are Non-Hispanic/ Non-Latino ",47899,243,202]
["CA-527",2022,"People who are American Indian or Alaska Native ",911,21,16]
["CA-527",2022,"People who are Asian ",1236,3,3]
["CA-527",2022,"People who are Black or African American ",626,2,2]
["CA-527",2022,"People who are Native Hawaiian or Other Pacific Islander ",28,1,1]
["CA-527",2022,"People who are White ",48781,262,195]
["CA-527",2022,"People who are Multiple Races ",9372,2,1]
["CA-527",2022,"# of Adults who are Experiencing Significant Mental Illness"]
["CA-527",2022,"# of Adults who are Experiencing Substance Abuse Disorders"]
["CA-527",2022,"# of Adults who are Veterans",null,10,10]
["CA-527",2022,"# of Adults with HIV/AIDS"]
["CA-527",2022,"# of Adults who are Currently Fleeing Domestic Violence"]
["CA-527",2022,"# of Unaccompanied Youth (18- 24 years old)",null,11,10]
["CA-527",2022,"# of Parenting Youth (18-24 years old)",null,2,0]
["CA-529",2022,"All persons ",68024,339,259]
["CA-529",2022,"Persons in HHs without children ",null,302,233]
["CA-529",2022,"Persons in HHs with at least 1 adult and 1 child ",null,32,21]
["CA-529",2022,"Persons in HHs with only children ",null,5,5]
["CA-529",2022,"Woman/Girl",null,124,94]
["CA-529",2022,"Man/Boy",null,214,164]
["CA-529",2022,"People who are Transgender ",null,1,1]
["CA-529",2022,"People with No Single Gender",null,0,0]
["CA-529",2022,"People who are Questioning",null,0,0]
["CA-529",2022,"People who are Hispanic/Latino ",15672,44,31]
["CA-529",2022,"People who are Non-Hispanic/ Non-Latino ",52352,295,228]
["CA-529",2022,"People who are American Indian or Alaska Native ",2032,128,123]
["CA-529",2022,"People who are Asian ",923,1,1]
["CA-529",2022,"People who are Black or African American ",1538,8,3]
["CA-529",2022,"People who are Native Hawaiian or Other Pacific Islander ",199,0,0]
["CA-529",2022,"People who are White ",48251,194,129]
["CA-529",2022,"People who are Multiple Races ",6080,8,3]
["CA-529",2022,"# of Adults who are Experiencing Significant Mental Illness"]
["CA-529",2022,"# of Adults who are Experiencing Substance Abuse Disorders"]
["CA-529",2022,"# of Adults who are Veterans",null,16,14]
["CA-529",2022,"# of Adults with HIV/AIDS"]
["CA-529",2022,"# of Adults who are Currently Fleeing Domestic Violence"]
["CA-529",2022,"# of Unaccompanied Youth (18- 24 years old)",null,24,18]
["CA-529",2022,"# of Parenting Youth (18-24 years old)",null,1,1]
["CA-530",2022,"All persons ",33563,140,95]
["CA-530",2022,"Persons in HHs without children ",null,92,80]
["CA-530",2022,"Persons in HHs with at least 1 adult and 1 child ",null,48,15]
["CA-530",2022,"Persons in HHs with only children ",null,0,0]
["CA-530",2022,"Woman/Girl",null,57,27]
["CA-530",2022,"Man/Boy",null,82,67]
["CA-530",2022,"People who are Transgender ",null,0,0]
["CA-530",2022,"People with No Single Gender",null,1,1]
["CA-530",2022,"People who are Questioning",null,0,0]
["CA-530",2022,"People who are Hispanic/Latino ",8295,29,8]
["CA-530",2022,"People who are Non-Hispanic/ Non-Latino ",25268,111,87]
["CA-530",2022,"People who are American Indian or Alaska Native ",2403,5,4]
["CA-530",2022,"People who are Asian ",869,2,2]
["CA-530",2022,"People who are Black or African American ",221,3,1]
["CA-530",2022,"People who are Native Hawaiian or Other Pacific Islander ",176,0,0]
["CA-530",2022,"People who are White ",24378,130,88]
["CA-530",2022,"People who are Multiple Races ",3734,0,0]
["CA-530",2022,"# of Adults who are Experiencing Significant Mental Illness"]
["CA-530",2022,"# of Adults who are Experiencing Substance Abuse Disorders"]
["CA-530",2022,"# of Adults who are Veterans",null,9,9]
["CA-530",2022,"# of Adults with HIV/AIDS"]
["CA-530",2022,"# of Adults who are Currently Fleeing Domestic Violence"]
["CA-530",2022,"# of Unaccompanied Youth (18- 24 years old)",null,5,4]
["CA-530",2022,"# of Parenting Youth (18-24 years old)",null,1,0]
["CA-531",2022,"All persons ",102322,527,243]
["CA-531",2022,"Persons in HHs without children ",null,422,217]
["CA-531",2022,"Persons in HHs with at least 1 adult and 1 child ",null,98,24]
["CA-531",2022,"Persons in HHs with only children ",null,7,2]
["CA-531",2022,"Woman/Girl",null,220,80]
["CA-531",2022,"Man/Boy",null,302,158]
["CA-531",2022,"People who are Transgender ",null,1,1]
["CA-531",2022,"People with No Single Gender",null,4,4]
["CA-531",2022,"People who are Questioning",null,0,0]
["CA-531",2022,"People who are Hispanic/Latino ",10202,51,22]
["CA-531",2022,"People who are Non-Hispanic/ Non-Latino ",92120,476,221]
["CA-531",2022,"People who are American Indian or Alaska Native ",445,15,3]
["CA-531",2022,"People who are Asian ",1641,2,0]
["CA-531",2022,"People who are Black or African American ",376,6,4]
["CA-531",2022,"People who are Native Hawaiian or Other Pacific Islander ",149,1,1]
["CA-531",2022,"People who are White ",90082,475,221]
["CA-531",2022,"People who are Multiple Races ",8082,28,14]
["CA-531",2022,"# of Adults who are Experiencing Significant Mental Illness"]
["CA-531",2022,"# of Adults who are Experiencing Substance Abuse Disorders"]
["CA-531",2022,"# of Adults who are Veterans",null,32,16]
["CA-531",2022,"# of Adults with HIV/AIDS"]
["CA-531",2022,"# of Adults who are Currently Fleeing Domestic Violence"]
["CA-531",2022,"# of Unaccompanied Youth (18- 24 years old)",null,24,14]
["CA-531",2022,"# of Parenting Youth (18-24 years old)",null,1,0]
["CA-601",2022,"All persons ",3289701,8427,4106]
["CA-601",2022,"Persons in HHs without children ",null,6492,4016]
["CA-601",2022,"Persons in HHs with at least 1 adult and 1 child ",null,1930,90]
["CA-601",2022,"Persons in HHs with only children ",null,5,0]
["CA-601",2022,"Woman/Girl",null,2879,1028]
["CA-601",2022,"Man/Boy",null,5485,3052]
["CA-601",2022,"People who are Transgender ",null,30,7]
["CA-601",2022,"People with No Single Gender",null,33,19]
["CA-601",2022,"People who are Questioning",null,0,0]
["CA-601",2022,"People who are Hispanic/Latino ",1134647,2840,1254]
["CA-601",2022,"People who are Non-Hispanic/ Non-Latino ",2155054,5587,2852]
["CA-601",2022,"People who are American Indian or Alaska Native ",27270,261,157]
["CA-601",2022,"People who are Asian ",397687,167,97]
["CA-601",2022,"People who are Black or African American ",158553,2066,929]
["CA-601",2022,"People who are Native Hawaiian or Other Pacific Islander ",13721,156,52]
["CA-601",2022,"People who are White ",1899871,5531,2790]
["CA-601",2022,"People who are Multiple Races ",490015,246,81]
["CA-601",2022,"# of Adults who are Experiencing Significant Mental Illness"]
["CA-601",2022,"# of Adults who are Experiencing Substance Abuse Disorders"]
["CA-601",2022,"# of Adults who are Veterans",null,686,378]
["CA-601",2022,"# of Adults with HIV/AIDS"]
["CA-601",2022,"# of Adults who are Currently Fleeing Domestic Violence"]
["CA-601",2022,"# of Unaccompanied Youth (18- 24 years old)",null,525,254]
["CA-601",2022,"# of Parenting Youth (18-24 years old)",null,74,0]
["CA-602",2022,"All persons ",3175227,5718,3057]
["CA-602",2022,"Persons in HHs without children ",null,4510,2806]
["CA-602",2022,"Persons in HHs with at least 1 adult and 1 child ",null,1201,251]
["CA-602",2022,"Persons in HHs with only children ",null,7,0]
["CA-602",2022,"Woman/Girl",null,2069,789]
["CA-602",2022,"Man/Boy",null,3617,2247]
["CA-602",2022,"People who are Transgender ",null,17,13]
["CA-602",2022,"People with No Single Gender",null,10,4]
["CA-602",2022,"People who are Questioning",null,5,4]
["CA-602",2022,"People who are Hispanic/Latino ",1077367,2252,1046]
["CA-602",2022,"People who are Non-Hispanic/ Non-Latino ",2097860,3466,2011]
["CA-602",2022,"People who are American Indian or Alaska Native ",19759,211,118]
["CA-602",2022,"People who are Asian ",688905,195,96]
["CA-602",2022,"People who are Black or African American ",53753,483,190]
["CA-602",2022,"People who are Native Hawaiian or Other Pacific Islander ",9847,57,31]
["CA-602",2022,"People who are White ",1594137,4056,2000]
["CA-602",2022,"People who are Multiple Races ",381051,716,622]
["CA-602",2022,"# of Adults who are Experiencing Significant Mental Illness"]
["CA-602",2022,"# of Adults who are Experiencing Substance Abuse Disorders"]
["CA-602",2022,"# of Adults who are Veterans",null,280,145]
["CA-602",2022,"# of Adults with HIV/AIDS"]
["CA-602",2022,"# of Adults who are Currently Fleeing Domestic Violence"]
["CA-602",2022,"# of Unaccompanied Youth (18- 24 years old)",null,176,98]
["CA-602",2022,"# of Parenting Youth (18-24 years old)",null,34,11]
["CA-603",2022,"All persons ",445213,1962,1367]
["CA-603",2022,"Persons in HHs without children ",null,1754,1352]
["CA-603",2022,"Persons in HHs with at least 1 adult and 1 child ",null,202,15]
["CA-603",2022,"Persons in HHs with only children ",null,6,0]
["CA-603",2022,"Woman/Girl",null,706,463]
["CA-603",2022,"Man/Boy",null,1251,903]
["CA-603",2022,"People who are Transgender ",null,4,0]
["CA-603",2022,"People with No Single Gender",null,1,1]
["CA-603",2022,"People who are Questioning",null,0,0]
["CA-603",2022,"People who are Hispanic/Latino ",207576,750,455]
["CA-603",2022,"People who are Non-Hispanic/ Non-Latino ",237637,1212,912]
["CA-603",2022,"People who are American Indian or Alaska Native ",6107,64,38]
["CA-603",2022,"People who are Asian ",24327,21,13]
["CA-603",2022,"People who are Black or African American ",8431,150,71]
["CA-603",2022,"People who are Native Hawaiian or Other Pacific Islander ",562,10,6]
["CA-603",2022,"People who are White ",270657,1634,1182]
["CA-603",2022,"People who are Multiple Races ",80129,83,57]
["CA-603",2022,"# of Adults who are Experiencing Significant Mental Illness"]
["CA-603",2022,"# of Adults who are Experiencing Substance Abuse Disorders"]
["CA-603",2022,"# of Adults who are Veterans",null,117,88]
["CA-603",2022,"# of Adults with HIV/AIDS"]
["CA-603",2022,"# of Adults who are Currently Fleeing Domestic Violence",null,66,52]
["CA-603",2022,"# of Unaccompanied Youth (18- 24 years old)",null,9,0]
["CA-603",2022,"# of Parenting Youth (18-24 years old)"]
["CA-604",2022,"All persons ",906883,1603,728]
["CA-604",2022,"Persons in HHs without children ",null,1361,720]
["CA-604",2022,"Persons in HHs with at least 1 adult and 1 child ",null,237,7]
["CA-604",2022,"Persons in HHs with only children ",null,5,1]
["CA-604",2022,"Woman/Girl",null,518,174]
["CA-604",2022,"Man/Boy",null,1067,540]
["CA-604",2022,"People who are Transgender ",null,5,2]
["CA-604",2022,"People with No Single Gender",null,13,12]
["CA-604",2022,"People who are Questioning",null,0,0]
["CA-604",2022,"People who are Hispanic/Latino ",501705,662,312]
["CA-604",2022,"People who are Non-Hispanic/ Non-Latino ",405178,941,416]
["CA-604",2022,"People who are American Indian or Alaska Native ",9970,39,13]
["CA-604",2022,"People who are Asian ",44904,12,9]
["CA-604",2022,"People who are Black or African American ",46915,318,119]
["CA-604",2022,"People who are Native Hawaiian or Other Pacific Islander ",1708,14,7]
["CA-604",2022,"People who are White ",509039,1139,516]
["CA-604",2022,"People who are Multiple Races ",154003,81,64]
["CA-604",2022,"# of Adults who are Experiencing Significant Mental Illness"]
["CA-604",2022,"# of Adults who are Experiencing Substance Abuse Disorders"]
["CA-604",2022,"# of Adults who are Veterans",null,94,39]
["CA-604",2022,"# of Adults with HIV/AIDS"]
["CA-604",2022,"# of Adults who are Currently Fleeing Domestic Violence"]
["CA-604",2022,"# of Unaccompanied Youth (18- 24 years old)",null,95,40]
["CA-604",2022,"# of Parenting Youth (18-24 years old)",null,4,0]
["CA-608",2022,"All persons ",2429487,3316,1980]
["CA-608",2022,"Persons in HHs without children ",null,2807,1951]
["CA-608",2022,"Persons in HHs with at least 1 adult and 1 child ",null,490,29]
["CA-608",2022,"Persons in HHs with only children ",null,19,0]
["CA-608",2022,"Woman/Girl",null,1185,547]
["CA-608",2022,"Man/Boy",null,2111,1422]
["CA-608",2022,"People who are Transgender ",null,9,2]
["CA-608",2022,"People with No Single Gender",null,11,9]
["CA-608",2022,"People who are Questioning",null,0,0]
["CA-608",2022,"People who are Hispanic/Latino ",1233277,1169,612]
["CA-608",2022,"People who are Non-Hispanic/ Non-Latino ",1196210,2147,1368]
["CA-608",2022,"People who are American Indian or Alaska Native ",23446,110,64]
["CA-608",2022,"People who are Asian ",166726,36,25]
["CA-608",2022,"People who are Black or African American ",157125,632,324]
["CA-608",2022,"People who are Native Hawaiian or Other Pacific Islander ",8044,27,14]
["CA-608",2022,"People who are White ",1138018,2239,1312]
["CA-608",2022,"People who are Multiple Races ",361725,272,241]
["CA-608",2022,"# of Adults who are Experiencing Significant Mental Illness"]
["CA-608",2022,"# of Adults who are Experiencing Substance Abuse Disorders"]
["CA-608",2022,"# of Adults who are Veterans",null,195,146]
["CA-608",2022,"# of Adults with HIV/AIDS"]
["CA-608",2022,"# of Adults who are Currently Fleeing Domestic Violence"]
["CA-608",2022,"# of Unaccompanied Youth (18- 24 years old)",null,294,234]
["CA-608",2022,"# of Parenting Youth (18-24 years old)",null,4,0]
["CA-609",2022,"All persons ",2180563,3333,2389]
["CA-609",2022,"Persons in HHs without children ",null,2909,2360]
["CA-609",2022,"Persons in HHs with at least 1 adult and 1 child ",null,416,29]
["CA-609",2022,"Persons in HHs with only children ",null,8,0]
["CA-609",2022,"Woman/Girl",null,1144,636]
["CA-609",2022,"Man/Boy",null,2179,1744]
["CA-609",2022,"People who are Transgender ",null,6,5]
["CA-609",2022,"People with No Single Gender",null,2,2]
["CA-609",2022,"People who are Questioning",null,2,2]
["CA-609",2022,"People who are Hispanic/Latino ",1200147,1355,882]
["CA-609",2022,"People who are Non-Hispanic/ Non-Latino ",980416,1978,1507]
["CA-609",2022,"People who are American Indian or Alaska Native ",25467,108,84]
["CA-609",2022,"People who are Asian ",169063,42,34]
["CA-609",2022,"People who are Black or African American ",171762,747,438]
["CA-609",2022,"People who are Native Hawaiian or Other Pacific Islander ",7333,21,18]
["CA-609",2022,"People who are White ",975461,1954,1452]
["CA-609",2022,"People who are Multiple Races ",347453,461,363]
["CA-609",2022,"# of Adults who are Experiencing Significant Mental Illness"]
["CA-609",2022,"# of Adults who are Experiencing Substance Abuse Disorders"]
["CA-609",2022,"# of Adults who are Veterans",null,196,166]
["CA-609",2022,"# of Adults with HIV/AIDS"]
["CA-609",2022,"# of Adults who are Currently Fleeing Domestic Violence"]
["CA-609",2022,"# of Unaccompanied Youth (18- 24 years old)",null,133,94]
["CA-609",2022,"# of Parenting Youth (18-24 years old)",null,10,0]
["CA-611",2022,"All persons ",842009,2248,1356]
["CA-611",2022,"Persons in HHs without children ",null,1977,1345]
["CA-611",2022,"Persons in HHs with at least 1 adult and 1 child ",null,268,11]
["CA-611",2022,"Persons in HHs with only children ",null,3,0]
["CA-611",2022,"Woman/Girl",null,742,368]
["CA-611",2022,"Man/Boy",null,1493,978]
["CA-611",2022,"People who are Transgender ",null,13,10]
["CA-611",2022,"People with No Single Gender",null,0,0]
["CA-611",2022,"People who are Questioning",null,0,0]
["CA-611",2022,"People who are Hispanic/Latino ",367039,1080,672]
["CA-611",2022,"People who are Non-Hispanic/ Non-Latino ",474970,1168,684]
["CA-611",2022,"People who are American Indian or Alaska Native ",10595,32,16]
["CA-611",2022,"People who are Asian ",60951,31,19]
["CA-611",2022,"People who are Black or African American ",15042,129,90]
["CA-611",2022,"People who are Native Hawaiian or Other Pacific Islander ",1760,40,38]
["CA-611",2022,"People who are White ",544398,1778,1054]
["CA-611",2022,"People who are Multiple Races ",138883,238,139]
["CA-611",2022,"# of Adults who are Experiencing Significant Mental Illness"]
["CA-611",2022,"# of Adults who are Experiencing Substance Abuse Disorders"]
["CA-611",2022,"# of Adults who are Veterans",null,120,71]
["CA-611",2022,"# of Adults with HIV/AIDS"]
["CA-611",2022,"# of Adults who are Currently Fleeing Domestic Violence"]
["CA-611",2022,"# of Unaccompanied Youth (18- 24 years old)",null,76,62]
["CA-611",2022,"# of Parenting Youth (18-24 years old)",null,0,0]
["CA-613",2022,"All persons ",179578,1057,925]
["CA-613",2022,"Persons in HHs without children ",null,814,783]
["CA-613",2022,"Persons in HHs with at least 1 adult and 1 child ",null,241,142]
["CA-613",2022,"Persons in HHs with only children ",null,2,0]
["CA-613",2022,"Woman/Girl",null,370,287]
["CA-613",2022,"Man/Boy",null,675,626]
["CA-613",2022,"People who are Transgender ",null,4,4]
["CA-613",2022,"People with No Single Gender",null,8,8]
["CA-613",2022,"People who are Questioning",null,0,0]
["CA-613",2022,"People who are Hispanic/Latino ",153382,446,324]
["CA-613",2022,"People who are Non-Hispanic/ Non-Latino ",26196,611,601]
["CA-613",2022,"People who are American Indian or Alaska Native ",2634,10,10]
["CA-613",2022,"People who are Asian ",2710,8,8]
["CA-613",2022,"People who are Black or African American ",4608,17,17]
["CA-613",2022,"People who are Native Hawaiian or Other Pacific Islander ",59,14,14]
["CA-613",2022,"People who are White ",70860,929,809]
["CA-613",2022,"People who are Multiple Races ",36156,79,67]
["CA-613",2022,"# of Adults who are Experiencing Significant Mental Illness"]
["CA-613",2022,"# of Adults who are Experiencing Substance Abuse Disorders"]
["CA-613",2022,"# of Adults who are Veterans",null,101,100]
["CA-613",2022,"# of Adults with HIV/AIDS"]
["CA-613",2022,"# of Adults who are Currently Fleeing Domestic Violence"]
["CA-613",2022,"# of Unaccompanied Youth (18- 24 years old)",null,11,9]
["CA-613",2022,"# of Parenting Youth (18-24 years old)",null,4,0]
["CA-614",2022,"All persons ",281712,1448,1156]
["CA-614",2022,"Persons in HHs without children ",null,1013,885]
["CA-614",2022,"Persons in HHs with at least 1 adult and 1 child ",null,428,264]
["CA-614",2022,"Persons in HHs with only children ",null,7,7]
["CA-614",2022,"Woman/Girl",null,631,488]
["CA-614",2022,"Man/Boy",null,798,649]
["CA-614",2022,"People who are Transgender ",null,0,0]
["CA-614",2022,"People with No Single Gender",null,19,19]
["CA-614",2022,"People who are Questioning",null,0,0]
["CA-614",2022,"People who are Hispanic/Latino ",65946,487,363]
["CA-614",2022,"People who are Non-Hispanic/ Non-Latino ",215766,961,793]
["CA-614",2022,"People who are American Indian or Alaska Native ",2487,73,67]
["CA-614",2022,"People who are Asian ",10652,12,8]
["CA-614",2022,"People who are Black or African American ",3486,50,33]
["CA-614",2022,"People who are Native Hawaiian or Other Pacific Islander ",431,16,12]
["CA-614",2022,"People who are White ",216354,1222,986]
["CA-614",2022,"People who are Multiple Races ",33478,75,50]
["CA-614",2022,"# of Adults who are Experiencing Significant Mental Illness"]
["CA-614",2022,"# of Adults who are Experiencing Substance Abuse Disorders"]
["CA-614",2022,"# of Adults who are Veterans",null,16,14]
["CA-614",2022,"# of Adults with HIV/AIDS"]
["CA-614",2022,"# of Adults who are Currently Fleeing Domestic Violence"]
["CA-614",2022,"# of Unaccompanied Youth (18- 24 years old)",null,57,51]
["CA-614",2022,"# of Parenting Youth (18-24 years old)",null,7,0]
["LA County",2022,"All persons ",9936690,69144,48548]
["LA County",2022,"Persons in HHs without children ",null,58130,47093]
["LA County",2022,"Persons in HHs with at least 1 adult and 1 child ",null,10893,1450]
["LA County",2022,"Persons in HHs with only children ",null,121,5]
["LA County",2022,"Woman/Girl",null,21874,12030]
["LA County",2022,"Man/Boy",null,45543,35036]
["LA County",2022,"People who are Transgender ",null,971,796]
["LA County",2022,"People with No Single Gender",null,625,561]
["LA County",2022,"People who are Questioning",null,131,125]
["LA County",2022,"People who are Hispanic/Latino ",4837594,30180,22067]
["LA County",2022,"People who are Non-Hispanic/ Non-Latino ",5099096,38964,26481]
["LA County",2022,"People who are American Indian or Alaska Native ",111096,1560,1179]
["LA County",2022,"People who are Asian ",1473634,1078,810]
["LA County",2022,"People who are Black or African American ",780993,31163,21320]
["LA County",2022,"People who are Native Hawaiian or Other Pacific Islander ",23400,703,567]
["LA County",2022,"People who are White ",3937901,31323,21887]
["LA County",2022,"People who are Multiple Races ",1355710,3317,2785]
["LA County",2022,"# of Adults who are Experiencing Significant Mental Illness"]
["LA County",2022,"# of Adults who are Experiencing Substance Abuse Disorders"]
["LA County",2022,"# of Adults who are Veterans",null,3942,3013]
["LA County",2022,"# of Adults with HIV/AIDS"]
["LA County",2022,"# of Adults who are Currently Fleeing Domestic Violence"]
["LA County",2022,"# of Unaccompanied Youth (18- 24 years old)",null,2067,1073]
["LA County",2022,"# of Parenting Youth (18-24 years old)",null,365,27]
["CA-500",2023,"All persons ",null,9903,7401]
["CA-500",2023,"Persons in HHs without children ",null,8557,7065]
["CA-500",2023,"Persons in HHs with at least 1 adult and 1 child ",null,1226,233]
["CA-500",2023,"Persons in HHs with only children ",null,120,103]
["CA-500",2023,"Woman/Girl",null,3565,2515]
["CA-500",2023,"Man/Boy",null,6139,4709]
["CA-500",2023,"People who are Transgender ",null,110,98]
["CA-500",2023,"People with No Single Gender",null,68,58]
["CA-500",2023,"People who are Questioning",null,21,21]
["CA-500",2023,"People who are Hispanic/Latino ",null,4369,2998]
["CA-500",2023,"People who are Non-Hispanic/ Non-Latino ",null,5534,4403]
["CA-500",2023,"People who are American Indian or Alaska Native ",null,545,378]
["CA-500",2023,"People who are Asian ",null,740,610]
["CA-500",2023,"People who are Black or African American ",null,1579,1220]
["CA-500",2023,"People who are Native Hawaiian or Other Pacific Islander ",null,248,196]
["CA-500",2023,"People who are White ",null,5985,4491]
["CA-500",2023,"People who are Multiple Races ",null,806,506]
["CA-500",2023,"# of Adults who are Experiencing Significant Mental Illness"]
["CA-500",2023,"# of Adults who are Experiencing Substance Abuse Disorders"]
["CA-500",2023,"# of Adults who are Veterans",null,479,351]
["CA-500",2023,"# of Adults with HIV/AIDS"]
["CA-500",2023,"# of Adults who are Currently Fleeing Domestic Violence"]
["CA-500",2023,"# of Unaccompanied Youth (18- 24 years old)",null,654,555]
["CA-500",2023,"# of Parenting Youth (18-24 years old)",null,41,6]
["CA-501",2023,"All persons ",null,7582,4397]
["CA-501",2023,"Persons in HHs without children ",null,6873,4239]
["CA-501",2023,"Persons in HHs with at least 1 adult and 1 child ",null,624,76]
["CA-501",2023,"Persons in HHs with only children ",null,85,82]
["CA-501",2023,"Woman/Girl",null,2503,1481]
["CA-501",2023,"Man/Boy",null,4691,2651]
["CA-501",2023,"People who are Transgender ",null,257,181]
["CA-501",2023,"People with No Single Gender",null,110,63]
["CA-501",2023,"People who are Questioning",null,21,21]
["CA-501",2023,"People who are Hispanic/Latino ",null,2542,1517]
["CA-501",2023,"People who are Non-Hispanic/ Non-Latino ",null,5040,2880]
["CA-501",2023,"People who are American Indian or Alaska Native ",null,479,297]
["CA-501",2023,"People who are Asian ",null,471,305]
["CA-501",2023,"People who are Black or African American ",null,2507,1472]
["CA-501",2023,"People who are Native Hawaiian or Other Pacific Islander ",null,248,175]
["CA-501",2023,"People who are White ",null,3326,1871]
["CA-501",2023,"People who are Multiple Races ",null,551,277]
["CA-501",2023,"# of Adults who are Experiencing Significant Mental Illness"]
["CA-501",2023,"# of Adults who are Experiencing Substance Abuse Disorders"]
["CA-501",2023,"# of Adults who are Veterans",null,548,404]
["CA-501",2023,"# of Adults with HIV/AIDS"]
["CA-501",2023,"# of Adults who are Currently Fleeing Domestic Violence"]
["CA-501",2023,"# of Unaccompanied Youth (18- 24 years old)",null,1028,820]
["CA-501",2023,"# of Parenting Youth (18-24 years old)",null,16,2]
["CA-502",2023,"All persons ",null,9759,7135]
["CA-502",2023,"Persons in HHs without children ",null,8823,6725]
["CA-502",2023,"Persons in HHs with at least 1 adult and 1 child ",null,810,322]
["CA-502",2023,"Persons in HHs with only children ",null,126,88]
["CA-502",2023,"Woman/Girl",null,3592,2581]
["CA-502",2023,"Man/Boy",null,6037,4445]
["CA-502",2023,"People who are Transgender ",null,42,34]
["CA-502",2023,"People with No Single Gender",null,52,41]
["CA-502",2023,"People who are Questioning",null,36,34]
["CA-502",2023,"People who are Hispanic/Latino ",null,2441,1907]
["CA-502",2023,"People who are Non-Hispanic/ Non-Latino ",null,7318,5228]
["CA-502",2023,"People who are American Indian or Alaska Native ",null,402,314]
["CA-502",2023,"People who are Asian ",null,435,367]
["CA-502",2023,"People who are Black or African American ",null,4277,2801]
["CA-502",2023,"People who are Native Hawaiian or Other Pacific Islander ",null,268,222]
["CA-502",2023,"People who are White ",null,3753,2974]
["CA-502",2023,"People who are Multiple Races ",null,624,457]
["CA-502",2023,"# of Adults who are Experiencing Significant Mental Illness"]
["CA-502",2023,"# of Adults who are Experiencing Substance Abuse Disorders"]
["CA-502",2023,"# of Adults who are Veterans",null,552,430]
["CA-502",2023,"# of Adults with HIV/AIDS"]
["CA-502",2023,"# of Adults who are Currently Fleeing Domestic Violence"]
["CA-502",2023,"# of Unaccompanied Youth (18- 24 years old)",null,737,574]
["CA-502",2023,"# of Parenting Youth (18-24 years old)",null,46,12]
["CA-503",2023,"All persons ",null,9281,6664]
["CA-503",2023,"Persons in HHs without children ",null,7959,6174]
["CA-503",2023,"Persons in HHs with at least 1 adult and 1 child ",null,1285,472]
["CA-503",2023,"Persons in HHs with only children ",null,37,18]
["CA-503",2023,"Woman/Girl",null,3082,1806]
["CA-503",2023,"Man/Boy",null,6006,4691]
["CA-503",2023,"People who are Transgender ",null,106,95]
["CA-503",2023,"People with No Single Gender",null,87,72]
["CA-503",2023,"People who are Questioning",null,0,0]
["CA-503",2023,"People who are Hispanic/Latino ",null,1862,1320]
["CA-503",2023,"People who are Non-Hispanic/ Non-Latino ",null,7419,5344]
["CA-503",2023,"People who are American Indian or Alaska Native ",null,682,614]
["CA-503",2023,"People who are Asian ",null,221,167]
["CA-503",2023,"People who are Black or African American ",null,2906,1870]
["CA-503",2023,"People who are Native Hawaiian or Other Pacific Islander ",null,147,117]
["CA-503",2023,"People who are White ",null,4313,3101]
["CA-503",2023,"People who are Multiple Races ",null,1012,795]
["CA-503",2023,"# of Adults who are Experiencing Significant Mental Illness"]
["CA-503",2023,"# of Adults who are Experiencing Substance Abuse Disorders"]
["CA-503",2023,"# of Adults who are Veterans",null,624,415]
["CA-503",2023,"# of Adults with HIV/AIDS"]
["CA-503",2023,"# of Adults who are Currently Fleeing Domestic Violence"]
["CA-503",2023,"# of Unaccompanied Youth (18- 24 years old)",null,505,322]
["CA-503",2023,"# of Parenting Youth (18-24 years old)",null,71,26]
["CA-504",2023,"All persons ",null,2266,1291]
["CA-504",2023,"Persons in HHs without children ",null,2059,1279]
["CA-504",2023,"Persons in HHs with at least 1 adult and 1 child ",null,203,9]
["CA-504",2023,"Persons in HHs with only children ",null,4,3]
["CA-504",2023,"Woman/Girl",null,865,458]
["CA-504",2023,"Man/Boy",null,1355,795]
["CA-504",2023,"People who are Transgender ",null,25,21]
["CA-504",2023,"People with No Single Gender",null,21,17]
["CA-504",2023,"People who are Questioning",null,0,0]
["CA-504",2023,"People who are Hispanic/Latino ",null,655,360]
["CA-504",2023,"People who are Non-Hispanic/ Non-Latino ",null,1611,931]
["CA-504",2023,"People who are American Indian or Alaska Native ",null,215,113]
["CA-504",2023,"People who are Asian ",null,38,23]
["CA-504",2023,"People who are Black or African American ",null,199,126]
["CA-504",2023,"People who are Native Hawaiian or Other Pacific Islander ",null,45,31]
["CA-504",2023,"People who are White ",null,1606,920]
["CA-504",2023,"People who are Multiple Races ",null,163,78]
["CA-504",2023,"# of Adults who are Experiencing Significant Mental Illness"]
["CA-504",2023,"# of Adults who are Experiencing Substance Abuse Disorders"]
["CA-504",2023,"# of Adults who are Veterans",null,110,74]
["CA-504",2023,"# of Adults with HIV/AIDS"]
["CA-504",2023,"# of Adults who are Currently Fleeing Domestic Violence"]
["CA-504",2023,"# of Unaccompanied Youth (18- 24 years old)",null,290,265]
["CA-504",2023,"# of Parenting Youth (18-24 years old)",null,4,3]
["CA-505",2023,"All persons ",null,2372,1653]
["CA-505",2023,"Persons in HHs without children ",null,2045,1481]
["CA-505",2023,"Persons in HHs with at least 1 adult and 1 child ",null,325,172]
["CA-505",2023,"Persons in HHs with only children ",null,2,0]
["CA-505",2023,"Woman/Girl",null,857,537]
["CA-505",2023,"Man/Boy",null,1505,1108]
["CA-505",2023,"People who are Transgender ",null,1,0]
["CA-505",2023,"People with No Single Gender",null,9,8]
["CA-505",2023,"People who are Questioning",null,0,0]
["CA-505",2023,"People who are Hispanic/Latino ",null,511,376]
["CA-505",2023,"People who are Non-Hispanic/ Non-Latino ",null,1861,1277]
["CA-505",2023,"People who are American Indian or Alaska Native ",null,208,146]
["CA-505",2023,"People who are Asian ",null,58,43]
["CA-505",2023,"People who are Black or African American ",null,706,427]
["CA-505",2023,"People who are Native Hawaiian or Other Pacific Islander ",null,63,43]
["CA-505",2023,"People who are White ",null,1217,912]
["CA-505",2023,"People who are Multiple Races ",null,120,82]
["CA-505",2023,"# of Adults who are Experiencing Significant Mental Illness"]
["CA-505",2023,"# of Adults who are Experiencing Substance Abuse Disorders"]
["CA-505",2023,"# of Adults who are Veterans",null,110,73]
["CA-505",2023,"# of Adults with HIV/AIDS"]
["CA-505",2023,"# of Adults who are Currently Fleeing Domestic Violence"]
["CA-505",2023,"# of Unaccompanied Youth (18- 24 years old)",null,82,36]
["CA-505",2023,"# of Parenting Youth (18-24 years old)",null,6,5]
["CA-506",2023,"All persons ",null,2212,1625]
["CA-506",2023,"Persons in HHs without children ",null,2013,1611]
["CA-506",2023,"Persons in HHs with at least 1 adult and 1 child ",null,196,11]
["CA-506",2023,"Persons in HHs with only children ",null,3,3]
["CA-506",2023,"Woman/Girl",null,579,308]
["CA-506",2023,"Man/Boy",null,1600,1287]
["CA-506",2023,"People who are Transgender ",null,13,12]
["CA-506",2023,"People with No Single Gender",null,18,18]
["CA-506",2023,"People who are Questioning",null,2,0]
["CA-506",2023,"People who are Hispanic/Latino ",null,1205,877]
["CA-506",2023,"People who are Non-Hispanic/ Non-Latino ",null,1007,748]
["CA-506",2023,"People who are American Indian or Alaska Native ",null,296,276]
["CA-506",2023,"People who are Asian ",null,115,95]
["CA-506",2023,"People who are Black or African American ",null,299,236]
["CA-506",2023,"People who are Native Hawaiian or Other Pacific Islander ",null,72,45]
["CA-506",2023,"People who are White ",null,1263,825]
["CA-506",2023,"People who are Multiple Races ",null,167,148]
["CA-506",2023,"# of Adults who are Experiencing Significant Mental Illness"]
["CA-506",2023,"# of Adults who are Experiencing Substance Abuse Disorders"]
["CA-506",2023,"# of Adults who are Veterans",null,143,82]
["CA-506",2023,"# of Adults with HIV/AIDS"]
["CA-506",2023,"# of Adults who are Currently Fleeing Domestic Violence"]
["CA-506",2023,"# of Unaccompanied Youth (18- 24 years old)",null,213,199]
["CA-506",2023,"# of Parenting Youth (18-24 years old)",null,0,0]
["CA-507",2023,"All persons ",null,1118,830]
["CA-507",2023,"Persons in HHs without children ",null,883,737]
["CA-507",2023,"Persons in HHs with at least 1 adult and 1 child ",null,233,91]
["CA-507",2023,"Persons in HHs with only children ",null,2,2]
["CA-507",2023,"Woman/Girl",null,429,298]
["CA-507",2023,"Man/Boy",null,665,513]
["CA-507",2023,"People who are Transgender ",null,11,7]
["CA-507",2023,"People with No Single Gender",null,13,12]
["CA-507",2023,"People who are Questioning",null,0,0]
["CA-507",2023,"People who are Hispanic/Latino ",null,280,164]
["CA-507",2023,"People who are Non-Hispanic/ Non-Latino ",null,838,666]
["CA-507",2023,"People who are American Indian or Alaska Native ",null,61,39]
["CA-507",2023,"People who are Asian ",null,33,25]
["CA-507",2023,"People who are Black or African American ",null,235,175]
["CA-507",2023,"People who are Native Hawaiian or Other Pacific Islander ",null,23,19]
["CA-507",2023,"People who are White ",null,709,525]
["CA-507",2023,"People who are Multiple Races ",null,57,47]
["CA-507",2023,"# of Adults who are Experiencing Significant Mental Illness"]
["CA-507",2023,"# of Adults who are Experiencing Substance Abuse Disorders"]
["CA-507",2023,"# of Adults who are Veterans",null,66,51]
["CA-507",2023,"# of Adults with HIV/AIDS"]
["CA-507",2023,"# of Adults who are Currently Fleeing Domestic Violence"]
["CA-507",2023,"# of Unaccompanied Youth (18- 24 years old)",null,123,118]
["CA-507",2023,"# of Parenting Youth (18-24 years old)",null,9,6]
["CA-508",2023,"All persons ",null,1804,1426]
["CA-508",2023,"Persons in HHs without children ",null,1518,1313]
["CA-508",2023,"Persons in HHs with at least 1 adult and 1 child ",null,263,91]
["CA-508",2023,"Persons in HHs with only children ",null,23,22]
["CA-508",2023,"Woman/Girl",null,568,389]
["CA-508",2023,"Man/Boy",null,1222,1026]
["CA-508",2023,"People who are Transgender ",null,5,4]
["CA-508",2023,"People with No Single Gender",null,9,7]
["CA-508",2023,"People who are Questioning",null,0,0]
["CA-508",2023,"People who are Hispanic/Latino ",null,786,592]
["CA-508",2023,"People who are Non-Hispanic/ Non-Latino ",null,1018,834]
["CA-508",2023,"People who are American Indian or Alaska Native ",null,74,33]
["CA-508",2023,"People who are Asian ",null,13,11]
["CA-508",2023,"People who are Black or African American ",null,117,102]
["CA-508",2023,"People who are Native Hawaiian or Other Pacific Islander ",null,18,17]
["CA-508",2023,"People who are White ",null,1459,1162]
["CA-508",2023,"People who are Multiple Races ",null,123,101]
["CA-508",2023,"# of Adults who are Experiencing Significant Mental Illness"]
["CA-508",2023,"# of Adults who are Experiencing Substance Abuse Disorders"]
["CA-508",2023,"# of Adults who are Veterans",null,159,139]
["CA-508",2023,"# of Adults with HIV/AIDS"]
["CA-508",2023,"# of Adults who are Currently Fleeing Domestic Violence"]
["CA-508",2023,"# of Unaccompanied Youth (18- 24 years old)",null,311,307]
["CA-508",2023,"# of Parenting Youth (18-24 years old)",null,7,0]
["CA-509",2023,"All persons ",null,633,410]
["CA-509",2023,"Persons in HHs without children ",null,560,410]
["CA-509",2023,"Persons in HHs with at least 1 adult and 1 child ",null,73,0]
["CA-509",2023,"Persons in HHs with only children ",null,0,0]
["CA-509",2023,"Woman/Girl",null,210,101]
["CA-509",2023,"Man/Boy",null,408,294]
["CA-509",2023,"People who are Transgender ",null,0,0]
["CA-509",2023,"People with No Single Gender",null,11,11]
["CA-509",2023,"People who are Questioning",null,4,4]
["CA-509",2023,"People who are Hispanic/Latino ",null,93,40]
["CA-509",2023,"People who are Non-Hispanic/ Non-Latino ",null,540,370]
["CA-509",2023,"People who are American Indian or Alaska Native ",null,90,33]
["CA-509",2023,"People who are Asian ",null,0,0]
["CA-509",2023,"People who are Black or African American ",null,11,6]
["CA-509",2023,"People who are Native Hawaiian or Other Pacific Islander ",null,12,9]
["CA-509",2023,"People who are White ",null,476,339]
["CA-509",2023,"People who are Multiple Races ",null,44,23]
["CA-509",2023,"# of Adults who are Experiencing Significant Mental Illness"]
["CA-509",2023,"# of Adults who are Experiencing Substance Abuse Disorders"]
["CA-509",2023,"# of Adults who are Veterans",null,14,8]
["CA-509",2023,"# of Adults with HIV/AIDS"]
["CA-509",2023,"# of Adults who are Currently Fleeing Domestic Violence"]
["CA-509",2023,"# of Unaccompanied Youth (18- 24 years old)",null,24,15]
["CA-509",2023,"# of Parenting Youth (18-24 years old)",null,3,0]
["CA-510",2023,"All persons ",null,2091,949]
["CA-510",2023,"Persons in HHs without children ",null,1715,936]
["CA-510",2023,"Persons in HHs with at least 1 adult and 1 child ",null,374,12]
["CA-510",2023,"Persons in HHs with only children ",null,2,1]
["CA-510",2023,"Woman/Girl",null,731,270]
["CA-510",2023,"Man/Boy",null,1345,674]
["CA-510",2023,"People who are Transgender ",null,5,2]
["CA-510",2023,"People with No Single Gender",null,10,3]
["CA-510",2023,"People who are Questioning",null,0,0]
["CA-510",2023,"People who are Hispanic/Latino ",null,774,323]
["CA-510",2023,"People who are Non-Hispanic/ Non-Latino ",null,1317,626]
["CA-510",2023,"People who are American Indian or Alaska Native ",null,111,57]
["CA-510",2023,"People who are Asian ",null,45,24]
["CA-510",2023,"People who are Black or African American ",null,262,79]
["CA-510",2023,"People who are Native Hawaiian or Other Pacific Islander ",null,48,22]
["CA-510",2023,"People who are White ",null,1488,703]
["CA-510",2023,"People who are Multiple Races ",null,137,64]
["CA-510",2023,"# of Adults who are Experiencing Significant Mental Illness"]
["CA-510",2023,"# of Adults who are Experiencing Substance Abuse Disorders"]
["CA-510",2023,"# of Adults who are Veterans",null,101,46]
["CA-510",2023,"# of Adults with HIV/AIDS"]
["CA-510",2023,"# of Adults who are Currently Fleeing Domestic Violence"]
["CA-510",2023,"# of Unaccompanied Youth (18- 24 years old)",null,90,31]
["CA-510",2023,"# of Parenting Youth (18-24 years old)",null,20,0]
["CA-511",2023,"All persons ",null,2454,1355]
["CA-511",2023,"Persons in HHs without children ",null,2072,1354]
["CA-511",2023,"Persons in HHs with at least 1 adult and 1 child ",null,352,0]
["CA-511",2023,"Persons in HHs with only children ",null,30,1]
["CA-511",2023,"Woman/Girl",null,920,459]
["CA-511",2023,"Man/Boy",null,1524,891]
["CA-511",2023,"People who are Transgender ",null,4,2]
["CA-511",2023,"People with No Single Gender",null,4,1]
["CA-511",2023,"People who are Questioning",null,2,2]
["CA-511",2023,"People who are Hispanic/Latino ",null,796,411]
["CA-511",2023,"People who are Non-Hispanic/ Non-Latino ",null,1658,944]
["CA-511",2023,"People who are American Indian or Alaska Native ",null,46,23]
["CA-511",2023,"People who are Asian ",null,64,35]
["CA-511",2023,"People who are Black or African American ",null,555,271]
["CA-511",2023,"People who are Native Hawaiian or Other Pacific Islander ",null,21,7]
["CA-511",2023,"People who are White ",null,1598,930]
["CA-511",2023,"People who are Multiple Races ",null,170,89]
["CA-511",2023,"# of Adults who are Experiencing Significant Mental Illness"]
["CA-511",2023,"# of Adults who are Experiencing Substance Abuse Disorders"]
["CA-511",2023,"# of Adults who are Veterans",null,149,90]
["CA-511",2023,"# of Adults with HIV/AIDS"]
["CA-511",2023,"# of Adults who are Currently Fleeing Domestic Violence"]
["CA-511",2023,"# of Unaccompanied Youth (18- 24 years old)",null,86,32]
["CA-511",2023,"# of Parenting Youth (18-24 years old)",null,13,0]
["CA-512",2023,"All persons ",null,1859,1092]
["CA-512",2023,"Persons in HHs without children ",null,1405,1022]
["CA-512",2023,"Persons in HHs with at least 1 adult and 1 child ",null,453,70]
["CA-512",2023,"Persons in HHs with only children ",null,1,0]
["CA-512",2023,"Woman/Girl",null,603,271]
["CA-512",2023,"Man/Boy",null,1238,805]
["CA-512",2023,"People who are Transgender ",null,10,8]
["CA-512",2023,"People with No Single Gender",null,8,8]
["CA-512",2023,"People who are Questioning",null,0,0]
["CA-512",2023,"People who are Hispanic/Latino ",null,962,574]
["CA-512",2023,"People who are Non-Hispanic/ Non-Latino ",null,897,518]
["CA-512",2023,"People who are American Indian or Alaska Native ",null,102,67]
["CA-512",2023,"People who are Asian ",null,105,72]
["CA-512",2023,"People who are Black or African American ",null,339,223]
["CA-512",2023,"People who are Native Hawaiian or Other Pacific Islander ",null,67,0]
["CA-512",2023,"People who are White ",null,1164,675]
["CA-512",2023,"People who are Multiple Races ",null,82,55]
["CA-512",2023,"# of Adults who are Experiencing Significant Mental Illness"]
["CA-512",2023,"# of Adults who are Experiencing Substance Abuse Disorders"]
["CA-512",2023,"# of Adults who are Veterans",null,93,55]
["CA-512",2023,"# of Adults with HIV/AIDS"]
["CA-512",2023,"# of Adults who are Currently Fleeing Domestic Violence"]
["CA-512",2023,"# of Unaccompanied Youth (18- 24 years old)",null,48,34]
["CA-512",2023,"# of Parenting Youth (18-24 years old)",null,9,0]
["CA-513",2023,"All persons ",null,1470,1089]
["CA-513",2023,"Persons in HHs without children ",null,1279,1009]
["CA-513",2023,"Persons in HHs with at least 1 adult and 1 child ",null,191,80]
["CA-513",2023,"Persons in HHs with only children ",null,0,0]
["CA-513",2023,"Woman/Girl",null,557,388]
["CA-513",2023,"Man/Boy",null,909,698]
["CA-513",2023,"People who are Transgender ",null,3,3]
["CA-513",2023,"People with No Single Gender",null,1,0]
["CA-513",2023,"People who are Questioning",null,0,0]
["CA-513",2023,"People who are Hispanic/Latino ",null,728,550]
["CA-513",2023,"People who are Non-Hispanic/ Non-Latino ",null,742,539]
["CA-513",2023,"People who are American Indian or Alaska Native ",null,124,101]
["CA-513",2023,"People who are Asian ",null,11,10]
["CA-513",2023,"People who are Black or African American ",null,158,115]
["CA-513",2023,"People who are Native Hawaiian or Other Pacific Islander ",null,12,9]
["CA-513",2023,"People who are White ",null,1114,815]
["CA-513",2023,"People who are Multiple Races ",null,51,39]
["CA-513",2023,"# of Adults who are Experiencing Significant Mental Illness"]
["CA-513",2023,"# of Adults who are Experiencing Substance Abuse Disorders"]
["CA-513",2023,"# of Adults who are Veterans",null,92,68]
["CA-513",2023,"# of Adults with HIV/AIDS"]
["CA-513",2023,"# of Adults who are Currently Fleeing Domestic Violence"]
["CA-513",2023,"# of Unaccompanied Youth (18- 24 years old)",null,72,40]
["CA-513",2023,"# of Parenting Youth (18-24 years old)",null,2,0]
["CA-514",2023,"All persons ",null,4493,2758]
["CA-514",2023,"Persons in HHs without children ",null,3863,2703]
["CA-514",2023,"Persons in HHs with at least 1 adult and 1 child ",null,628,53]
["CA-514",2023,"Persons in HHs with only children ",null,2,2]
["CA-514",2023,"Woman/Girl",null,1618,803]
["CA-514",2023,"Man/Boy",null,2849,1942]
["CA-514",2023,"People who are Transgender ",null,19,8]
["CA-514",2023,"People with No Single Gender",null,1,0]
["CA-514",2023,"People who are Questioning",null,6,5]
["CA-514",2023,"People who are Hispanic/Latino ",null,2308,1436]
["CA-514",2023,"People who are Non-Hispanic/ Non-Latino ",null,2185,1322]
["CA-514",2023,"People who are American Indian or Alaska Native ",null,312,238]
["CA-514",2023,"People who are Asian ",null,127,49]
["CA-514",2023,"People who are Black or African American ",null,701,372]
["CA-514",2023,"People who are Native Hawaiian or Other Pacific Islander ",null,60,48]
["CA-514",2023,"People who are White ",null,3142,1965]
["CA-514",2023,"People who are Multiple Races ",null,151,86]
["CA-514",2023,"# of Adults who are Experiencing Significant Mental Illness"]
["CA-514",2023,"# of Adults who are Experiencing Substance Abuse Disorders"]
["CA-514",2023,"# of Adults who are Veterans",null,235,170]
["CA-514",2023,"# of Adults with HIV/AIDS"]
["CA-514",2023,"# of Adults who are Currently Fleeing Domestic Violence"]
["CA-514",2023,"# of Unaccompanied Youth (18- 24 years old)",null,160,84]
["CA-514",2023,"# of Parenting Youth (18-24 years old)",null,21,2]
["CA-515",2023,"All persons ",null,709,407]
["CA-515",2023,"Persons in HHs without children ",null,642,390]
["CA-515",2023,"Persons in HHs with at least 1 adult and 1 child ",null,67,17]
["CA-515",2023,"Persons in HHs with only children ",null,0,0]
["CA-515",2023,"Woman/Girl",null,253,126]
["CA-515",2023,"Man/Boy",null,452,279]
["CA-515",2023,"People who are Transgender ",null,3,1]
["CA-515",2023,"People with No Single Gender",null,1,1]
["CA-515",2023,"People who are Questioning",null,0,0]
["CA-515",2023,"People who are Hispanic/Latino ",null,104,58]
["CA-515",2023,"People who are Non-Hispanic/ Non-Latino ",null,605,349]
["CA-515",2023,"People who are American Indian or Alaska Native ",null,19,12]
["CA-515",2023,"People who are Asian ",null,6,2]
["CA-515",2023,"People who are Black or African American ",null,40,11]
["CA-515",2023,"People who are Native Hawaiian or Other Pacific Islander ",null,10,7]
["CA-515",2023,"People who are White ",null,592,350]
["CA-515",2023,"People who are Multiple Races ",null,42,25]
["CA-515",2023,"# of Adults who are Experiencing Significant Mental Illness"]
["CA-515",2023,"# of Adults who are Experiencing Substance Abuse Disorders"]
["CA-515",2023,"# of Adults who are Veterans",null,47,32]
["CA-515",2023,"# of Adults with HIV/AIDS"]
["CA-515",2023,"# of Adults who are Currently Fleeing Domestic Violence"]
["CA-515",2023,"# of Unaccompanied Youth (18- 24 years old)",null,34,20]
["CA-515",2023,"# of Parenting Youth (18-24 years old)",null,0,0]
["CA-516",2023,"All persons ",null,2521,1434]
["CA-516",2023,"Persons in HHs without children ",null,2031,1407]
["CA-516",2023,"Persons in HHs with at least 1 adult and 1 child ",null,485,26]
["CA-516",2023,"Persons in HHs with only children ",null,5,1]
["CA-516",2023,"Woman/Girl",null,990,498]
["CA-516",2023,"Man/Boy",null,1515,925]
["CA-516",2023,"People who are Transgender ",null,5,3]
["CA-516",2023,"People with No Single Gender",null,8,6]
["CA-516",2023,"People who are Questioning",null,3,2]
["CA-516",2023,"People who are Hispanic/Latino ",null,248,98]
["CA-516",2023,"People who are Non-Hispanic/ Non-Latino ",null,2273,1336]
["CA-516",2023,"People who are American Indian or Alaska Native ",null,319,196]
["CA-516",2023,"People who are Asian ",null,25,12]
["CA-516",2023,"People who are Black or African American ",null,83,36]
["CA-516",2023,"People who are Native Hawaiian or Other Pacific Islander ",null,13,7]
["CA-516",2023,"People who are White ",null,1927,1118]
["CA-516",2023,"People who are Multiple Races ",null,154,65]
["CA-516",2023,"# of Adults who are Experiencing Significant Mental Illness"]
["CA-516",2023,"# of Adults who are Experiencing Substance Abuse Disorders"]
["CA-516",2023,"# of Adults who are Veterans",null,174,98]
["CA-516",2023,"# of Adults with HIV/AIDS"]
["CA-516",2023,"# of Adults who are Currently Fleeing Domestic Violence"]
["CA-516",2023,"# of Unaccompanied Youth (18- 24 years old)",null,138,87]
["CA-516",2023,"# of Parenting Youth (18-24 years old)",null,5,1]
["CA-517",2023,"All persons ",null,506,349]
["CA-517",2023,"Persons in HHs without children ",null,450,317]
["CA-517",2023,"Persons in HHs with at least 1 adult and 1 child ",null,50,27]
["CA-517",2023,"Persons in HHs with only children ",null,6,5]
["CA-517",2023,"Woman/Girl",null,186,122]
["CA-517",2023,"Man/Boy",null,320,227]
["CA-517",2023,"People who are Transgender ",null,0,0]
["CA-517",2023,"People with No Single Gender",null,0,0]
["CA-517",2023,"People who are Questioning",null,0,0]
["CA-517",2023,"People who are Hispanic/Latino ",null,153,102]
["CA-517",2023,"People who are Non-Hispanic/ Non-Latino ",null,353,247]
["CA-517",2023,"People who are American Indian or Alaska Native ",null,40,26]
["CA-517",2023,"People who are Asian ",null,3,3]
["CA-517",2023,"People who are Black or African American ",null,13,0]
["CA-517",2023,"People who are Native Hawaiian or Other Pacific Islander ",null,5,3]
["CA-517",2023,"People who are White ",null,414,293]
["CA-517",2023,"People who are Multiple Races ",null,31,24]
["CA-517",2023,"# of Adults who are Experiencing Significant Mental Illness"]
["CA-517",2023,"# of Adults who are Experiencing Substance Abuse Disorders"]
["CA-517",2023,"# of Adults who are Veterans",null,17,10]
["CA-517",2023,"# of Adults with HIV/AIDS"]
["CA-517",2023,"# of Adults who are Currently Fleeing Domestic Violence"]
["CA-517",2023,"# of Unaccompanied Youth (18- 24 years old)",null,29,18]
["CA-517",2023,"# of Parenting Youth (18-24 years old)",null,1,0]
["CA-518",2023,"All persons ",null,1200,920]
["CA-518",2023,"Persons in HHs without children ",null,1119,881]
["CA-518",2023,"Persons in HHs with at least 1 adult and 1 child ",null,74,32]
["CA-518",2023,"Persons in HHs with only children ",null,7,7]
["CA-518",2023,"Woman/Girl",null,392,295]
["CA-518",2023,"Man/Boy",null,787,605]
["CA-518",2023,"People who are Transgender ",null,0,0]
["CA-518",2023,"People with No Single Gender",null,11,10]
["CA-518",2023,"People who are Questioning",null,10,10]
["CA-518",2023,"People who are Hispanic/Latino ",null,212,170]
["CA-518",2023,"People who are Non-Hispanic/ Non-Latino ",null,988,750]
["CA-518",2023,"People who are American Indian or Alaska Native ",null,15,13]
["CA-518",2023,"People who are Asian ",null,21,11]
["CA-518",2023,"People who are Black or African American ",null,385,281]
["CA-518",2023,"People who are Native Hawaiian or Other Pacific Islander ",null,61,56]
["CA-518",2023,"People who are White ",null,645,512]
["CA-518",2023,"People who are Multiple Races ",null,73,47]
["CA-518",2023,"# of Adults who are Experiencing Significant Mental Illness"]
["CA-518",2023,"# of Adults who are Experiencing Substance Abuse Disorders"]
["CA-518",2023,"# of Adults who are Veterans",null,38,12]
["CA-518",2023,"# of Adults with HIV/AIDS"]
["CA-518",2023,"# of Adults who are Currently Fleeing Domestic Violence"]
["CA-518",2023,"# of Unaccompanied Youth (18- 24 years old)",null,41,24]
["CA-518",2023,"# of Parenting Youth (18-24 years old)",null,0,0]
["CA-519",2023,"All persons ",null,1237,580]
["CA-519",2023,"Persons in HHs without children ",null,1081,564]
["CA-519",2023,"Persons in HHs with at least 1 adult and 1 child ",null,153,13]
["CA-519",2023,"Persons in HHs with only children ",null,3,3]
["CA-519",2023,"Woman/Girl",null,430,159]
["CA-519",2023,"Man/Boy",null,792,414]
["CA-519",2023,"People who are Transgender ",null,6,1]
["CA-519",2023,"People with No Single Gender",null,9,6]
["CA-519",2023,"People who are Questioning",null,0,0]
["CA-519",2023,"People who are Hispanic/Latino ",null,181,96]
["CA-519",2023,"People who are Non-Hispanic/ Non-Latino ",null,1056,484]
["CA-519",2023,"People who are American Indian or Alaska Native ",null,63,36]
["CA-519",2023,"People who are Asian ",null,13,4]
["CA-519",2023,"People who are Black or African American ",null,70,39]
["CA-519",2023,"People who are Native Hawaiian or Other Pacific Islander ",null,2,1]
["CA-519",2023,"People who are White ",null,977,438]
["CA-519",2023,"People who are Multiple Races ",null,112,62]
["CA-519",2023,"# of Adults who are Experiencing Significant Mental Illness"]
["CA-519",2023,"# of Adults who are Experiencing Substance Abuse Disorders"]
["CA-519",2023,"# of Adults who are Veterans",null,72,35]
["CA-519",2023,"# of Adults with HIV/AIDS"]
["CA-519",2023,"# of Adults who are Currently Fleeing Domestic Violence"]
["CA-519",2023,"# of Unaccompanied Youth (18- 24 years old)",null,47,22]
["CA-519",2023,"# of Parenting Youth (18-24 years old)",null,6,1]
["CA-520",2023,"All persons ",null,784,390]
["CA-520",2023,"Persons in HHs without children ",null,646,387]
["CA-520",2023,"Persons in HHs with at least 1 adult and 1 child ",null,138,3]
["CA-520",2023,"Persons in HHs with only children ",null,0,0]
["CA-520",2023,"Woman/Girl",null,286,118]
["CA-520",2023,"Man/Boy",null,496,270]
["CA-520",2023,"People who are Transgender ",null,2,2]
["CA-520",2023,"People with No Single Gender",null,0,0]
["CA-520",2023,"People who are Questioning",null,0,0]
["CA-520",2023,"People who are Hispanic/Latino ",null,332,146]
["CA-520",2023,"People who are Non-Hispanic/ Non-Latino ",null,452,244]
["CA-520",2023,"People who are American Indian or Alaska Native ",null,23,16]
["CA-520",2023,"People who are Asian ",null,11,6]
["CA-520",2023,"People who are Black or African American ",null,131,65]
["CA-520",2023,"People who are Native Hawaiian or Other Pacific Islander ",null,4,2]
["CA-520",2023,"People who are White ",null,540,238]
["CA-520",2023,"People who are Multiple Races ",null,75,63]
["CA-520",2023,"# of Adults who are Experiencing Significant Mental Illness"]
["CA-520",2023,"# of Adults who are Experiencing Substance Abuse Disorders"]
["CA-520",2023,"# of Adults who are Veterans",null,29,19]
["CA-520",2023,"# of Adults with HIV/AIDS"]
["CA-520",2023,"# of Adults who are Currently Fleeing Domestic Violence"]
["CA-520",2023,"# of Unaccompanied Youth (18- 24 years old)",null,25,11]
["CA-520",2023,"# of Parenting Youth (18-24 years old)",null,11,0]
["CA-521",2023,"All persons ",null,737,378]
["CA-521",2023,"Persons in HHs without children ",null,610,372]
["CA-521",2023,"Persons in HHs with at least 1 adult and 1 child ",null,123,6]
["CA-521",2023,"Persons in HHs with only children ",null,4,0]
["CA-521",2023,"Woman/Girl",null,264,89]
["CA-521",2023,"Man/Boy",null,471,289]
["CA-521",2023,"People who are Transgender ",null,0,0]
["CA-521",2023,"People with No Single Gender",null,2,0]
["CA-521",2023,"People who are Questioning",null,0,0]
["CA-521",2023,"People who are Hispanic/Latino ",null,230,121]
["CA-521",2023,"People who are Non-Hispanic/ Non-Latino ",null,507,257]
["CA-521",2023,"People who are American Indian or Alaska Native ",null,59,52]
["CA-521",2023,"People who are Asian ",null,17,10]
["CA-521",2023,"People who are Black or African American ",null,120,47]
["CA-521",2023,"People who are Native Hawaiian or Other Pacific Islander ",null,11,7]
["CA-521",2023,"People who are White ",null,515,262]
["CA-521",2023,"People who are Multiple Races ",null,15,0]
["CA-521",2023,"# of Adults who are Experiencing Significant Mental Illness"]
["CA-521",2023,"# of Adults who are Experiencing Substance Abuse Disorders"]
["CA-521",2023,"# of Adults who are Veterans",null,20,14]
["CA-521",2023,"# of Adults with HIV/AIDS"]
["CA-521",2023,"# of Adults who are Currently Fleeing Domestic Violence"]
["CA-521",2023,"# of Unaccompanied Youth (18- 24 years old)",null,27,9]
["CA-521",2023,"# of Parenting Youth (18-24 years old)",null,3,0]
["CA-522",2023,"All persons ",null,1656,1309]
["CA-522",2023,"Persons in HHs without children ",null,1545,1291]
["CA-522",2023,"Persons in HHs with at least 1 adult and 1 child ",null,105,18]
["CA-522",2023,"Persons in HHs with only children ",null,6,0]
["CA-522",2023,"Woman/Girl",null,470,344]
["CA-522",2023,"Man/Boy",null,1171,955]
["CA-522",2023,"People who are Transgender ",null,6,5]
["CA-522",2023,"People with No Single Gender",null,8,5]
["CA-522",2023,"People who are Questioning",null,1,0]
["CA-522",2023,"People who are Hispanic/Latino ",null,121,86]
["CA-522",2023,"People who are Non-Hispanic/ Non-Latino ",null,1535,1223]
["CA-522",2023,"People who are American Indian or Alaska Native ",null,141,101]
["CA-522",2023,"People who are Asian ",null,0,0]
["CA-522",2023,"People who are Black or African American ",null,54,48]
["CA-522",2023,"People who are Native Hawaiian or Other Pacific Islander ",null,7,5]
["CA-522",2023,"People who are White ",null,1352,1074]
["CA-522",2023,"People who are Multiple Races ",null,102,81]
["CA-522",2023,"# of Adults who are Experiencing Significant Mental Illness"]
["CA-522",2023,"# of Adults who are Experiencing Substance Abuse Disorders"]
["CA-522",2023,"# of Adults who are Veterans",null,183,132]
["CA-522",2023,"# of Adults with HIV/AIDS"]
["CA-522",2023,"# of Adults who are Currently Fleeing Domestic Violence"]
["CA-522",2023,"# of Unaccompanied Youth (18- 24 years old)",null,51,38]
["CA-522",2023,"# of Parenting Youth (18-24 years old)",null,2,0]
["CA-523",2023,"All persons ",null,360,180]
["CA-523",2023,"Persons in HHs without children ",null,200,150]
["CA-523",2023,"Persons in HHs with at least 1 adult and 1 child ",null,159,29]
["CA-523",2023,"Persons in HHs with only children ",null,1,1]
["CA-523",2023,"Woman/Girl",null,154,60]
["CA-523",2023,"Man/Boy",null,206,120]
["CA-523",2023,"People who are Transgender ",null,0,0]
["CA-523",2023,"People with No Single Gender",null,0,0]
["CA-523",2023,"People who are Questioning",null,0,0]
["CA-523",2023,"People who are Hispanic/Latino ",null,68,26]
["CA-523",2023,"People who are Non-Hispanic/ Non-Latino ",null,292,154]
["CA-523",2023,"People who are American Indian or Alaska Native ",null,29,13]
["CA-523",2023,"People who are Asian ",null,12,12]
["CA-523",2023,"People who are Black or African American ",null,4,1]
["CA-523",2023,"People who are Native Hawaiian or Other Pacific Islander ",null,4,3]
["CA-523",2023,"People who are White ",null,305,147]
["CA-523",2023,"People who are Multiple Races ",null,6,4]
["CA-523",2023,"# of Adults who are Experiencing Significant Mental Illness"]
["CA-523",2023,"# of Adults who are Experiencing Substance Abuse Disorders"]
["CA-523",2023,"# of Adults who are Veterans",null,25,22]
["CA-523",2023,"# of Adults with HIV/AIDS"]
["CA-523",2023,"# of Adults who are Currently Fleeing Domestic Violence"]
["CA-523",2023,"# of Unaccompanied Youth (18- 24 years old)",null,10,9]
["CA-523",2023,"# of Parenting Youth (18-24 years old)",null,6,0]
["CA-524",2023,"All persons ",null,963,682]
["CA-524",2023,"Persons in HHs without children ",null,754,572]
["CA-524",2023,"Persons in HHs with at least 1 adult and 1 child ",null,209,110]
["CA-524",2023,"Persons in HHs with only children ",null,0,0]
["CA-524",2023,"Woman/Girl",null,373,246]
["CA-524",2023,"Man/Boy",null,584,430]
["CA-524",2023,"People who are Transgender ",null,0,0]
["CA-524",2023,"People with No Single Gender",null,3,3]
["CA-524",2023,"People who are Questioning",null,3,3]
["CA-524",2023,"People who are Hispanic/Latino ",null,152,102]
["CA-524",2023,"People who are Non-Hispanic/ Non-Latino ",null,811,580]
["CA-524",2023,"People who are American Indian or Alaska Native ",null,48,40]
["CA-524",2023,"People who are Asian ",null,10,6]
["CA-524",2023,"People who are Black or African American ",null,60,41]
["CA-524",2023,"People who are Native Hawaiian or Other Pacific Islander ",null,8,7]
["CA-524",2023,"People who are White ",null,674,483]
["CA-524",2023,"People who are Multiple Races ",null,163,105]
["CA-524",2023,"# of Adults who are Experiencing Significant Mental Illness"]
["CA-524",2023,"# of Adults who are Experiencing Substance Abuse Disorders"]
["CA-524",2023,"# of Adults who are Veterans",null,57,43]
["CA-524",2023,"# of Adults with HIV/AIDS"]
["CA-524",2023,"# of Adults who are Currently Fleeing Domestic Violence"]
["CA-524",2023,"# of Unaccompanied Youth (18- 24 years old)",null,15,12]
["CA-524",2023,"# of Parenting Youth (18-24 years old)",null,4,0]
["CA-525",2023,"All persons ",null,491,438]
["CA-525",2023,"Persons in HHs without children ",null,476,430]
["CA-525",2023,"Persons in HHs with at least 1 adult and 1 child ",null,12,8]
["CA-525",2023,"Persons in HHs with only children ",null,3,0]
["CA-525",2023,"Woman/Girl",null,156,138]
["CA-525",2023,"Man/Boy",null,318,284]
["CA-525",2023,"People who are Transgender ",null,4,4]
["CA-525",2023,"People with No Single Gender",null,4,3]
["CA-525",2023,"People who are Questioning",null,9,9]
["CA-525",2023,"People who are Hispanic/Latino ",null,27,17]
["CA-525",2023,"People who are Non-Hispanic/ Non-Latino ",null,464,421]
["CA-525",2023,"People who are American Indian or Alaska Native ",null,14,11]
["CA-525",2023,"People who are Asian ",null,9,9]
["CA-525",2023,"People who are Black or African American ",null,14,13]
["CA-525",2023,"People who are Native Hawaiian or Other Pacific Islander ",null,3,3]
["CA-525",2023,"People who are White ",null,448,399]
["CA-525",2023,"People who are Multiple Races ",null,3,3]
["CA-525",2023,"# of Adults who are Experiencing Significant Mental Illness"]
["CA-525",2023,"# of Adults who are Experiencing Substance Abuse Disorders"]
["CA-525",2023,"# of Adults who are Veterans",null,4,3]
["CA-525",2023,"# of Adults with HIV/AIDS"]
["CA-525",2023,"# of Adults who are Currently Fleeing Domestic Violence"]
["CA-525",2023,"# of Unaccompanied Youth (18- 24 years old)",null,79,73]
["CA-525",2023,"# of Parenting Youth (18-24 years old)",null,0,0]
["CA-526",2023,"All persons ",null,731,494]
["CA-526",2023,"Persons in HHs without children ",null,562,441]
["CA-526",2023,"Persons in HHs with at least 1 adult and 1 child ",null,169,53]
["CA-526",2023,"Persons in HHs with only children ",null,0,0]
["CA-526",2023,"Woman/Girl",null,313,193]
["CA-526",2023,"Man/Boy",null,413,299]
["CA-526",2023,"People who are Transgender ",null,1,0]
["CA-526",2023,"People with No Single Gender",null,2,0]
["CA-526",2023,"People who are Questioning",null,2,2]
["CA-526",2023,"People who are Hispanic/Latino ",null,88,43]
["CA-526",2023,"People who are Non-Hispanic/ Non-Latino ",null,643,451]
["CA-526",2023,"People who are American Indian or Alaska Native ",null,49,36]
["CA-526",2023,"People who are Asian ",null,1,0]
["CA-526",2023,"People who are Black or African American ",null,9,1]
["CA-526",2023,"People who are Native Hawaiian or Other Pacific Islander ",null,3,1]
["CA-526",2023,"People who are White ",null,629,423]
["CA-526",2023,"People who are Multiple Races ",null,40,33]
["CA-526",2023,"# of Adults who are Experiencing Significant Mental Illness"]
["CA-526",2023,"# of Adults who are Experiencing Substance Abuse Disorders"]
["CA-526",2023,"# of Adults who are Veterans",null,46,38]
["CA-526",2023,"# of Adults with HIV/AIDS"]
["CA-526",2023,"# of Adults who are Currently Fleeing Domestic Violence"]
["CA-526",2023,"# of Unaccompanied Youth (18- 24 years old)",null,36,22]
["CA-526",2023,"# of Parenting Youth (18-24 years old)",null,8,3]
["CA-527",2023,"All persons ",null,304,247]
["CA-527",2023,"Persons in HHs without children ",null,264,236]
["CA-527",2023,"Persons in HHs with at least 1 adult and 1 child ",null,40,11]
["CA-527",2023,"Persons in HHs with only children ",null,0,0]
["CA-527",2023,"Woman/Girl",null,116,82]
["CA-527",2023,"Man/Boy",null,188,165]
["CA-527",2023,"People who are Transgender ",null,0,0]
["CA-527",2023,"People with No Single Gender",null,0,0]
["CA-527",2023,"People who are Questioning",null,0,0]
["CA-527",2023,"People who are Hispanic/Latino ",null,71,53]
["CA-527",2023,"People who are Non-Hispanic/ Non-Latino ",null,233,194]
["CA-527",2023,"People who are American Indian or Alaska Native ",null,18,15]
["CA-527",2023,"People who are Asian ",null,0,0]
["CA-527",2023,"People who are Black or African American ",null,5,0]
["CA-527",2023,"People who are Native Hawaiian or Other Pacific Islander ",null,4,4]
["CA-527",2023,"People who are White ",null,254,208]
["CA-527",2023,"People who are Multiple Races ",null,23,20]
["CA-527",2023,"# of Adults who are Experiencing Significant Mental Illness"]
["CA-527",2023,"# of Adults who are Experiencing Substance Abuse Disorders"]
["CA-527",2023,"# of Adults who are Veterans",null,21,21]
["CA-527",2023,"# of Adults with HIV/AIDS"]
["CA-527",2023,"# of Adults who are Currently Fleeing Domestic Violence"]
["CA-527",2023,"# of Unaccompanied Youth (18- 24 years old)",null,10,8]
["CA-527",2023,"# of Parenting Youth (18-24 years old)",null,1,0]
["CA-529",2023,"All persons ",null,460,259]
["CA-529",2023,"Persons in HHs without children ",null,345,233]
["CA-529",2023,"Persons in HHs with at least 1 adult and 1 child ",null,110,21]
["CA-529",2023,"Persons in HHs with only children ",null,5,5]
["CA-529",2023,"Woman/Girl",null,191,94]
["CA-529",2023,"Man/Boy",null,268,164]
["CA-529",2023,"People who are Transgender ",null,1,1]
["CA-529",2023,"People with No Single Gender",null,0,0]
["CA-529",2023,"People who are Questioning",null,0,0]
["CA-529",2023,"People who are Hispanic/Latino ",null,79,31]
["CA-529",2023,"People who are Non-Hispanic/ Non-Latino ",null,381,228]
["CA-529",2023,"People who are American Indian or Alaska Native ",null,160,123]
["CA-529",2023,"People who are Asian ",null,1,1]
["CA-529",2023,"People who are Black or African American ",null,12,3]
["CA-529",2023,"People who are Native Hawaiian or Other Pacific Islander ",null,3,0]
["CA-529",2023,"People who are White ",null,273,129]
["CA-529",2023,"People who are Multiple Races ",null,11,3]
["CA-529",2023,"# of Adults who are Experiencing Significant Mental Illness"]
["CA-529",2023,"# of Adults who are Experiencing Substance Abuse Disorders"]
["CA-529",2023,"# of Adults who are Veterans",null,15,14]
["CA-529",2023,"# of Adults with HIV/AIDS"]
["CA-529",2023,"# of Adults who are Currently Fleeing Domestic Violence"]
["CA-529",2023,"# of Unaccompanied Youth (18- 24 years old)",null,20,18]
["CA-529",2023,"# of Parenting Youth (18-24 years old)",null,17,1]
["CA-530",2023,"All persons ",null,88,74]
["CA-530",2023,"Persons in HHs without children ",null,74,63]
["CA-530",2023,"Persons in HHs with at least 1 adult and 1 child ",null,14,11]
["CA-530",2023,"Persons in HHs with only children ",null,0,0]
["CA-530",2023,"Woman/Girl",null,26,16]
["CA-530",2023,"Man/Boy",null,61,57]
["CA-530",2023,"People who are Transgender ",null,1,1]
["CA-530",2023,"People with No Single Gender",null,0,0]
["CA-530",2023,"People who are Questioning",null,0,0]
["CA-530",2023,"People who are Hispanic/Latino ",null,17,16]
["CA-530",2023,"People who are Non-Hispanic/ Non-Latino ",null,71,58]
["CA-530",2023,"People who are American Indian or Alaska Native ",null,12,11]
["CA-530",2023,"People who are Asian ",null,0,0]
["CA-530",2023,"People who are Black or African American ",null,1,1]
["CA-530",2023,"People who are Native Hawaiian or Other Pacific Islander ",null,1,1]
["CA-530",2023,"People who are White ",null,73,61]
["CA-530",2023,"People who are Multiple Races ",null,1,0]
["CA-530",2023,"# of Adults who are Experiencing Significant Mental Illness"]
["CA-530",2023,"# of Adults who are Experiencing Substance Abuse Disorders"]
["CA-530",2023,"# of Adults who are Veterans",null,5,5]
["CA-530",2023,"# of Adults with HIV/AIDS"]
["CA-530",2023,"# of Adults who are Currently Fleeing Domestic Violence"]
["CA-530",2023,"# of Unaccompanied Youth (18- 24 years old)",null,7,7]
["CA-530",2023,"# of Parenting Youth (18-24 years old)",null,0,0]
["CA-531",2023,"All persons ",null,492,227]
["CA-531",2023,"Persons in HHs without children ",null,410,220]
["CA-531",2023,"Persons in HHs with at least 1 adult and 1 child ",null,81,7]
["CA-531",2023,"Persons in HHs with only children ",null,1,0]
["CA-531",2023,"Woman/Girl",null,151,55]
["CA-531",2023,"Man/Boy",null,338,169]
["CA-531",2023,"People who are Transgender ",null,1,1]
["CA-531",2023,"People with No Single Gender",null,2,2]
["CA-531",2023,"People who are Questioning",null,0,0]
["CA-531",2023,"People who are Hispanic/Latino ",null,48,9]
["CA-531",2023,"People who are Non-Hispanic/ Non-Latino ",null,444,218]
["CA-531",2023,"People who are American Indian or Alaska Native ",null,10,5]
["CA-531",2023,"People who are Asian ",null,2,2]
["CA-531",2023,"People who are Black or African American ",null,19,5]
["CA-531",2023,"People who are Native Hawaiian or Other Pacific Islander ",null,4,2]
["CA-531",2023,"People who are White ",null,440,203]
["CA-531",2023,"People who are Multiple Races ",null,17,10]
["CA-531",2023,"# of Adults who are Experiencing Significant Mental Illness"]
["CA-531",2023,"# of Adults who are Experiencing Substance Abuse Disorders"]
["CA-531",2023,"# of Adults who are Veterans",null,27,10]
["CA-531",2023,"# of Adults with HIV/AIDS"]
["CA-531",2023,"# of Adults who are Currently Fleeing Domestic Violence"]
["CA-531",2023,"# of Unaccompanied Youth (18- 24 years old)",null,23,9]
["CA-531",2023,"# of Parenting Youth (18-24 years old)",null,1,0]
["CA-601",2023,"All persons ",null,10264,5171]
["CA-601",2023,"Persons in HHs without children ",null,8109,5087]
["CA-601",2023,"Persons in HHs with at least 1 adult and 1 child ",null,2134,68]
["CA-601",2023,"Persons in HHs with only children ",null,21,16]
["CA-601",2023,"Woman/Girl",null,3663,1476]
["CA-601",2023,"Man/Boy",null,6461,3612]
["CA-601",2023,"People who are Transgender ",null,63,27]
["CA-601",2023,"People with No Single Gender",null,68,48]
["CA-601",2023,"People who are Questioning",null,9,8]
["CA-601",2023,"People who are Hispanic/Latino ",null,3470,1514]
["CA-601",2023,"People who are Non-Hispanic/ Non-Latino ",null,6794,3657]
["CA-601",2023,"People who are American Indian or Alaska Native ",null,289,174]
["CA-601",2023,"People who are Asian ",null,157,63]
["CA-601",2023,"People who are Black or African American ",null,2288,966]
["CA-601",2023,"People who are Native Hawaiian or Other Pacific Islander ",null,156,96]
["CA-601",2023,"People who are White ",null,5964,3065]
["CA-601",2023,"People who are Multiple Races ",null,1410,807]
["CA-601",2023,"# of Adults who are Experiencing Significant Mental Illness"]
["CA-601",2023,"# of Adults who are Experiencing Substance Abuse Disorders"]
["CA-601",2023,"# of Adults who are Veterans",null,814,473]
["CA-601",2023,"# of Adults with HIV/AIDS"]
["CA-601",2023,"# of Adults who are Currently Fleeing Domestic Violence"]
["CA-601",2023,"# of Unaccompanied Youth (18- 24 years old)",null,565,264]
["CA-601",2023,"# of Parenting Youth (18-24 years old)",null,93,5]
["CA-602",2023,"All persons ",null,6050,3057]
["CA-602",2023,"Persons in HHs without children ",null,4835,2806]
["CA-602",2023,"Persons in HHs with at least 1 adult and 1 child ",null,1204,251]
["CA-602",2023,"Persons in HHs with only children ",null,11,0]
["CA-602",2023,"Woman/Girl",null,2150,789]
["CA-602",2023,"Man/Boy",null,3862,2247]
["CA-602",2023,"People who are Transgender ",null,19,13]
["CA-602",2023,"People with No Single Gender",null,15,4]
["CA-602",2023,"People who are Questioning",null,4,4]
["CA-602",2023,"People who are Hispanic/Latino ",null,2436,1046]
["CA-602",2023,"People who are Non-Hispanic/ Non-Latino ",null,3614,2011]
["CA-602",2023,"People who are American Indian or Alaska Native ",null,207,118]
["CA-602",2023,"People who are Asian ",null,187,96]
["CA-602",2023,"People who are Black or African American ",null,530,190]
["CA-602",2023,"People who are Native Hawaiian or Other Pacific Islander ",null,70,31]
["CA-602",2023,"People who are White ",null,4337,2000]
["CA-602",2023,"People who are Multiple Races ",null,719,622]
["CA-602",2023,"# of Adults who are Experiencing Significant Mental Illness"]
["CA-602",2023,"# of Adults who are Experiencing Substance Abuse Disorders"]
["CA-602",2023,"# of Adults who are Veterans",null,238,145]
["CA-602",2023,"# of Adults with HIV/AIDS"]
["CA-602",2023,"# of Adults who are Currently Fleeing Domestic Violence"]
["CA-602",2023,"# of Unaccompanied Youth (18- 24 years old)",null,167,98]
["CA-602",2023,"# of Parenting Youth (18-24 years old)",null,42,11]
["CA-603",2023,"All persons ",null,1887,1202]
["CA-603",2023,"Persons in HHs without children ",null,1588,1135]
["CA-603",2023,"Persons in HHs with at least 1 adult and 1 child ",null,292,67]
["CA-603",2023,"Persons in HHs with only children ",null,7,0]
["CA-603",2023,"Woman/Girl",null,693,398]
["CA-603",2023,"Man/Boy",null,1162,777]
["CA-603",2023,"People who are Transgender ",null,6,2]
["CA-603",2023,"People with No Single Gender",null,17,16]
["CA-603",2023,"People who are Questioning",null,9,9]
["CA-603",2023,"People who are Hispanic/Latino ",null,807,465]
["CA-603",2023,"People who are Non-Hispanic/ Non-Latino ",null,1080,737]
["CA-603",2023,"People who are American Indian or Alaska Native ",null,82,53]
["CA-603",2023,"People who are Asian ",null,19,7]
["CA-603",2023,"People who are Black or African American ",null,130,83]
["CA-603",2023,"People who are Native Hawaiian or Other Pacific Islander ",null,11,3]
["CA-603",2023,"People who are White ",null,1571,1014]
["CA-603",2023,"People who are Multiple Races ",null,74,42]
["CA-603",2023,"# of Adults who are Experiencing Significant Mental Illness"]
["CA-603",2023,"# of Adults who are Experiencing Substance Abuse Disorders"]
["CA-603",2023,"# of Adults who are Veterans",null,82,53]
["CA-603",2023,"# of Adults with HIV/AIDS"]
["CA-603",2023,"# of Adults who are Currently Fleeing Domestic Violence"]
["CA-603",2023,"# of Unaccompanied Youth (18- 24 years old)",null,73,50]
["CA-603",2023,"# of Parenting Youth (18-24 years old)",null,8,2]
["CA-604",2023,"All persons ",null,1948,1017]
["CA-604",2023,"Persons in HHs without children ",null,1747,1002]
["CA-604",2023,"Persons in HHs with at least 1 adult and 1 child ",null,199,14]
["CA-604",2023,"Persons in HHs with only children ",null,2,1]
["CA-604",2023,"Woman/Girl",null,628,268]
["CA-604",2023,"Man/Boy",null,1312,743]
["CA-604",2023,"People who are Transgender ",null,0,0]
["CA-604",2023,"People with No Single Gender",null,7,5]
["CA-604",2023,"People who are Questioning",null,1,1]
["CA-604",2023,"People who are Hispanic/Latino ",null,791,442]
["CA-604",2023,"People who are Non-Hispanic/ Non-Latino ",null,1157,575]
["CA-604",2023,"People who are American Indian or Alaska Native ",null,36,16]
["CA-604",2023,"People who are Asian ",null,12,4]
["CA-604",2023,"People who are Black or African American ",null,306,117]
["CA-604",2023,"People who are Native Hawaiian or Other Pacific Islander ",null,12,7]
["CA-604",2023,"People who are White ",null,1503,828]
["CA-604",2023,"People who are Multiple Races ",null,79,45]
["CA-604",2023,"# of Adults who are Experiencing Significant Mental Illness"]
["CA-604",2023,"# of Adults who are Experiencing Substance Abuse Disorders"]
["CA-604",2023,"# of Adults who are Veterans",null,92,33]
["CA-604",2023,"# of Adults with HIV/AIDS"]
["CA-604",2023,"# of Adults who are Currently Fleeing Domestic Violence"]
["CA-604",2023,"# of Unaccompanied Youth (18- 24 years old)",null,109,48]
["CA-604",2023,"# of Parenting Youth (18-24 years old)",null,9,1]
["CA-608",2023,"All persons ",null,3725,2441]
["CA-608",2023,"Persons in HHs without children ",null,3234,2418]
["CA-608",2023,"Persons in HHs with at least 1 adult and 1 child ",null,479,20]
["CA-608",2023,"Persons in HHs with only children ",null,12,3]
["CA-608",2023,"Woman/Girl",null,1244,694]
["CA-608",2023,"Man/Boy",null,2458,1730]
["CA-608",2023,"People who are Transgender ",null,4,4]
["CA-608",2023,"People with No Single Gender",null,14,10]
["CA-608",2023,"People who are Questioning",null,5,3]
["CA-608",2023,"People who are Hispanic/Latino ",null,1469,914]
["CA-608",2023,"People who are Non-Hispanic/ Non-Latino ",null,2256,1527]
["CA-608",2023,"People who are American Indian or Alaska Native ",null,114,73]
["CA-608",2023,"People who are Asian ",null,54,37]
["CA-608",2023,"People who are Black or African American ",null,657,377]
["CA-608",2023,"People who are Native Hawaiian or Other Pacific Islander ",null,50,28]
["CA-608",2023,"People who are White ",null,2546,1665]
["CA-608",2023,"People who are Multiple Races ",null,304,261]
["CA-608",2023,"# of Adults who are Experiencing Significant Mental Illness"]
["CA-608",2023,"# of Adults who are Experiencing Substance Abuse Disorders"]
["CA-608",2023,"# of Adults who are Veterans",null,252,198]
["CA-608",2023,"# of Adults with HIV/AIDS"]
["CA-608",2023,"# of Adults who are Currently Fleeing Domestic Violence"]
["CA-608",2023,"# of Unaccompanied Youth (18- 24 years old)",null,222,171]
["CA-608",2023,"# of Parenting Youth (18-24 years old)",null,6,3]
["CA-609",2023,"All persons ",null,4195,2976]
["CA-609",2023,"Persons in HHs without children ",null,3667,2934]
["CA-609",2023,"Persons in HHs with at least 1 adult and 1 child ",null,509,31]
["CA-609",2023,"Persons in HHs with only children ",null,19,11]
["CA-609",2023,"Woman/Girl",null,1480,851]
["CA-609",2023,"Man/Boy",null,2693,2107]
["CA-609",2023,"People who are Transgender ",null,5,3]
["CA-609",2023,"People with No Single Gender",null,17,15]
["CA-609",2023,"People who are Questioning",null,0,0]
["CA-609",2023,"People who are Hispanic/Latino ",null,1629,1119]
["CA-609",2023,"People who are Non-Hispanic/ Non-Latino ",null,2566,1857]
["CA-609",2023,"People who are American Indian or Alaska Native ",null,149,113]
["CA-609",2023,"People who are Asian ",null,45,37]
["CA-609",2023,"People who are Black or African American ",null,1050,639]
["CA-609",2023,"People who are Native Hawaiian or Other Pacific Islander ",null,41,37]
["CA-609",2023,"People who are White ",null,2294,1603]
["CA-609",2023,"People who are Multiple Races ",null,616,547]
["CA-609",2023,"# of Adults who are Experiencing Significant Mental Illness"]
["CA-609",2023,"# of Adults who are Experiencing Substance Abuse Disorders"]
["CA-609",2023,"# of Adults who are Veterans",null,231,203]
["CA-609",2023,"# of Adults with HIV/AIDS"]
["CA-609",2023,"# of Adults who are Currently Fleeing Domestic Violence"]
["CA-609",2023,"# of Unaccompanied Youth (18- 24 years old)",null,225,150]
["CA-609",2023,"# of Parenting Youth (18-24 years old)",null,24,0]
["CA-611",2023,"All persons ",null,2441,1633]
["CA-611",2023,"Persons in HHs without children ",null,2216,1611]
["CA-611",2023,"Persons in HHs with at least 1 adult and 1 child ",null,219,22]
["CA-611",2023,"Persons in HHs with only children ",null,6,0]
["CA-611",2023,"Woman/Girl",null,796,407]
["CA-611",2023,"Man/Boy",null,1635,1224]
["CA-611",2023,"People who are Transgender ",null,8,2]
["CA-611",2023,"People with No Single Gender",null,2,0]
["CA-611",2023,"People who are Questioning",null,0,0]
["CA-611",2023,"People who are Hispanic/Latino ",null,1166,783]
["CA-611",2023,"People who are Non-Hispanic/ Non-Latino ",null,1275,850]
["CA-611",2023,"People who are American Indian or Alaska Native ",null,57,44]
["CA-611",2023,"People who are Asian ",null,9,6]
["CA-611",2023,"People who are Black or African American ",null,188,117]
["CA-611",2023,"People who are Native Hawaiian or Other Pacific Islander ",null,57,11]
["CA-611",2023,"People who are White ",null,1969,1331]
["CA-611",2023,"People who are Multiple Races ",null,161,124]
["CA-611",2023,"# of Adults who are Experiencing Significant Mental Illness"]
["CA-611",2023,"# of Adults who are Experiencing Substance Abuse Disorders"]
["CA-611",2023,"# of Adults who are Veterans",null,180,134]
["CA-611",2023,"# of Adults with HIV/AIDS"]
["CA-611",2023,"# of Adults who are Currently Fleeing Domestic Violence"]
["CA-611",2023,"# of Unaccompanied Youth (18- 24 years old)",null,79,52]
["CA-611",2023,"# of Parenting Youth (18-24 years old)",null,0,0]
["CA-613",2023,"All persons ",null,1303,1146]
["CA-613",2023,"Persons in HHs without children ",null,1218,1106]
["CA-613",2023,"Persons in HHs with at least 1 adult and 1 child ",null,85,40]
["CA-613",2023,"Persons in HHs with only children ",null,0,0]
["CA-613",2023,"Woman/Girl",null,385,332]
["CA-613",2023,"Man/Boy",null,880,776]
["CA-613",2023,"People who are Transgender ",null,11,11]
["CA-613",2023,"People with No Single Gender",null,27,27]
["CA-613",2023,"People who are Questioning",null,0,0]
["CA-613",2023,"People who are Hispanic/Latino ",null,380,247]
["CA-613",2023,"People who are Non-Hispanic/ Non-Latino ",null,923,899]
["CA-613",2023,"People who are American Indian or Alaska Native ",null,36,35]
["CA-613",2023,"People who are Asian ",null,3,3]
["CA-613",2023,"People who are Black or African American ",null,25,22]
["CA-613",2023,"People who are Native Hawaiian or Other Pacific Islander ",null,4,3]
["CA-613",2023,"People who are White ",null,1122,974]
["CA-613",2023,"People who are Multiple Races ",null,113,109]
["CA-613",2023,"# of Adults who are Experiencing Significant Mental Illness"]
["CA-613",2023,"# of Adults who are Experiencing Substance Abuse Disorders"]
["CA-613",2023,"# of Adults who are Veterans",null,142,141]
["CA-613",2023,"# of Adults with HIV/AIDS"]
["CA-613",2023,"# of Adults who are Currently Fleeing Domestic Violence"]
["CA-613",2023,"# of Unaccompanied Youth (18- 24 years old)",null,47,22]
["CA-613",2023,"# of Parenting Youth (18-24 years old)",null,1,1]
["CA-614",2023,"All persons ",null,1532,1156]
["CA-614",2023,"Persons in HHs without children ",null,1090,885]
["CA-614",2023,"Persons in HHs with at least 1 adult and 1 child ",null,425,264]
["CA-614",2023,"Persons in HHs with only children ",null,17,7]
["CA-614",2023,"Woman/Girl",null,682,488]
["CA-614",2023,"Man/Boy",null,829,649]
["CA-614",2023,"People who are Transgender ",null,0,0]
["CA-614",2023,"People with No Single Gender",null,21,19]
["CA-614",2023,"People who are Questioning",null,0,0]
["CA-614",2023,"People who are Hispanic/Latino ",null,501,363]
["CA-614",2023,"People who are Non-Hispanic/ Non-Latino ",null,1031,793]
["CA-614",2023,"People who are American Indian or Alaska Native ",null,80,67]
["CA-614",2023,"People who are Asian ",null,14,8]
["CA-614",2023,"People who are Black or African American ",null,61,33]
["CA-614",2023,"People who are Native Hawaiian or Other Pacific Islander ",null,17,12]
["CA-614",2023,"People who are White ",null,1282,986]
["CA-614",2023,"People who are Multiple Races ",null,78,50]
["CA-614",2023,"# of Adults who are Experiencing Significant Mental Illness"]
["CA-614",2023,"# of Adults who are Experiencing Substance Abuse Disorders"]
["CA-614",2023,"# of Adults who are Veterans",null,21,14]
["CA-614",2023,"# of Adults with HIV/AIDS"]
["CA-614",2023,"# of Adults who are Currently Fleeing Domestic Violence"]
["CA-614",2023,"# of Unaccompanied Youth (18- 24 years old)",null,63,51]
["CA-614",2023,"# of Parenting Youth (18-24 years old)",null,5,0]
["LA County",2023,"All persons ",null,75518,55181]
["LA County",2023,"Persons in HHs without children ",null,64713,52024]
["LA County",2023,"Persons in HHs with at least 1 adult and 1 child ",null,10712,3138]
["LA County",2023,"Persons in HHs with only children ",null,93,19]
["LA County",2023,"Woman/Girl",null,23308,14356]
["LA County",2023,"Man/Boy",null,50327,39284]
["LA County",2023,"People who are Transgender ",null,1162,941]
["LA County",2023,"People with No Single Gender",null,610,516]
["LA County",2023,"People who are Questioning",null,111,84]
["LA County",2023,"People who are Hispanic/Latino ",null,31859,23825]
["LA County",2023,"People who are Non-Hispanic/ Non-Latino ",null,43659,31356]
["LA County",2023,"People who are American Indian or Alaska Native ",null,2773,2342]
["LA County",2023,"People who are Asian ",null,3905,3605]
["LA County",2023,"People who are Black or African American ",null,32263,22526]
["LA County",2023,"People who are Native Hawaiian or Other Pacific Islander ",null,1500,1364]
["LA County",2023,"People who are White ",null,31126,21921]
["LA County",2023,"People who are Multiple Races ",null,3951,3423]
["LA County",2023,"# of Adults who are Experiencing Significant Mental Illness"]
["LA County",2023,"# of Adults who are Experiencing Substance Abuse Disorders"]
["LA County",2023,"# of Adults who are Veterans",null,4282,3078]
["LA County",2023,"# of Adults with HIV/AIDS"]
["LA County",2023,"# of Adults who are Currently Fleeing Domestic Violence"]
["LA County",2023,"# of Unaccompanied Youth (18- 24 years old)",null,2954,1805]
["LA County",2023,"# of Parenting Youth (18-24 years old)",null,519,278]

{"sheet":"CoC List","index":2,"n_rows":43,"n_cols":3,"rows_kept":43,"cut":false,"hidden":true,"merged":[]}
["CoC",null,"Year"]
[]
["CA-500",null,2022]
["CA-501",null,2023]
["CA-502"]
["CA-503"]
["CA-504"]
["CA-505"]
["CA-506"]
["CA-507"]
["CA-508"]
["CA-509"]
["CA-510"]
["CA-511"]
["CA-512"]
["CA-513"]
["CA-514"]
["CA-515"]
["CA-516"]
["CA-517"]
["CA-518"]
["CA-519"]
["CA-520"]
["CA-521"]
["CA-522"]
["CA-523"]
["CA-524"]
["CA-525"]
["CA-526"]
["CA-527"]
["CA-529"]
["CA-530"]
["CA-531"]
["CA-601"]
["CA-602"]
["CA-603"]
["CA-604"]
["CA-608"]
["CA-609"]
["CA-611"]
["CA-613"]
["CA-614"]
["LA County"]

{"sheet":"Identifying Populations","index":3,"n_rows":111,"n_cols":11,"rows_kept":111,"cut":false,"hidden":false,"merged":[[96,2,96,10],[103,2,103,10],[30,2,31,9],[0,1,0,11],[2,2,2,11],[3,2,3,9],[29,2,29,9],[1,2,1,9],[81,0,81,1],[80,0,80,1],[82,2,82,10],[87,2,87,10],[93,2,93,10]]}
[null,"Identifying underserved & disproportionately impacted populations"]
[null,null,"Before using these charts, please follow the instructions to select a year, to select a CoC, and to paste your data from your CA SPM Data Report beginning in row 84."]
[null,null,"Identify underserved or disproportionately impacted racial and ethnic subpopulations."]
[null,null,"This chart shows the representation of people with different racial identities among all people in the CoC, among all people experiencing homelessness, among all people accessing services while experiencing homelessness, and among all people exiting homelessness into permanent housing. It also shows the representation of people who are Non-Hispanic/Non-Latino, and people who are Hispanic/Latino. Please note that people who are grouped as \"Non-Hispanic/Non-Latino\" or \"Hispanic/Latino\" can also be counted in a racial subpopulation. \n\nIf a subpopulation's percentage of persons experiencing homelessness at a point in time (the light purple bar) is larger than its percentage of the CoC's population (the dark blue bar), the subpopulation could be disproportionately impacted by homelessness.\n\nIf a subpopulation's percentage of persons accessing services while experiencing homelessness (the red bar) is smaller than its percentage of the population experiencing homelessness at a point in time (the light purple bar), the subpopulation could be underserved.\n\nIf a subpopulation's percentage of persons exiting homelessness into permanent housing (the pink bar) is smaller than its percentage of the population accessing services, and/or smaller than the its percentage of the population experiencing homelessness, the subpopulation could be experiencing barriers to exiting homelessness."]
[]
[]
[]
[]
[]
[]
[]
[]
[]
[]
[]
[]
[]
[]
[]
[]
[]
[]
[]
[]
[]
[]
[]
[]
[null,null,"Identify underserved subpopulations by distinct experience, gender, and household composition."]
[null,null,"These charts shows the representation of people with distinct experiences and/or demographic characteristics among all people experiencing homelessness, among all people accessing services while experiencing homelessness, and among all people exiting homelessness into permanent housing.\n"]
[null,null,"Note: PIT data is not collected in all CoCs about adults who are currently fleeing domestic violence, adults with HIV/AIDS, adults who are experiencing substance abuse disorders, or adults who are experiencing significant mental illness, so these charts do not show the representation of these populations among all people experiencing homelessness."]
[]
[]
[]
[]
[]
[]
[]
[]
[]
[]
[]
[]
[]
[]
[]
[]
[]
[]
[]
[]
[]
[]
[]
[]
[]
[]
[]
[]
[]
[]
[]
[]
[]
[]
[]
[]
[]
[]
[]
[]
[]
[]
[]
[]
[]
[]
[]
[]
[]
["Select a year for PIT data:",null,null,null,null,"Copy data from the Measure 7 section of the \"Detail - 2022\" tab (column D, rows 78-121) in your CA SPM Report.","Copy data from the Measure 7 section of the \"Detail - 2022\" tab (column J, rows 78-121) in your CA SPM Report."]
["Select your CoC:",null,null,"All People","People experiencing homelessness at a point in time","People accessing services who are experiencing homelessness","People exiting homelessness into permanent housing","% of CoC's population","% of persons experiencing homelessness","% of persons accessing services who are experiencing homelessness","% of persons exiting homelessness into permanent housing"]
[null,null,"Household Composition (rows 78-81 in Measure 7):"]
[null,null,"All persons ",{"$f":"IFERROR(INDEX('Data for Populations'!$D$4:$D$987,MATCH(1,('Data for Populations'!$A$4:$A$987='Identifying Populations'!$C$82)*('Data for Populations'!$C$4:$C$987='Identifying Populations'!$C84),0)),\"\")","v":""},{"$f":"IFERROR(INDEX('Data for Populations'!$E$4:$E$1971,MATCH(1,('Data for Populations'!$A$4:$A$1971='Identifying Populations'!$C$82)*('Data for Populations'!$C$4:$C$1971='Identifying Populations'!$C84)*('Data for Populations'!$B$4:$B$1971='Identifying Populations'!$C$81),0)),\"\")","v":""}]
[null,null,"Persons in HHs without children ","-",{"$f":"IFERROR(INDEX('Data for Populations'!$E$4:$E$1971,MATCH(1,('Data for Populations'!$A$4:$A$1971='Identifying Populations'!$C$82)*('Data for Populations'!$C$4:$C$1971='Identifying Populations'!$C85)*('Data for Populations'!$B$4:$B$1971='Identifying Populations'!$C$81),0)),\"\")","v":""},null,null,null,{"$f":"IFERROR(E85/E$84,\"\")","v":""},{"$f":"IFERROR(F85/F$84,\"\")","v":""},{"$f":"IFERROR(G85/G$84,\"\")","v":""}]
[null,null,"Persons in HHs with at least 1 adult and 1 child ","-",{"$f":"IFERROR(INDEX('Data for Populations'!$E$4:$E$1971,MATCH(1,('Data for Populations'!$A$4:$A$1971='Identifying Populations'!$C$82)*('Data for Populations'!$C$4:$C$1971='Identifying Populations'!$C86)*('Data for Populations'!$B$4:$B$1971='Identifying Populations'!$C$81),0)),\"\")","v":""},null,null,null,{"$f":"IFERROR(E86/E$84,\"\")","v":""},{"$f":"IFERROR(F86/F$84,\"\")","v":""},{"$f":"IFERROR(G86/G$84,\"\")","v":""}]
[null,null,"Persons in HHs with only children ","-",{"$f":"IFERROR(INDEX('Data for Populations'!$E$4:$E$1971,MATCH(1,('Data for Populations'!$A$4:$A$1971='Identifying Populations'!$C$82)*('Data for Populations'!$C$4:$C$1971='Identifying Populations'!$C87)*('Data for Populations'!$B$4:$B$1971='Identifying Populations'!$C$81),0)),\"\")","v":""},null,null,null,"","",""]
[null,null,"Gender (rows 83-87 in Measure 7):"]
[null,null,"Woman/Girl","-",{"$f":"IFERROR(INDEX('Data for Populations'!$E$4:$E$1971,MATCH(1,('Data for Populations'!$A$4:$A$1971='Identifying Populations'!$C$82)*('Data for Populations'!$C$4:$C$1971='Identifying Populations'!$C89)*('Data for Populations'!$B$4:$B$1971='Identifying Populations'!$C$81),0)),\"\")","v":""},null,null,null,"","",""]
[null,null,"Man/Boy","-",{"$f":"IFERROR(INDEX('Data for Populations'!$E$4:$E$1971,MATCH(1,('Data for Populations'!$A$4:$A$1971='Identifying Populations'!$C$82)*('Data for Populations'!$C$4:$C$1971='Identifying Populations'!$C90)*('Data for Populations'!$B$4:$B$1971='Identifying Populations'!$C$81),0)),\"\")","v":""},null,null,null,"","",""]
[null,null,"People who are Transgender ","-",{"$f":"IFERROR(INDEX('Data for Populations'!$E$4:$E$1971,MATCH(1,('Data for Populations'!$A$4:$A$1971='Identifying Populations'!$C$82)*('Data for Populations'!$C$4:$C$1971='Identifying Populations'!$C91)*('Data for Populations'!$B$4:$B$1971='Identifying Populations'!$C$81),0)),\"\")","v":""},null,null,null,"","",""]
[null,null,"People with No Single Gender","-",{"$f":"IFERROR(INDEX('Data for Populations'!$E$4:$E$1971,MATCH(1,('Data for Populations'!$A$4:$A$1971='Identifying Populations'!$C$82)*('Data for Populations'!$C$4:$C$1971='Identifying Populations'!$C92)*('Data for Populations'!$B$4:$B$1971='Identifying Populations'!$C$81),0)),\"\")","v":""},null,null,null,"","",""]
[null,null,"People who are Questioning","-",{"$f":"IFERROR(INDEX('Data for Populations'!$E$4:$E$1971,MATCH(1,('Data for Populations'!$A$4:$A$1971='Identifying Populations'!$C$82)*('Data for Populations'!$C$4:$C$1971='Identifying Populations'!$C93)*('Data for Populations'!$B$4:$B$1971='Identifying Populations'!$C$81),0)),\"\")","v":""},null,null,null,"","",""]
[null,null,"Ethnicity (rows 90-91 in Measure 7):"]
[null,null,"People who are Hispanic/Latino ",{"$f":"IFERROR(INDEX('Data for Populations'!$D$4:$D$987,MATCH(1,('Data for Populations'!$A$4:$A$987='Identifying Populations'!$C$82)*('Data for Populations'!$C$4:$C$987='Identifying Populations'!$C95),0)),\"\")","v":""},{"$f":"IFERROR(INDEX('Data for Populations'!$E$4:$E$1971,MATCH(1,('Data for Populations'!$A$4:$A$1971='Identifying Populations'!$C$82)*('Data for Populations'!$C$4:$C$1971='Identifying Populations'!$C95)*('Data for Populations'!$B$4:$B$1971='Identifying Populations'!$C$81),0)),\"\")","v":""},null,null,{"$f":"IFERROR(D95/D$84,\"\")","v":""},"","",""]
[null,null,"People who are Non-Hispanic/ Non-Latino ",{"$f":"IFERROR(INDEX('Data for Populations'!$D$4:$D$987,MATCH(1,('Data for Populations'!$A$4:$A$987='Identifying Populations'!$C$82)*('Data for Populations'!$C$4:$C$987='Identifying Populations'!$C96),0)),\"\")","v":""},{"$f":"IFERROR(INDEX('Data for Populations'!$E$4:$E$1971,MATCH(1,('Data for Populations'!$A$4:$A$1971='Identifying Populations'!$C$82)*('Data for Populations'!$C$4:$C$1971='Identifying Populations'!$C96)*('Data for Populations'!$B$4:$B$1971='Identifying Populations'!$C$81),0)),\"\")","v":""},null,null,{"$f":"IFERROR(D96/D$84,\"\")","v":""},"","",""]
[null,null,"Race (rows 93-98 in Measure 7):"]
[null,null,"People who are American Indian or Alaska Native ",{"$f":"IFERROR(INDEX('Data for Populations'!$D$4:$D$987,MATCH(1,('Data for Populations'!$A$4:$A$987='Identifying Populations'!$C$82)*('Data for Populations'!$C$4:$C$987='Identifying Populations'!$C98),0)),\"\")","v":""},{"$f":"IFERROR(INDEX('Data for Populations'!$E$4:$E$1971,MATCH(1,('Data for Populations'!$A$4:$A$1971='Identifying Populations'!$C$82)*('Data for Populations'!$C$4:$C$1971='Identifying Populations'!$C98)*('Data for Populations'!$B$4:$B$1971='Identifying Populations'!$C$81),0)),\"\")","v":""},null,null,{"$f":"IFERROR(D98/D$84,\"\")","v":""},"","",""]
[null,null,"People who are Asian ",{"$f":"IFERROR(INDEX('Data for Populations'!$D$4:$D$987,MATCH(1,('Data for Populations'!$A$4:$A$987='Identifying Populations'!$C$82)*('Data for Populations'!$C$4:$C$987='Identifying Populations'!$C99),0)),\"\")","v":""},{"$f":"IFERROR(INDEX('Data for Populations'!$E$4:$E$1971,MATCH(1,('Data for Populations'!$A$4:$A$1971='Identifying Populations'!$C$82)*('Data for Populations'!$C$4:$C$1971='Identifying Populations'!$C99)*('Data for Populations'!$B$4:$B$1971='Identifying Populations'!$C$81),0)),\"\")","v":""},null,null,"","","",""]
[null,null,"People who are Black or African American ",{"$f":"IFERROR(INDEX('Data for Populations'!$D$4:$D$987,MATCH(1,('Data for Populations'!$A$4:$A$987='Identifying Populations'!$C$82)*('Data for Populations'!$C$4:$C$987='Identifying Populations'!$C100),0)),\"\")","v":""},{"$f":"IFERROR(INDEX('Data for Populations'!$E$4:$E$1971,MATCH(1,('Data for Populations'!$A$4:$A$1971='Identifying Populations'!$C$82)*('Data for Populations'!$C$4:$C$1971='Identifying Populations'!$C100)*('Data for Populations'!$B$4:$B$1971='Identifying Populations'!$C$81),0)),\"\")","v":""},null,null,"","","",""]
[null,null,"People who are Native Hawaiian or Other Pacific Islander ",{"$f":"IFERROR(INDEX('Data for Populations'!$D$4:$D$987,MATCH(1,('Data for Populations'!$A$4:$A$987='Identifying Populations'!$C$82)*('Data for Populations'!$C$4:$C$987='Identifying Populations'!$C101),0)),\"\")","v":""},{"$f":"IFERROR(INDEX('Data for Populations'!$E$4:$E$1971,MATCH(1,('Data for Populations'!$A$4:$A$1971='Identifying Populations'!$C$82)*('Data for Populations'!$C$4:$C$1971='Identifying Populations'!$C101)*('Data for Populations'!$B$4:$B$1971='Identifying Populations'!$C$81),0)),\"\")","v":""},null,null,"","","",""]
[null,null,"People who are White ",{"$f":"IFERROR(INDEX('Data for Populations'!$D$4:$D$987,MATCH(1,('Data for Populations'!$A$4:$A$987='Identifying Populations'!$C$82)*('Data for Populations'!$C$4:$C$987='Identifying Populations'!$C102),0)),\"\")","v":""},{"$f":"IFERROR(INDEX('Data for Populations'!$E$4:$E$1971,MATCH(1,('Data for Populations'!$A$4:$A$1971='Identifying Populations'!$C$82)*('Data for Populations'!$C$4:$C$1971='Identifying Populations'!$C102)*('Data for Populations'!$B$4:$B$1971='Identifying Populations'!$C$81),0)),\"\")","v":""},null,null,"","","",""]
[null,null,"People who are Multiple Races ",{"$f":"IFERROR(INDEX('Data for Populations'!$D$4:$D$987,MATCH(1,('Data for Populations'!$A$4:$A$987='Identifying Populations'!$C$82)*('Data for Populations'!$C$4:$C$987='Identifying Populations'!$C103),0)),\"\")","v":""},{"$f":"IFERROR(INDEX('Data for Populations'!$E$4:$E$1971,MATCH(1,('Data for Populations'!$A$4:$A$1971='Identifying Populations'!$C$82)*('Data for Populations'!$C$4:$C$1971='Identifying Populations'!$C103)*('Data for Populations'!$B$4:$B$1971='Identifying Populations'!$C$81),0)),\"\")","v":""},null,null,"","","",""]
[null,null,"Various Sub-Populations & Other Characteristics (rows 115-121 in Measure 7):"]
[null,null,"# of Adults who are Experiencing Significant Mental Illness","-","-",null,null,null,"","",""]
[null,null,"# of Adults who are Experiencing Substance Abuse Disorders","-","-",null,null,null,"","",""]
[null,null,"# of Adults who are Veterans","-",{"$f":"IFERROR(INDEX('Data for Populations'!$E$4:$E$1971,MATCH(1,('Data for Populations'!$A$4:$A$1971='Identifying Populations'!$C$82)*('Data for Populations'!$C$4:$C$1971='Identifying Populations'!$C107)*('Data for Populations'!$B$4:$B$1971='Identifying Populations'!$C$81),0)),\"\")","v":""},null,null,null,"","",""]
[null,null,"# of Adults with HIV/AIDS","-","-",null,null,null,{"$f":"IFERROR(E108/E$84,\"\")","v":""},"",""]
[null,null,"# of Adults who are Currently Fleeing Domestic Violence","-","-",null,null,null,"","",""]
[null,null,"# of Unaccompanied Youth (18- 24 years old)","-",{"$f":"IFERROR(INDEX('Data for Populations'!$E$4:$E$1971,MATCH(1,('Data for Populations'!$A$4:$A$1971='Identifying Populations'!$C$82)*('Data for Populations'!$C$4:$C$1971='Identifying Populations'!$C110)*('Data for Populations'!$B$4:$B$1971='Identifying Populations'!$C$81),0)),\"\")","v":""},null,null,null,"","",""]
[null,null,"# of Parenting Youth (18-24 years old)","-",{"$f":"IFERROR(INDEX('Data for Populations'!$E$4:$E$1971,MATCH(1,('Data for Populations'!$A$4:$A$1971='Identifying Populations'!$C$82)*('Data for Populations'!$C$4:$C$1971='Identifying Populations'!$C111)*('Data for Populations'!$B$4:$B$1971='Identifying Populations'!$C$81),0)),\"\")","v":""},null,null,null,"","",""]

{"sheet":"1a","index":4,"n_rows":64,"n_cols":29,"rows_kept":64,"cut":false,"hidden":false,"merged":[[63,3,63,18],[47,3,47,11],[49,3,49,11],[52,3,52,11],[58,6,58,9],[59,3,59,4],[59,6,59,9],[60,3,60,4],[60,6,60,9],[48,3,48,11],[42,3,42,4],[42,6,42,9],[43,3,43,4],[43,6,43,9],[44,3,44,4],[41,6,41,9],[13,3,13,11],[15,3,15,11],[21,6,21,9],[22,3,22,4],[22,6,22,9],[23,3,23,4],[23,6,23,9],[26,3,26,11],[29,1,29,19],[32,3,32,11],[35,3,35,9],[38,3,38,11],[31,13,31,18],[9,3,9,4],[1,1,1,19],[6,6,6,9],[7,3,7,4],[8,3,8,4],[8,6,8,9],[7,6,7,9]]}
[]
[null,"CA SPM 1a: Number of people accessing services who are experiencing homelessness"]
[]
[null,"①",null,"Enter CA SPM 1a from CY2020, CY2021, and CY2022 in the \"Topline\" tab into the highlighted cells."]
[null,null,null,"CY2020","CY2021","CY2022","CY2023","CY2024","CY2025","CY2026"]
[null,null,null,null,null,null,{"$f":"G11","v":{"$error":"#N/A"}},{"$f":"H11","v":{"$error":"#N/A"}},{"$f":"I11","v":{"$error":"#N/A"}},{"$f":"J11","v":{"$error":"#N/A"}}]
[null,null,null,{"$f":"IF(OR($D$6=\"\",$E$6=\"\",$F$6=\"\"),NA(),D6)","v":{"$error":"#N/A"}},{"$f":"IF(OR($D$6=\"\",$E$6=\"\",$F$6=\"\"),NA(),E6)","v":{"$error":"#N/A"}},{"$f":"IF(OR($D$6=\"\",$E$6=\"\",$F$6=\"\"),NA(),F6)","v":{"$error":"#N/A"}},{"$f":"IF(OR(F6=\"\",E6=\"\",D6=\"\"),\"\",\"Projections based on average annual change of \"&(F6-D6)/2&\" individuals\")","v":""}]
[null,null,null,"projected average annual rate of change\n2022 - 2026:",null,{"$f":"IFERROR(IF(OR(D6=\"\", E6=\"\", F6=\"\"), NA(), AVERAGE(((G6-F6)/F6),((H6-G6)/G6),((I6-H6)/H6),((J6-I6)/I6))), \"\")","v":""},"Annual change calculation: (CY2022 - CY2020) / 2 + prior CY"]
[null,null,null,"% change 2020 - 2022: ",null,{"$f":"IFERROR(IF(OR(D6=\"\", E6=\"\", F6=\"\"), NA(), (F6-D6)/D6), \"\")","v":""}]
[null,null,null,"% change 2022 - 2026: ",null,{"$f":"IFERROR(IF(OR(D6=\"\", E6=\"\", F6=\"\"), NA(), (J6-F6)/F6), \"\")","v":""}]
[null,null,null,null,null,{"$f":"IF(OR(F6=\"\", E6=\"\", D6=\"\"), NA(), F6)","v":{"$error":"#N/A"}},{"$f":"(F6-D6)/2+F11","v":{"$error":"#N/A"}},{"$f":"(F6-D6)/2+G11","v":{"$error":"#N/A"}},{"$f":"(F6-D6)/2+H11","v":{"$error":"#N/A"}},{"$f":"(F6-D6)/2+I11","v":{"$error":"#N/A"}}]
[null,null,null,null,null,{"$f":"F11","v":{"$error":"#N/A"}},{"$f":"IF($D$21=\"\",NA(),F12+(($D$21-$F$6)/4))","v":{"$error":"#N/A"}},{"$f":"IF($D$21=\"\",NA(),G12+(($D$21-$F$6)/4))","v":{"$error":"#N/A"}},{"$f":"IF($D$21=\"\",NA(),H12+(($D$21-$F$6)/4))","v":{"$error":"#N/A"}},{"$f":"IF($D$21=\"\",NA(),I12+(($D$21-$F$6)/4))","v":{"$error":"#N/A"}}]
[null,"②a",null,"Consider what may be contributing to and influencing these outcomes."]
[null,null,null,"• Does the data reflect what your community is experiencing?\n• Were there changes in how data was collected with your community during this time ('20 - '22) that might account for upward or downward changes?\n• What recent changes in the community could be influencing this outcome (e.g. decreasing vacancy rates, increased outreach efforts, etc.) ?\n• What programs and efforts within the CoC influence this CA SPM most directly? \n• Do you plan to introduce new efforts that are likely to influence this outcome (e.g. as a result of HHAP funding or other resources)?  "]
[]
[null,"②b",null,"Given the trajectory of past data and the influence of factors identified in 2a above, what is the likely direction this outcome will trend over the next few years (e.g., up steeply, up slightly, remain flat, go down slightly, go down steeply)?"]
[]
[]
[null,"③a",null,"Enter an ambitious but achievable target outcome to reach by CY2026 in the highlighted cell."]
[null,null,null,"CY2026",null,null,"CY2023","CY2024","CY2025","CY2026"]
[null,null,null,null,null,null,{"$f":"G12","v":{"$error":"#N/A"}},{"$f":"H12","v":{"$error":"#N/A"}},{"$f":"I12","v":{"$error":"#N/A"}},{"$f":"J12","v":{"$error":"#N/A"}}]
[null,null,null,null,null,null,"Annual targets given CY2026 target input"]
[null,null,null,"target average annual rate of change\n2022 - 2026:",null,{"$f":"AVERAGE(((G21-F6)/F6),((H21-G21)/G21),((I21-H21)/H21),((J21-I21)/I21))","v":{"$error":"#N/A"}},"Progress distributed evenly across years"]
[null,null,null,"% change 2022 - 2026: ",null,{"$f":"IFERROR((J21-F7)/F7, \"\")","v":""}]
[]
[null,"③b",null,"Review the path towards reaching this target outcome."]
[null,null,null,"• Look at the dashed red line on the graph in Visual A.  Does the trajectory of the target outcome seem reasonable given the contextual factors identified in step 2a? \n• To reach this target outcome, you will need to make average progress each year as shown in the cells above. Does this seem achievable?  \n• Continue working with this data to see how different target outcomes change the trajectory."]
[]
[]
[null,"CA SPM 7.1a: Racial and ethnic disparities among those accessing services who are experiencing homelessness"]
[]
[null,"①a",null,"Identify an underserved or disproportionately impacted population",null,null,null,null,null,null,null,null,null,"Visual B: Subpopulation's share of all persons accessing services who are experiencing homelessness"]
[null,null,null,"Use the charts in the \"Identifying Populations\" tab to identify an underserved and/or disproportionately impacted subpopulation.",null,null,null,null,null,null,null,null,null,null,null,null,null,null,null,null,null,null,2020,2021,2022,2023,2024,2025,2026]
[null,null,null,null,null,null,null,null,null,null,null,null,null,null,null,null,null,null,null,null,null,"Baseline",{"$f":"IF(OR($D$6=\"\",$E$6=\"\",$F$6=\"\",$D$41=\"\",$E$41=\"\",$F$41=\"\"),NA(),D41/D6)","v":{"$error":"#N/A"}},{"$f":"IF(OR($D$6=\"\",$E$6=\"\",$F$6=\"\",$D$41=\"\",$E$41=\"\",$F$41=\"\"),NA(),E41/E6)","v":{"$error":"#N/A"}},{"$f":"IF(OR($D$6=\"\",$E$6=\"\",$F$6=\"\",$D$41=\"\",$E$41=\"\",$F$41=\"\"),NA(),F41/F6)","v":{"$error":"#N/A"}}]
[null,null,null,"Identify a subpopulation from the dropdown menu and indicate it here.",null,null,null,null,null,null,null,null,null,null,null,null,null,null,null,null,null,"Projection",null,null,{"$f":"IF(OR($D$6=\"\",$E$6=\"\",$F$6=\"\",$D$41=\"\",$E$41=\"\",$F$41=\"\"),NA(),F41/F6)","v":{"$error":"#N/A"}},{"$f":"G41/G6","v":{"$error":"#N/A"}},{"$f":"H41/H6","v":{"$error":"#N/A"}},{"$f":"I41/I6","v":{"$error":"#N/A"}},{"$f":"J41/J6","v":{"$error":"#N/A"}}]
[null,null,null,"Persons in HHs without children ",null,null,null,null,null,null,null,null,null,null,null,null,null,null,null,null,null,"Target",null,null,{"$f":"IF(OR($D$6=\"\",$E$6=\"\",$F$6=\"\",$D$41=\"\",$E$41=\"\",$F$41=\"\"),NA(),F41/F6)","v":{"$error":"#N/A"}},{"$f":"G58/G21","v":{"$error":"#N/A"}},{"$f":"H58/H21","v":{"$error":"#N/A"}},{"$f":"I58/I21","v":{"$error":"#N/A"}},{"$f":"J58/J21","v":{"$error":"#N/A"}}]
[]
[null,"①b",null,"Enter the CA SPM 7.1a data for this subpopulation below in the highlighted cells. "]
[null,null,null,"This data is found in the Measure 7 sections of the CY2020, CY2021, CY2022 detail tabs of your CA SPM Data Report (you could also use Point in Time count data and other data you have on trends for this analysis)."]
[null,null,null,"CY2020","CY2021","CY2022","CY2023","CY2024","CY2025","CY2026"]
[null,null,null,null,null,null,{"$f":"G46","v":{"$error":"#N/A"}},{"$f":"H46","v":{"$error":"#N/A"}},{"$f":"I46","v":{"$error":"#N/A"}},{"$f":"J46","v":{"$error":"#N/A"}}]
[null,null,null,{"$f":"IF(OR($D$41=\"\",$E$41=\"\",$F$41=\"\"),NA(),D41)","v":{"$error":"#N/A"}},{"$f":"IF(OR($D$41=\"\",$E$41=\"\",$F$41=\"\"),NA(),E41)","v":{"$error":"#N/A"}},{"$f":"IF(OR($D$41=\"\",$E$41=\"\",$F$41=\"\"),NA(),F41)","v":{"$error":"#N/A"}},{"$f":"IF(OR(F41=\"\",E41=\"\",D41=\"\"),\"\", \"Projection based on average annual change of \"&(F41-D41)/2&\" individuals\")","v":""}]
[null,null,null,"projected average annual rate of change\n2022 - 2026:",null,{"$f":"IFERROR(IF(OR(D41=\"\", E41=\"\", F41=\"\"), NA(), AVERAGE(((G41-F41)/F41),((H41-G41)/G41),((I41-H41)/H41),((J41-I41)/I41))), \"\")","v":""},"Annual change calculation: (CY2022 - CY2020) / 2 + prior CY"]
[null,null,null,"% change 2020 - 2022: ",null,{"$f":"IFERROR(IF(OR(D41=\"\", E41=\"\", F41=\"\"), NA(), (F41-D41)/D41), \"\")","v":""}]
[null,null,null,"% change 2022 - 2026: ",null,{"$f":"IFERROR(IF(OR(D41=\"\", E41=\"\", F41=\"\"), NA(), (J41-F41)/F41), \"\")","v":""}]
[null,null,null,null,null,{"$f":"IF(OR(F41=\"\", E41=\"\", D41=\"\"), NA(), F41)","v":{"$error":"#N/A"}},{"$f":"(F41-D41)/2+F46","v":{"$error":"#N/A"}},{"$f":"(F41-D41)/2+G46","v":{"$error":"#N/A"}},{"$f":"(F41-D41)/2+H46","v":{"$error":"#N/A"}},{"$f":"(F41-D41)/2+I46","v":{"$error":"#N/A"}}]
[null,null,null,null,null,{"$f":"F46","v":{"$error":"#N/A"}},{"$f":"IF($D$58=\"\",NA(),F47+(($D$58-$F$41)/4))","v":{"$error":"#N/A"}},{"$f":"IF($D$58=\"\",NA(),G47+(($D$58-$F$41)/4))","v":{"$error":"#N/A"}},{"$f":"IF($D$58=\"\",NA(),H47+(($D$58-$F$41)/4))","v":{"$error":"#N/A"}},{"$f":"IF($D$58=\"\",NA(),I47+(($D$58-$F$41)/4))","v":{"$error":"#N/A"}}]
[null,"②a",null,"Examine the subpopulation's size relative to all persons accessing services who are experiencing homelessness."]
[null,null,null,"The dashed blue line in Visual B projects the subpopulation's proportion of the total population for this measure, based on the subpopulation's baseline data and the total population's baseline data. Is the subpopulation's proportion projected to grow, or to shrink?"]
[null,null,null,"● Compare the subpopulation's projected average annual rate of change (row 43) to the projected annual rate of change for all persons (row 8). Is the rate of change for the subpopulation greater or less than that of all persons?  \n● Is the subpopulation disproportionately represented among those accessing services compared to the \n   region's overall population, and/or its total homeless population? \n● What does your HMIS data show in terms of this population’s services?"]
[]
[null,"②b",null,"Consider potential strategies that promote equity."]
[null,null,null,"What types of programmatic, policy, or operational changes could be implemented to support a more equitable outcome for this subpopulation? If implemented, how might these strategies affect this outcome for this subpopulation? "]
[]
[null,null,null,null,null,null,null,null,null,null,null,null,null,null,null,null,null,null,null,null,null,{"$f":"(D58-D41)/D41","v":{"$error":"#DIV/0!"}}]
[null,"③a",null,"Enter a target outcome to reach by CY2026 in the highlighted cell."]
[null,null,null,"CY2026",null,null,"CY2023","CY2024","CY2025","CY2026"]
[null,null,null,null,null,null,{"$f":"G47","v":{"$error":"#N/A"}},{"$f":"H47","v":{"$error":"#N/A"}},{"$f":"I47","v":{"$error":"#N/A"}},{"$f":"J47","v":{"$error":"#N/A"}}]
[null,null,null,null,null,null,"Annual targets given CY2026 target input\nProgress distributed evenly across years"]
[null,null,null,"target average annual rate of change\n2022 - 2026:",null,{"$f":"AVERAGE(((G58-F41)/F41),((H58-G58)/G58),((I58-H58)/H58),((J58-I58)/I58))","v":{"$error":"#N/A"}}]
[null,null,null,"% change 2022 - 2026: ",null,{"$f":"IFERROR(IF(D58=\"\", NA(), (J58-F42)/F42), \"\")","v":""}]
[]
[null,"③b",null,"Compare the paths towards the projected outcome and towards the target outcome."]
[null,null,null,"Compare the the dashed blue line to the dashed red line in Visual B.\nCompare the projected rate of change (row 43) to the target rate of change (row 60). Does the target change for the subpopulation make sense given the intended strategies to promote greater equity? If this does not seem ambitious enough, or achievable, then experiment with a different target."]

{"sheet":"1b","index":5,"n_rows":78,"n_cols":29,"rows_kept":78,"cut":false,"hidden":false,"merged":[[1,1,1,19],[6,6,6,9],[9,3,9,4],[22,6,22,9],[24,3,24,4],[14,3,14,11],[16,3,16,11],[10,3,10,4],[9,6,9,9],[24,6,24,9],[8,3,8,4],[23,6,23,9],[74,6,74,9],[77,3,77,11],[34,3,34,7],[27,3,27,11],[30,1,30,19],[62,3,62,11],[63,3,63,11],[66,3,66,11],[72,6,72,9],[56,3,56,4],[73,3,73,4],[55,6,55,9],[56,6,56,9],[57,6,57,9],[35,3,35,5],[36,3,36,5],[51,13,52,18],[52,3,52,9],[7,6,7,9],[23,3,23,4],[26,23,26,25],[49,3,49,9]]}
[]
[null,"CA SPM 1b: Number of people experiencing unsheltered homelessness on a single night (unsheltered PIT count)"]
[]
[null,"①",null,"Enter CA SPM 1b from CY2020, CY2021, and CY2022 in the \"Topline\" tab into the highlighted cells."]
[null,null,null,"CY2020","CY2021","CY2022","CY2023","CY2024","CY2025","CY2026"]
[null,null,null,null,null,null,{"$f":"G12","v":{"$error":"#N/A"}},{"$f":"H12","v":{"$error":"#N/A"}},{"$f":"I12","v":{"$error":"#N/A"}},{"$f":"J12","v":{"$error":"#N/A"}}]
[null,null,null,{"$f":"IF(OR($D$6=\"\",$F$6=\"\"),NA(),D6)","v":{"$error":"#N/A"}},{"$f":"((F6-D6)/2)+D6","v":0},{"$f":"IF(OR($D$6=\"\",$F$6=\"\"),NA(),F6)","v":{"$error":"#N/A"}},{"$f":"IF(OR(F6=\"\",E6=\"\",D6=\"\"),\"\",\"Projection based on average annual change of \"&(F6-D6)/2&\" individuals\")","v":""}]
[null,null,null,null,null,null,"Annual change calculation: (CY2022 - CY2020) / 2 + prior CY"]
[null,null,null,"projected average annual rate of change\n2022 - 2026:",null,{"$f":"AVERAGE(((G6-F6)/F6),((H6-G6)/G6),((I6-H6)/H6),((J6-I6)/I6))","v":{"$error":"#N/A"}}]
[null,null,null,"% change 2020 - 2022: ",null,{"$f":"IFERROR(IF(OR(D6=\"\", F6=\"\"), NA(), (F6-D6)/D6), \"\")","v":""}]
[null,null,null,"% change 2022 - 2026: ",null,{"$f":"IFERROR(IF(OR(D6=\"\", F6=\"\"), NA(), (J6-F6)/F6), \"\")","v":""}]
[null,null,null,null,null,{"$f":"IF(OR(F6=\"\",D6=\"\"), NA(), F6)","v":{"$error":"#N/A"}},{"$f":"(F6-D6)/2+F12","v":{"$error":"#N/A"}},{"$f":"(F6-D6)/2+G12","v":{"$error":"#N/A"}},{"$f":"(F6-D6)/2+H12","v":{"$error":"#N/A"}},{"$f":"(F6-D6)/2+I12","v":{"$error":"#N/A"}}]
[null,null,null,null,null,{"$f":"F12","v":{"$error":"#N/A"}},{"$f":"IF($D$22=\"\",NA(),F13+(($D$22-$F$6)/4))","v":{"$error":"#N/A"}},{"$f":"IF($D$22=\"\",NA(),G13+(($D$22-$F$6)/4))","v":{"$error":"#N/A"}},{"$f":"IF($D$22=\"\",NA(),H13+(($D$22-$F$6)/4))","v":{"$error":"#N/A"}},{"$f":"IF($D$22=\"\",NA(),I13+(($D$22-$F$6)/4))","v":{"$error":"#N/A"}}]
[null,"②a",null,"Consider what may be contributing to and influencing these outcomes."]
[null,null,null,"• Does this data match what your community is experiencing?\n• Were there changes in how data was collected with your community during this time ('20 - '22) that might account for upward or downward changes?\n• What recent changes in the community could be influencing this outcome (e.g. increases/decreases in available shelter, etc.)?\n• What programs and efforts within the CoC influence this CA SPM most directly? \n• Do you plan to introduce new efforts that are likely to influence this outcome (e.g. as a result of HHAP funding or other resources)? "]
[]
[null,"②b",null,"Given the trajectory of past data and the influence of factors identified in 2a above, what is the likely direction this outcome will trend over the next few years (e.g., up steeply, up slightly, remain flat, go down slightly, go down steeply)?"]
[]
[]
[null,"③a",null,"Enter an ambitious but achievable target outcome to reach by CY2026 in the highlighted cell."]
[null,null,null,"CY2026",null,null,"CY2023","CY2024","CY2025","CY2026"]
[null,null,null,null,null,null,{"$f":"G13","v":{"$error":"#N/A"}},{"$f":"H13","v":{"$error":"#N/A"}},{"$f":"I13","v":{"$error":"#N/A"}},{"$f":"J13","v":{"$error":"#N/A"}}]
[null,null,null,null,null,null,"Annual targets given CY2026 target input"]
[null,null,null,"target average annual rate of change\n2022 - 2026:",null,{"$f":"AVERAGE(((G22-F6)/F6),((H22-G22)/G22),((I22-H22)/H22),((J22-I22)/I22))","v":{"$error":"#N/A"}},"Progress distributed evenly across years"]
[null,null,null,"% change 2022 - 2026: ",null,{"$f":"IFERROR((J22-F7)/F7, \"\")","v":""}]
[]
[null,"③b",null,"Review the path towards reaching this target outcome."]
[null,null,null,"• Look at the dashed red line on the graph in Visual A.  Does the trajectory of the target outcome seem reasonable given the contextual factors identified in step 2a? \n• To reach this target outcome, you would need to make progress each year as suggested in the cells above. Does this seem achievable?  \n• Continue working with this data to see how different target outcomes change the trajectory.",null,null,null,null,null,null,null,null,null,null,null,null,null,null,null,null,null,null,null,"People experiencing homelessness","People experiencing unsheltered homelessness","% of people who are unsheltered"]
[null,null,null,null,null,null,null,null,null,null,null,null,null,null,null,null,null,null,null,null,null,null,"All persons ",{"$f":"INDEX('Data for Populations'!$E$4:$E$1971,MATCH(1,('Data for Populations'!$A$4:$A$1971=$G$37)*('Data for Populations'!$C$4:$C$1971=$W29)*('Data for Populations'!$B$4:$B$1971='1b'!$G$36),0))","v":{"$error":"#N/A"}},{"$f":"INDEX('Data for Populations'!$F$4:$F$1971,MATCH(1,('Data for Populations'!$A$4:$A$1971=$G$37)*('Data for Populations'!$C$4:$C$1971=$W29)*('Data for Populations'!$B$4:$B$1971='1b'!$G$36),0))","v":{"$error":"#N/A"}},{"$f":"IFERROR(Y29/X29,\"\")","v":""}]
[null,null,null,null,null,null,null,null,null,null,null,null,null,null,null,null,null,null,null,null,null,null,"Persons in HHs without children ",{"$f":"INDEX('Data for Populations'!$E$4:$E$1971,MATCH(1,('Data for Populations'!$A$4:$A$1971=$G$37)*('Data for Populations'!$C$4:$C$1971=$W30)*('Data for Populations'!$B$4:$B$1971='1b'!$G$36),0))","v":{"$error":"#N/A"}},{"$f":"INDEX('Data for Populations'!$F$4:$F$1971,MATCH(1,('Data for Populations'!$A$4:$A$1971=$G$37)*('Data for Populations'!$C$4:$C$1971=$W30)*('Data for Populations'!$B$4:$B$1971='1b'!$G$36),0))","v":{"$error":"#N/A"}},""]
[null,"CA SPM 7.1b: Racial and ethnic disparities among those experiencing unsheltered homelessness on a single night.",null,null,null,null,null,null,null,null,null,null,null,null,null,null,null,null,null,null,null,null,"Persons in HHs with at least 1 adult and 1 child ",{"$f":"INDEX('Data for Populations'!$E$4:$E$1971,MATCH(1,('Data for Populations'!$A$4:$A$1971=$G$37)*('Data for Populations'!$C$4:$C$1971=$W31)*('Data for Populations'!$B$4:$B$1971='1b'!$G$36),0))","v":{"$error":"#N/A"}},{"$f":"INDEX('Data for Populations'!$F$4:$F$1971,MATCH(1,('Data for Populations'!$A$4:$A$1971=$G$37)*('Data for Populations'!$C$4:$C$1971=$W31)*('Data for Populations'!$B$4:$B$1971='1b'!$G$36),0))","v":{"$error":"#N/A"}},""]
[null,null,null,null,null,null,null,null,null,null,null,null,null,null,null,null,null,null,null,null,null,null,"Persons in HHs with only children ",{"$f":"INDEX('Data for Populations'!$E$4:$E$1971,MATCH(1,('Data for Populations'!$A$4:$A$1971=$G$37)*('Data for Populations'!$C$4:$C$1971=$W32)*('Data for Populations'!$B$4:$B$1971='1b'!$G$36),0))","v":{"$error":"#N/A"}},{"$f":"INDEX('Data for Populations'!$F$4:$F$1971,MATCH(1,('Data for Populations'!$A$4:$A$1971=$G$37)*('Data for Populations'!$C$4:$C$1971=$W32)*('Data for Populations'!$B$4:$B$1971='1b'!$G$36),0))","v":{"$error":"#N/A"}},""]
[null,null,null,null,null,null,null,null,null,null,null,null,null,null,null,null,null,null,null,null,null,null,"Woman/Girl",{"$f":"INDEX('Data for Populations'!$E$4:$E$1971,MATCH(1,('Data for Populations'!$A$4:$A$1971=$G$37)*('Data for Populations'!$C$4:$C$1971=$W33)*('Data for Populations'!$B$4:$B$1971='1b'!$G$36),0))","v":{"$error":"#N/A"}},{"$f":"INDEX('Data for Populations'!$F$4:$F$1971,MATCH(1,('Data for Populations'!$A$4:$A$1971=$G$37)*('Data for Populations'!$C$4:$C$1971=$W33)*('Data for Populations'!$B$4:$B$1971='1b'!$G$36),0))","v":{"$error":"#N/A"}},""]
[null,"①a",null,"Explore the data and select a subpopulation.",null,null,null,null,null,null,null,null,null,null,null,null,null,null,null,null,null,null,"Man/Boy",{"$f":"INDEX('Data for Populations'!$E$4:$E$1971,MATCH(1,('Data for Populations'!$A$4:$A$1971=$G$37)*('Data for Populations'!$C$4:$C$1971=$W34)*('Data for Populations'!$B$4:$B$1971='1b'!$G$36),0))","v":{"$error":"#N/A"}},{"$f":"INDEX('Data for Populations'!$F$4:$F$1971,MATCH(1,('Data for Populations'!$A$4:$A$1971=$G$37)*('Data for Populations'!$C$4:$C$1971=$W34)*('Data for Populations'!$B$4:$B$1971='1b'!$G$36),0))","v":{"$error":"#N/A"}},""]
[null,null,null,"Use the charts in the \"Identifying Populations\" tab to identify an underserved and/or disproportionately impacted subpopluation, or use the Unsheltered Rate chart to identify a subpopulation with a high rate of unsheltered homelessness compared to the total population of people experiencing homelessness.",null,null,null,null,null,null,null,null,null,null,null,null,null,null,null,null,null,null,"People who are Transgender ",{"$f":"INDEX('Data for Populations'!$E$4:$E$1971,MATCH(1,('Data for Populations'!$A$4:$A$1971=$G$37)*('Data for Populations'!$C$4:$C$1971=$W35)*('Data for Populations'!$B$4:$B$1971='1b'!$G$36),0))","v":{"$error":"#N/A"}},{"$f":"INDEX('Data for Populations'!$F$4:$F$1971,MATCH(1,('Data for Populations'!$A$4:$A$1971=$G$37)*('Data for Populations'!$C$4:$C$1971=$W35)*('Data for Populations'!$B$4:$B$1971='1b'!$G$36),0))","v":{"$error":"#N/A"}},""]
[null,null,null,"Select a year for PIT data:",null,null,null,null,null,null,null,null,null,null,null,null,null,null,null,null,null,null,"People with No Single Gender",{"$f":"INDEX('Data for Populations'!$E$4:$E$1971,MATCH(1,('Data for Populations'!$A$4:$A$1971=$G$37)*('Data for Populations'!$C$4:$C$1971=$W36)*('Data for Populations'!$B$4:$B$1971='1b'!$G$36),0))","v":{"$error":"#N/A"}},{"$f":"INDEX('Data for Populations'!$F$4:$F$1971,MATCH(1,('Data for Populations'!$A$4:$A$1971=$G$37)*('Data for Populations'!$C$4:$C$1971=$W36)*('Data for Populations'!$B$4:$B$1971='1b'!$G$36),0))","v":{"$error":"#N/A"}},""]
[null,null,null,"Select your CoC:",null,null,null,null,null,null,null,null,null,null,null,null,null,null,null,null,null,null,"People who are Questioning",{"$f":"INDEX('Data for Populations'!$E$4:$E$1971,MATCH(1,('Data for Populations'!$A$4:$A$1971=$G$37)*('Data for Populations'!$C$4:$C$1971=$W37)*('Data for Populations'!$B$4:$B$1971='1b'!$G$36),0))","v":{"$error":"#N/A"}},{"$f":"INDEX('Data for Populations'!$F$4:$F$1971,MATCH(1,('Data for Populations'!$A$4:$A$1971=$G$37)*('Data for Populations'!$C$4:$C$1971=$W37)*('Data for Populations'!$B$4:$B$1971='1b'!$G$36),0))","v":{"$error":"#N/A"}},""]
[null,null,null,null,null,null,null,null,null,null,null,null,null,null,null,null,null,null,null,null,null,null,"People who are Hispanic/Latino ",{"$f":"INDEX('Data for Populations'!$E$4:$E$1971,MATCH(1,('Data for Populations'!$A$4:$A$1971=$G$37)*('Data for Populations'!$C$4:$C$1971=$W38)*('Data for Populations'!$B$4:$B$1971='1b'!$G$36),0))","v":{"$error":"#N/A"}},{"$f":"INDEX('Data for Populations'!$F$4:$F$1971,MATCH(1,('Data for Populations'!$A$4:$A$1971=$G$37)*('Data for Populations'!$C$4:$C$1971=$W38)*('Data for Populations'!$B$4:$B$1971='1b'!$G$36),0))","v":{"$error":"#N/A"}},""]
[null,null,null,null,null,null,null,null,null,null,null,null,null,null,null,null,null,null,null,null,null,null,"People who are Non-Hispanic/ Non-Latino ",{"$f":"INDEX('Data for Populations'!$E$4:$E$1971,MATCH(1,('Data for Populations'!$A$4:$A$1971=$G$37)*('Data for Populations'!$C$4:$C$1971=$W39)*('Data for Populations'!$B$4:$B$1971='1b'!$G$36),0))","v":{"$error":"#N/A"}},{"$f":"INDEX('Data for Populations'!$F$4:$F$1971,MATCH(1,('Data for Populations'!$A$4:$A$1971=$G$37)*('Data for Populations'!$C$4:$C$1971=$W39)*('Data for Populations'!$B$4:$B$1971='1b'!$G$36),0))","v":{"$error":"#N/A"}},""]
[null,null,null,null,null,null,null,null,null,null,null,null,null,null,null,null,null,null,null,null,null,null,"People who are American Indian or Alaska Native ",{"$f":"INDEX('Data for Populations'!$E$4:$E$1971,MATCH(1,('Data for Populations'!$A$4:$A$1971=$G$37)*('Data for Populations'!$C$4:$C$1971=$W40)*('Data for Populations'!$B$4:$B$1971='1b'!$G$36),0))","v":{"$error":"#N/A"}},{"$f":"INDEX('Data for Populations'!$F$4:$F$1971,MATCH(1,('Data for Populations'!$A$4:$A$1971=$G$37)*('Data for Populations'!$C$4:$C$1971=$W40)*('Data for Populations'!$B$4:$B$1971='1b'!$G$36),0))","v":{"$error":"#N/A"}},""]
[null,null,null,null,null,null,null,null,null,null,null,null,null,null,null,null,null,null,null,null,null,null,"People who are Asian ",{"$f":"INDEX('Data for Populations'!$E$4:$E$1971,MATCH(1,('Data for Populations'!$A$4:$A$1971=$G$37)*('Data for Populations'!$C$4:$C$1971=$W41)*('Data for Populations'!$B$4:$B$1971='1b'!$G$36),0))","v":{"$error":"#N/A"}},{"$f":"INDEX('Data for Populations'!$F$4:$F$1971,MATCH(1,('Data for Populations'!$A$4:$A$1971=$G$37)*('Data for Populations'!$C$4:$C$1971=$W41)*('Data for Populations'!$B$4:$B$1971='1b'!$G$36),0))","v":{"$error":"#N/A"}},""]
[null,null,null,null,null,null,null,null,null,null,null,null,null,null,null,null,null,null,null,null,null,null,"People who are Black or African American ",{"$f":"INDEX('Data for Populations'!$E$4:$E$1971,MATCH(1,('Data for Populations'!$A$4:$A$1971=$G$37)*('Data for Populations'!$C$4:$C$1971=$W42)*('Data for Populations'!$B$4:$B$1971='1b'!$G$36),0))","v":{"$error":"#N/A"}},{"$f":"INDEX('Data for Populations'!$F$4:$F$1971,MATCH(1,('Data for Populations'!$A$4:$A$1971=$G$37)*('Data for Populations'!$C$4:$C$1971=$W42)*('Data for Populations'!$B$4:$B$1971='1b'!$G$36),0))","v":{"$error":"#N/A"}},""]
[null,null,null,null,null,null,null,null,null,null,null,null,null,null,null,null,null,null,null,null,null,null,"People who are Native Hawaiian or Other Pacific Islander ",{"$f":"INDEX('Data for Populations'!$E$4:$E$1971,MATCH(1,('Data for Populations'!$A$4:$A$1971=$G$37)*('Data for Populations'!$C$4:$C$1971=$W43)*('Data for Populations'!$B$4:$B$1971='1b'!$G$36),0))","v":{"$error":"#N/A"}},{"$f":"INDEX('Data for Populations'!$F$4:$F$1971,MATCH(1,('Data for Populations'!$A$4:$A$1971=$G$37)*('Data for Populations'!$C$4:$C$1971=$W43)*('Data for Populations'!$B$4:$B$1971='1b'!$G$36),0))","v":{"$error":"#N/A"}},""]
[null,null,null,null,null,null,null,null,null,null,null,null,null,null,null,null,null,null,null,null,null,null,"People who are White ",{"$f":"INDEX('Data for Populations'!$E$4:$E$1971,MATCH(1,('Data for Populations'!$A$4:$A$1971=$G$37)*('Data for Populations'!$C$4:$C$1971=$W44)*('Data for Populations'!$B$4:$B$1971='1b'!$G$36),0))","v":{"$error":"#N/A"}},{"$f":"INDEX('Data for Populations'!$F$4:$F$1971,MATCH(1,('Data for Populations'!$A$4:$A$1971=$G$37)*('Data for Populations'!$C$4:$C$1971=$W44)*('Data for Populations'!$B$4:$B$1971='1b'!$G$36),0))","v":{"$error":"#N/A"}},""]
[null,null,null,null,null,null,null,null,null,null,null,null,null,null,null,null,null,null,null,null,null,null,"People who are Multiple Races ",{"$f":"INDEX('Data for Populations'!$E$4:$E$1971,MATCH(1,('Data for Populations'!$A$4:$A$1971=$G$37)*('Data for Populations'!$C$4:$C$1971=$W45)*('Data for Populations'!$B$4:$B$1971='1b'!$G$36),0))","v":{"$error":"#N/A"}},{"$f":"INDEX('Data for Populations'!$F$4:$F$1971,MATCH(1,('Data for Populations'!$A$4:$A$1971=$G$37)*('Data for Populations'!$C$4:$C$1971=$W45)*('Data for Populations'!$B$4:$B$1971='1b'!$G$36),0))","v":{"$error":"#N/A"}},""]
[null,null,null,null,null,null,null,null,null,null,null,null,null,null,null,null,null,null,null,null,null,null,"# of Adults who are Experiencing Significant Mental Illness",{"$f":"INDEX('Data for Populations'!$E$4:$E$1971,MATCH(1,('Data for Populations'!$A$4:$A$1971=$G$37)*('Data for Populations'!$C$4:$C$1971=$W46)*('Data for Populations'!$B$4:$B$1971='1b'!$G$36),0))","v":{"$error":"#N/A"}},{"$f":"INDEX('Data for Populations'!$F$4:$F$1971,MATCH(1,('Data for Populations'!$A$4:$A$1971=$G$37)*('Data for Populations'!$C$4:$C$1971=$W46)*('Data for Populations'!$B$4:$B$1971='1b'!$G$36),0))","v":{"$error":"#N/A"}},""]
[null,null,null,null,null,null,null,null,null,null,null,null,null,null,null,null,null,null,null,null,null,null,"# of Adults who are Experiencing Substance Abuse Disorders",{"$f":"INDEX('Data for Populations'!$E$4:$E$1971,MATCH(1,('Data for Populations'!$A$4:$A$1971=$G$37)*('Data for Populations'!$C$4:$C$1971=$W47)*('Data for Populations'!$B$4:$B$1971='1b'!$G$36),0))","v":{"$error":"#N/A"}},{"$f":"INDEX('Data for Populations'!$F$4:$F$1971,MATCH(1,('Data for Populations'!$A$4:$A$1971=$G$37)*('Data for Populations'!$C$4:$C$1971=$W47)*('Data for Populations'!$B$4:$B$1971='1b'!$G$36),0))","v":{"$error":"#N/A"}},{"$f":"IFERROR(Y47/X47,\"\")","v":""}]
[null,null,null,null,null,null,null,null,null,null,null,null,null,null,null,null,null,null,null,null,null,null,"# of Adults who are Veterans",{"$f":"INDEX('Data for Populations'!$E$4:$E$1971,MATCH(1,('Data for Populations'!$A$4:$A$1971=$G$37)*('Data for Populations'!$C$4:$C$1971=$W48)*('Data for Populations'!$B$4:$B$1971='1b'!$G$36),0))","v":{"$error":"#N/A"}},{"$f":"INDEX('Data for Populations'!$F$4:$F$1971,MATCH(1,('Data for Populations'!$A$4:$A$1971=$G$37)*('Data for Populations'!$C$4:$C$1971=$W48)*('Data for Populations'!$B$4:$B$1971='1b'!$G$36),0))","v":{"$error":"#N/A"}},""]
[null,null,null,"Identify a subpopulation from the dropdown menu and indicate it here.",null,null,null,null,null,null,null,null,null,null,null,null,null,null,null,null,null,null,"# of Adults with HIV/AIDS",{"$f":"INDEX('Data for Populations'!$E$4:$E$1971,MATCH(1,('Data for Populations'!$A$4:$A$1971=$G$37)*('Data for Populations'!$C$4:$C$1971=$W49)*('Data for Populations'!$B$4:$B$1971='1b'!$G$36),0))","v":{"$error":"#N/A"}},{"$f":"INDEX('Data for Populations'!$F$4:$F$1971,MATCH(1,('Data for Populations'!$A$4:$A$1971=$G$37)*('Data for Populations'!$C$4:$C$1971=$W49)*('Data for Populations'!$B$4:$B$1971='1b'!$G$36),0))","v":{"$error":"#N/A"}},""]
[null,null,null,"Persons in HHs without children ",null,null,null,null,null,null,null,null,null,null,null,null,null,null,null,null,null,null,"# of Adults who are Currently Fleeing Domestic Violence",{"$f":"INDEX('Data for Populations'!$E$4:$E$1971,MATCH(1,('Data for Populations'!$A$4:$A$1971=$G$37)*('Data for Populations'!$C$4:$C$1971=$W50)*('Data for Populations'!$B$4:$B$1971='1b'!$G$36),0))","v":{"$error":"#N/A"}},{"$f":"INDEX('Data for Populations'!$F$4:$F$1971,MATCH(1,('Data for Populations'!$A$4:$A$1971=$G$37)*('Data for Populations'!$C$4:$C$1971=$W50)*('Data for Populations'!$B$4:$B$1971='1b'!$G$36),0))","v":{"$error":"#N/A"}},""]
[null,null,null,null,null,null,null,null,null,null,null,null,null,null,null,null,null,null,null,null,null,null,"# of Unaccompanied Youth (18- 24 years old)",{"$f":"INDEX('Data for Populations'!$E$4:$E$1971,MATCH(1,('Data for Populations'!$A$4:$A$1971=$G$37)*('Data for Populations'!$C$4:$C$1971=$W51)*('Data for Populations'!$B$4:$B$1971='1b'!$G$36),0))","v":{"$error":"#N/A"}},{"$f":"INDEX('Data for Populations'!$F$4:$F$1971,MATCH(1,('Data for Populations'!$A$4:$A$1971=$G$37)*('Data for Populations'!$C$4:$C$1971=$W51)*('Data for Populations'!$B$4:$B$1971='1b'!$G$36),0))","v":{"$error":"#N/A"}},""]
[null,"①b",null,"Enter the CA SPM 7.1b data for this subpopulation below in the highlighted cells.",null,null,null,null,null,null,null,null,null,"Visual B: Subpopulation's share of all persons experiencing unsheltered homelessness on a single night",null,null,null,null,null,null,null,null,"# of Parenting Youth (18-24 years old)",{"$f":"INDEX('Data for Populations'!$E$4:$E$1971,MATCH(1,('Data for Populations'!$A$4:$A$1971=$G$37)*('Data for Populations'!$C$4:$C$1971=$W52)*('Data for Populations'!$B$4:$B$1971='1b'!$G$36),0))","v":{"$error":"#N/A"}},{"$f":"INDEX('Data for Populations'!$F$4:$F$1971,MATCH(1,('Data for Populations'!$A$4:$A$1971=$G$37)*('Data for Populations'!$C$4:$C$1971=$W52)*('Data for Populations'!$B$4:$B$1971='1b'!$G$36),0))","v":{"$error":"#N/A"}},""]
[null,null,null,"This data is found in the Measure 7 sections of the CY2020, CY2021, CY2022 detail tabs of your CA SPM Data Report."]
[null,null,null,"CY2020","CY2021","CY2022","CY2023","CY2024","CY2025","CY2026",null,null,null,null,null,null,null,null,null,null,null,null,2020,2021,2022,2023,2024,2025,2026]
[null,null,null,null,"-",null,{"$f":"G60","v":{"$error":"#N/A"}},{"$f":"H60","v":{"$error":"#N/A"}},{"$f":"I60","v":{"$error":"#N/A"}},{"$f":"J60","v":{"$error":"#N/A"}},null,null,null,null,null,null,null,null,null,null,null,"Baseline",{"$f":"IF(OR($D$6=\"\",$E$6=\"\",$F$6=\"\",$D$55=\"\",$E$55=\"\",$F$55=\"\"),NA(),D55/D6)","v":{"$error":"#N/A"}},{"$f":"IF(OR($D$6=\"\",$E$6=\"\",$F$6=\"\",$D$55=\"\",$E$55=\"\",$F$55=\"\"),NA(),AVERAGE(W55,Y55))","v":{"$error":"#N/A"}},{"$f":"IF(OR($D$6=\"\",$E$6=\"\",$F$6=\"\",$D$55=\"\",$E$55=\"\",$F$55=\"\"),NA(),F55/F6)","v":{"$error":"#N/A"}}]
[null,null,null,{"$f":"IF(OR($D$55=\"\",$F$55=\"\"),NA(),D55)","v":{"$error":"#N/A"}},{"$f":"IF(OR($D$55=\"\",$F$55=\"\"),NA(),E55)","v":{"$error":"#N/A"}},{"$f":"IF(OR($D$55=\"\",$F$55=\"\"),NA(),F55)","v":{"$error":"#N/A"}},{"$f":"IF(OR(F55=\"\",E55=\"\",D55=\"\"),\"\", \"Projection based on average annual change of \"&(F55-D55)/2&\" individuals\")","v":""},null,null,null,null,null,null,null,null,null,null,null,null,null,null,"Projection",null,null,{"$f":"IF(OR($D$6=\"\",$E$6=\"\",$F$6=\"\",$D$55=\"\",$E$55=\"\",$F$55=\"\"),NA(),F55/F6)","v":{"$error":"#N/A"}},{"$f":"G55/G6","v":{"$error":"#N/A"}},{"$f":"H55/H6","v":{"$error":"#N/A"}},{"$f":"I55/I6","v":{"$error":"#N/A"}},{"$f":"J55/J6","v":{"$error":"#N/A"}}]
[null,null,null,"projected average annual rate of change\n2022 - 2026:",null,{"$f":"AVERAGE(((G55-F55)/F55),((H55-G55)/G55),((I55-H55)/H55),((J55-I55)/I55))","v":{"$error":"#N/A"}},"Annual change calculation: (CY2022 - CY2020) / 2 + prior CY",null,null,null,null,null,null,null,null,null,null,null,null,null,null,"Target",null,null,{"$f":"IF(OR($D$6=\"\",$E$6=\"\",$F$6=\"\",$D$55=\"\",$E$55=\"\",$F$55=\"\"),NA(),F55/F6)","v":{"$error":"#N/A"}},{"$f":"IFERROR(G72/G22,NA())","v":{"$error":"#N/A"}},{"$f":"IFERROR(H72/H22,NA())","v":{"$error":"#N/A"}},{"$f":"IFERROR(I72/I22,NA())","v":{"$error":"#N/A"}},{"$f":"IFERROR(J72/J22,NA())","v":{"$error":"#N/A"}}]
[null,null,null,"% change 2020 - 2022: ",null,{"$f":"IFERROR(IF(OR(D55=\"\",F55=\"\"), NA(), (F55-D55)/D55), \"\")","v":""}]
[null,null,null,"% change 2022 - 2026: ",null,{"$f":"IFERROR(IF(OR(D55=\"\",F55=\"\"), NA(), (J55-F55)/F55), \"\")","v":""}]
[null,null,null,null,null,{"$f":"IF(OR(F55=\"\", D55=\"\"), NA(), F55)","v":{"$error":"#N/A"}},{"$f":"(F55-D55)/2+F60","v":{"$error":"#N/A"}},{"$f":"(F55-D55)/2+G60","v":{"$error":"#N/A"}},{"$f":"(F55-D55)/2+H60","v":{"$error":"#N/A"}},{"$f":"(F55-D55)/2+I60","v":{"$error":"#N/A"}}]
[null,null,null,null,null,{"$f":"F60","v":{"$error":"#N/A"}},{"$f":"IF($D$72=\"\",NA(),F61+(($D$72-$F$55)/4))","v":{"$error":"#N/A"}},{"$f":"IF($D$72=\"\",NA(),G61+(($D$72-$F$55)/4))","v":{"$error":"#N/A"}},{"$f":"IF($D$72=\"\",NA(),H61+(($D$72-$F$55)/4))","v":{"$error":"#N/A"}},{"$f":"IF($D$72=\"\",NA(),I61+(($D$72-$F$55)/4))","v":{"$error":"#N/A"}}]
[null,"②a",null,"Examine the subpopulation's size relative to all persons experiencing unsheltered homelessness."]
[null,null,null,"Use the dashed blue line in Visual B to consider how the subpopulation's proportion is projected to change in coming years, and compare the subpopulation's projected change (row 59) to the projected change for all persons (row 11). Consider:"]
[null,null,null,"● Is the projected change for the subpopulation greater or less than that of all persons?  \n● Is the subpopulation disproportionately represented among those experiencing unsheltered homelessness as compared to the overall homeless population? \n● What does your HMIS data show in terms of this population's services? "]
[]
[null,"②b",null,"Consider potential strategies that promote equity."]
[null,null,null,"What types of programmatic, policy, or operational changes could be implemented to support a more equitable outcome for this subpopulation? If implemented, how might these strategies affect this outcome for this subpopulation? "]
[]
[]
[null,"③a",null,"Enter a target outcome to reach by CY2026 in the highlighted cell."]
[null,null,null,"CY2026",null,null,"CY2023","CY2024","CY2025","CY2026"]
[null,null,null,null,null,null,{"$f":"G61","v":{"$error":"#N/A"}},{"$f":"H61","v":{"$error":"#N/A"}},{"$f":"I61","v":{"$error":"#N/A"}},{"$f":"J61","v":{"$error":"#N/A"}}]
[null,null,null,null,null,null,"Annual targets given CY2026 target input"]
[null,null,null,"target average annual rate of change\n2022 - 2026:",null,{"$f":"AVERAGE(((G72-F55)/F55),((H72-G72)/G72),((I72-H72)/H72),((J72-I72)/I72))","v":{"$error":"#N/A"}}]
[null,null,null,"% change 2022 - 2026: ",null,{"$f":"IFERROR(IF(D72=\"\", NA(), (J72-F56)/F56), \"\")","v":""},"Progress distributed evenly across years"]
[]
[null,"③a",null,"Compare the paths towards the projected outcome and towards the target outcome."]
[null,null,null,"Compare the the dashed blue line to the dashed red line in Visual B, and compare the projected rate of change (row 57) to the target rate of change (row 74). Does the target change for the subpopulation make sense given the intended strategies to promote greater equity? If this does not seem ambitious enough, or achievable, then experiment with a different target."]

{"sheet":"2","index":6,"n_rows":64,"n_cols":29,"rows_kept":64,"cut":false,"hidden":false,"merged":[[63,3,63,11],[59,3,59,4],[59,6,59,9],[48,3,48,11],[49,3,49,11],[52,3,52,11],[58,6,58,9],[60,3,60,4],[60,6,60,9],[47,3,47,11],[26,3,26,11],[29,1,29,19],[32,3,32,11],[35,3,35,9],[38,3,38,11],[41,6,41,9],[42,3,42,4],[42,6,42,9],[43,3,43,4],[43,6,43,9],[44,3,44,4],[31,13,31,18],[23,3,23,4],[23,6,23,9],[1,1,1,19],[6,6,6,9],[7,3,7,4],[8,3,8,4],[8,6,8,9],[9,3,9,4],[13,3,13,11],[15,3,15,11],[21,6,21,9],[22,3,22,4],[22,6,22,9],[7,6,7,9]]}
[]
[null,"CA SPM 2: Number of people accessing services who are experiencing homelessness for the first time"]
[]
[null,"①",null,"Enter CA SPM 2 from CY2020, CY2021, and CY2022 in the \"Topline\" tab into the highlighted cells."]
[null,null,null,"CY2020","CY2021","CY2022","CY2023","CY2024","CY2025","CY2026"]
[null,null,null,null,null,null,{"$f":"G11","v":{"$error":"#N/A"}},{"$f":"H11","v":{"$error":"#N/A"}},{"$f":"I11","v":{"$error":"#N/A"}},{"$f":"J11","v":{"$error":"#N/A"}}]
[null,null,null,{"$f":"IF(OR($D$6=\"\",$E$6=\"\",$F$6=\"\"),NA(),D6)","v":{"$error":"#N/A"}},{"$f":"IF(OR($D$6=\"\",$E$6=\"\",$F$6=\"\"),NA(),E6)","v":{"$error":"#N/A"}},{"$f":"IF(OR($D$6=\"\",$E$6=\"\",$F$6=\"\"),NA(),F6)","v":{"$error":"#N/A"}},{"$f":"IF(OR(F6=\"\",E6=\"\",D6=\"\"),\"\",\"Projection based on average annual change of \"&(F6-D6)/2&\" individuals\")","v":""}]
[null,null,null,"projected average annual rate of change\n2022 - 2026:",null,{"$f":"IFERROR(IF(OR(D6=\"\", E6=\"\", F6=\"\"), NA(), AVERAGE(((G6-F6)/F6),((H6-G6)/G6),((I6-H6)/H6),((J6-I6)/I6))), \"\")","v":""},"Annual change calculation: (CY2022 - CY2020) / 2 + prior CY"]
[null,null,null,"% change 2020 - 2022: ",null,{"$f":"IFERROR(IF(OR(D6=\"\", E6=\"\", F6=\"\"), NA(), (F6-D6)/D6), \"\")","v":""}]
[null,null,null,"% change 2022 - 2026: ",null,{"$f":"IFERROR(IF(OR(D6=\"\", E6=\"\", F6=\"\"), NA(), (J6-F6)/F6), \"\")","v":""}]
[null,null,null,null,null,{"$f":"IF(OR(F6=\"\", E6=\"\", D6=\"\"), NA(), F6)","v":{"$error":"#N/A"}},{"$f":"(F6-D6)/2+F11","v":{"$error":"#N/A"}},{"$f":"(F6-D6)/2+G11","v":{"$error":"#N/A"}},{"$f":"(F6-D6)/2+H11","v":{"$error":"#N/A"}},{"$f":"(F6-D6)/2+I11","v":{"$error":"#N/A"}}]
[null,null,null,null,null,{"$f":"F11","v":{"$error":"#N/A"}},{"$f":"IF($D$21=\"\",NA(),F12+(($D$21-$F$6)/4))","v":{"$error":"#N/A"}},{"$f":"IF($D$21=\"\",NA(),G12+(($D$21-$F$6)/4))","v":{"$error":"#N/A"}},{"$f":"IF($D$21=\"\",NA(),H12+(($D$21-$F$6)/4))","v":{"$error":"#N/A"}},{"$f":"IF($D$21=\"\",NA(),I12+(($D$21-$F$6)/4))","v":{"$error":"#N/A"}}]
[null,"②a",null,"Consider what may be contributing to and influencing these outcomes."]
[null,null,null,"• Does this data match what your community is experiencing?\n• Were there changes in how data was collected with your community during this time ('20 - '22) that might account for upward or downward changes?\n• What recent changes in the community could be influencing this outcome (e.g., increasing rents, investments in homeless prevention, etc.)\n• What programs and efforts within the CoC influence this CA SPM most directly? \n• Do you plan to introduce new efforts that are likely to influence this outcome (e.g., because of HHAP funding or other resources)? "]
[]
[null,"②b",null,"Given the trajectory of past data and the influence of factors identified in 2a above, what is the likely direction this outcome will trend over the next few years (e.g., up steeply, up slightly, remain flat, go down slightly, go down steeply)?"]
[]
[]
[null,"③a",null,"Enter an ambitious but achievable target outcome to reach by CY2026 in the highlighted cell."]
[null,null,null,"CY2026",null,null,"CY2023","CY2024","CY2025","CY2026"]
[null,null,null,null,null,null,{"$f":"G12","v":{"$error":"#N/A"}},{"$f":"H12","v":{"$error":"#N/A"}},{"$f":"I12","v":{"$error":"#N/A"}},{"$f":"J12","v":{"$error":"#N/A"}}]
[null,null,null,null,null,null,"Annual targets given CY2026 target input"]
[null,null,null,"target average annual rate of change\n2022 - 2026:",null,{"$f":"AVERAGE(((G21-F6)/F6),((H21-G21)/G21),((I21-H21)/H21),((J21-I21)/I21))","v":{"$error":"#N/A"}},"Progress distributed evenly across years"]
[null,null,null,"% change 2022 - 2026: ",null,{"$f":"IFERROR((J21-F7)/F7, \"\")","v":""}]
[]
[null,"③b",null,"Review the path towards reaching this target outcome."]
[null,null,null,"• Look at the dashed red line on the graph in Visual A.  Does the trajectory of the target outcome seem reasonable given the contextual factors identified in step 2a? \n• To reach this target outcome, you will need to make average progress each year as shown in the cells above. Does this seem achievable?  \n• Continue working with this data to see how different target outcomes change the trajectory."]
[]
[]
[null,"CA SPM 7.2: Racial and ethnic disparities in the number of people accessing services who are experiencing homelessness for the first time"]
[]
[null,"①a",null,"Identify an underserved or disproportionately impacted population",null,null,null,null,null,null,null,null,null,"Visual B: Subpopulation's share of all persons accessing services who are experiencing homelessness for the first time"]
[null,null,null,"Use the charts in the \"Identifying Populations\" tab to identify an underserved and/or disproportionately impacted subpopulation. You may also use the Measure 7 section the \"Detail\" tabs of your CA SPM Data Report to look for subpopulations that make up a large percentage of all people accessing services who are experiencing homelessness for the first time, or whose representation among all people accessing services while experiencing homelessness is growing especially quickly.",null,null,null,null,null,null,null,null,null,null,null,null,null,null,null,null,null,null,2020,2021,2022,2023,2024,2025,2026]
[null,null,null,null,null,null,null,null,null,null,null,null,null,null,null,null,null,null,null,null,null,"Baseline",{"$f":"IF(OR($D$6=\"\",$E$6=\"\",$F$6=\"\",$D$41=\"\",$E$41=\"\",$F$41=\"\"),NA(),D41/D6)","v":{"$error":"#N/A"}},{"$f":"IF(OR($D$6=\"\",$E$6=\"\",$F$6=\"\",$D$41=\"\",$E$41=\"\",$F$41=\"\"),NA(),E41/E6)","v":{"$error":"#N/A"}},{"$f":"IF(OR($D$6=\"\",$E$6=\"\",$F$6=\"\",$D$41=\"\",$E$41=\"\",$F$41=\"\"),NA(),F41/F6)","v":{"$error":"#N/A"}}]
[null,null,null,"Identify a subpopulation from the dropdown menu and indicate it here.",null,null,null,null,null,null,null,null,null,null,null,null,null,null,null,null,null,"Projection",null,null,{"$f":"IF(OR($D$6=\"\",$E$6=\"\",$F$6=\"\",$D$41=\"\",$E$41=\"\",$F$41=\"\"),NA(),F41/F6)","v":{"$error":"#N/A"}},{"$f":"G41/G6","v":{"$error":"#N/A"}},{"$f":"H41/H6","v":{"$error":"#N/A"}},{"$f":"I41/I6","v":{"$error":"#N/A"}},{"$f":"J41/J6","v":{"$error":"#N/A"}}]
[null,null,null,"Persons in HHs without children ",null,null,null,null,null,null,null,null,null,null,null,null,null,null,null,null,null,"Target",null,null,{"$f":"IF(OR($D$6=\"\",$E$6=\"\",$F$6=\"\",$D$41=\"\",$E$41=\"\",$F$41=\"\"),NA(),F41/F6)","v":{"$error":"#N/A"}},{"$f":"G58/G21","v":{"$error":"#N/A"}},{"$f":"H58/H21","v":{"$error":"#N/A"}},{"$f":"I58/I21","v":{"$error":"#N/A"}},{"$f":"J58/J21","v":{"$error":"#N/A"}}]
[]
[null,"①b",null,"Enter the CA SPM 7.2 data for this subpopulation below in the highlighted cells. "]
[null,null,null,"This data is found in the Measure 7 sections of the CY2020, CY2021, CY2022 detail tabs of your CA SPM Data Report (you could also use Point in Time count data and other data you have on trends for this analysis)."]
[null,null,null,"CY2020","CY2021","CY2022","CY2023","CY2024","CY2025","CY2026"]
[null,null,null,null,null,null,{"$f":"G46","v":{"$error":"#N/A"}},{"$f":"H46","v":{"$error":"#N/A"}},{"$f":"I46","v":{"$error":"#N/A"}},{"$f":"J46","v":{"$error":"#N/A"}}]
[null,null,null,{"$f":"IF(OR($D$41=\"\",$E$41=\"\",$F$41=\"\"),NA(),D41)","v":{"$error":"#N/A"}},{"$f":"IF(OR($D$41=\"\",$E$41=\"\",$F$41=\"\"),NA(),E41)","v":{"$error":"#N/A"}},{"$f":"IF(OR($D$41=\"\",$E$41=\"\",$F$41=\"\"),NA(),F41)","v":{"$error":"#N/A"}},{"$f":"IF(OR(F41=\"\",E41=\"\",D41=\"\"),\"\", \"Projection based on average annual change of \"&(F41-D41)/2&\" individuals\")","v":""}]
[null,null,null,"projected average annual rate of change\n2022 - 2026:",null,{"$f":"IFERROR(IF(OR(D41=\"\", E41=\"\", F41=\"\"), NA(), AVERAGE(((G41-F41)/F41),((H41-G41)/G41),((I41-H41)/H41),((J41-I41)/I41))), \"\")","v":""},"Annual change calculation: (CY2022 - CY2020) / 2 + prior CY"]
[null,null,null,"% change 2020 - 2022: ",null,{"$f":"IFERROR(IF(OR(D41=\"\", E41=\"\", F41=\"\"), NA(), (F41-D41)/D41), \"\")","v":""}]
[null,null,null,"% change 2022 - 2026: ",null,{"$f":"IFERROR(IF(OR(D41=\"\", E41=\"\", F41=\"\"), NA(), (J41-F41)/F41), \"\")","v":""}]
[null,null,null,null,null,{"$f":"IF(OR(F41=\"\", E41=\"\", D41=\"\"), NA(), F41)","v":{"$error":"#N/A"}},{"$f":"(F41-D41)/2+F46","v":{"$error":"#N/A"}},{"$f":"(F41-D41)/2+G46","v":{"$error":"#N/A"}},{"$f":"(F41-D41)/2+H46","v":{"$error":"#N/A"}},{"$f":"(F41-D41)/2+I46","v":{"$error":"#N/A"}}]
[null,null,null,null,null,{"$f":"F46","v":{"$error":"#N/A"}},{"$f":"IF($D$58=\"\",NA(),F47+(($D$58-$F$41)/4))","v":{"$error":"#N/A"}},{"$f":"IF($D$58=\"\",NA(),G47+(($D$58-$F$41)/4))","v":{"$error":"#N/A"}},{"$f":"IF($D$58=\"\",NA(),H47+(($D$58-$F$41)/4))","v":{"$error":"#N/A"}},{"$f":"IF($D$58=\"\",NA(),I47+(($D$58-$F$41)/4))","v":{"$error":"#N/A"}}]
[null,"②a",null,"Examine the subpopulation's size relative to all persons accessing services who are experiencing homelessness for the first time."]
[null,null,null,"The dashed blue line in Visual B projects the subpopulation's proportion of the total population for this measure, based on the subpopulation's baseline data and the total population's baseline data. Is the subpopulation's proportion projected to grow, or to shrink?"]
[null,null,null,"● Compare the subpopulation's projected average annual rate of change (row 43) to the projected annual rate of change for all persons (row 8). Is the rate of change for the subpopulation greater or less than that of all persons?  \n● Is the subpopulation disproportionately represented among those newly experiencing homelessness as compared to the overall homeless population? As compared to the region’s population? \n● What does your HMIS data show in terms of this population’s services?"]
[]
[null,"②b",null,"Consider potential strategies that promote equity."]
[null,null,null,"What types of programmatic, policy, or operational changes could be implemented to support a more equitable outcome for this subpopulation? If implemented, how might these strategies affect this outcome for this subpopulation? "]
[]
[]
[null,"③a",null,"Enter a target outcome to reach by CY2026 in the highlighted cell."]
[null,null,null,"CY2026",null,null,"CY2023","CY2024","CY2025","CY2026"]
[null,null,null,null,null,null,{"$f":"G47","v":{"$error":"#N/A"}},{"$f":"H47","v":{"$error":"#N/A"}},{"$f":"I47","v":{"$error":"#N/A"}},{"$f":"J47","v":{"$error":"#N/A"}}]
[null,null,null,null,null,null,"Annual targets given CY2026 target input"]
[null,null,null,"target average annual rate of change\n2022 - 2026:",null,{"$f":"AVERAGE(((G58-F41)/F41),((H58-G58)/G58),((I58-H58)/H58),((J58-I58)/I58))","v":{"$error":"#N/A"}},"Progress distributed evenly across years"]
[null,null,null,"% change 2022 - 2026: ",null,{"$f":"IFERROR(IF(D58=\"\", NA(), (J58-F42)/F42), \"\")","v":""}]
[]
[null,"③a",null,"Compare the paths towards the projected outcome and towards the target outcome."]
[null,null,null,"Compare the the dashed blue line to the dashed red line in Visual B, and compare the projected rate of change (row 43) to the target rate of change (row 60). Does the target change for the subpopulation make sense given the intended strategies to promote greater equity? If this does not seem ambitious enough, or achievable, then experiment with a different target."]

{"sheet":"3","index":7,"n_rows":64,"n_cols":29,"rows_kept":64,"cut":false,"hidden":false,"merged":[[29,1,29,19],[1,1,1,19],[6,6,6,9],[8,3,8,4],[8,6,8,9],[9,3,9,4],[13,3,13,11],[15,3,15,11],[21,6,21,9],[23,3,23,4],[23,6,23,9],[26,3,26,11],[60,3,60,4],[60,6,60,9],[32,3,32,11],[35,3,35,9],[41,6,41,9],[43,3,43,4],[43,6,43,9],[44,3,44,4],[31,13,31,18],[59,3,59,4],[59,6,59,9],[63,3,63,11],[7,3,7,4],[7,6,7,9],[22,6,22,9],[22,3,22,4],[38,3,38,11],[42,3,42,4],[42,6,42,9],[47,3,47,11],[48,3,48,11],[49,3,49,11],[52,3,52,11],[58,6,58,9]]}
[]
[null,"CA SPM 3: Number of people exiting homelessness into permanent housing"]
[]
[null,"①",null,"Enter CA SPM 3 from CY2020, CY2021, and CY2022 in the \"Topline\" tab into the highlighted cells."]
[null,null,null,"CY2020","CY2021","CY2022","CY2023","CY2024","CY2025","CY2026"]
[null,null,null,null,null,null,{"$f":"G11","v":{"$error":"#N/A"}},{"$f":"H11","v":{"$error":"#N/A"}},{"$f":"I11","v":{"$error":"#N/A"}},{"$f":"J11","v":{"$error":"#N/A"}}]
[null,null,null,{"$f":"IF(OR($D$6=\"\",$E$6=\"\",$F$6=\"\"),NA(),D6)","v":{"$error":"#N/A"}},{"$f":"IF(OR($D$6=\"\",$E$6=\"\",$F$6=\"\"),NA(),E6)","v":{"$error":"#N/A"}},{"$f":"IF(OR($D$6=\"\",$E$6=\"\",$F$6=\"\"),NA(),F6)","v":{"$error":"#N/A"}},{"$f":"IF(OR(F6=\"\",E6=\"\",D6=\"\"),\"\",\"Projection based on average annual change of \"&(F6-D6)/2&\" individuals\")","v":""}]
[null,null,null,"projected average annual rate of change\n2022 - 2026:",null,{"$f":"IFERROR(IF(OR(D6=\"\", E6=\"\", F6=\"\"), NA(), AVERAGE(((G6-F6)/F6),((H6-G6)/G6),((I6-H6)/H6),((J6-I6)/I6))), \"\")","v":""},"Annual change calculation: (CY2022 - CY2020) / 2 + prior CY"]
[null,null,null,"% change 2020 - 2022: ",null,{"$f":"IFERROR(IF(OR(D6=\"\", E6=\"\", F6=\"\"), NA(), (F6-D6)/D6), \"\")","v":""}]
[null,null,null,"% change 2022 - 2026: ",null,{"$f":"IFERROR(IF(OR(D6=\"\", E6=\"\", F6=\"\"), NA(), (J6-F6)/F6), \"\")","v":""}]
[null,null,null,null,null,{"$f":"IF(OR(F6=\"\", E6=\"\", D6=\"\"), NA(), F6)","v":{"$error":"#N/A"}},{"$f":"(F6-D6)/2+F11","v":{"$error":"#N/A"}},{"$f":"(F6-D6)/2+G11","v":{"$error":"#N/A"}},{"$f":"(F6-D6)/2+H11","v":{"$error":"#N/A"}},{"$f":"(F6-D6)/2+I11","v":{"$error":"#N/A"}}]
[null,null,null,null,null,{"$f":"F11","v":{"$error":"#N/A"}},{"$f":"IF($D$21=\"\",NA(),F12+(($D$21-$F$6)/4))","v":{"$error":"#N/A"}},{"$f":"IF($D$21=\"\",NA(),G12+(($D$21-$F$6)/4))","v":{"$error":"#N/A"}},{"$f":"IF($D$21=\"\",NA(),H12+(($D$21-$F$6)/4))","v":{"$error":"#N/A"}},{"$f":"IF($D$21=\"\",NA(),I12+(($D$21-$F$6)/4))","v":{"$error":"#N/A"}}]
[null,"②a",null,"Consider what may be contributing to and influencing these outcomes."]
[null,null,null,"• Does this data reflect what your community is experiencing?\n• Were there changes in how data was collected with your community during this time ('20 - '22) that might account for upward or downward changes?\n• What recent changes in the community could be influencing this outcome (e.g., increases in overall homelessness, opening or closing of housing projects, etc.)?\n• What programs and efforts within the CoC influence this CA SPM most directly? \n• Do you plan to introduce new efforts that are likely to influence this outcome (e.g., because of HHAP funding or other resources)? "]
[]
[null,"②b",null,"Given the trajectory of past data and the influence of factors identified in 2a above, what is the likely direction this outcome will trend over the next few years (e.g., up steeply, up slightly, remain flat, go down slightly, go down steeply)?"]
[]
[]
[null,"③a",null,"Enter an ambitious but achievable target outcome to reach by CY2026 in the highlighted cell."]
[null,null,null,"CY2026",null,null,"CY2023","CY2024","CY2025","CY2026"]
[null,null,null,null,null,null,{"$f":"G12","v":{"$error":"#N/A"}},{"$f":"H12","v":{"$error":"#N/A"}},{"$f":"I12","v":{"$error":"#N/A"}},{"$f":"J12","v":{"$error":"#N/A"}}]
[null,null,null,null,null,null,"Annual targets given CY2026 target input"]
[null,null,null,"target average annual rate of change\n2022 - 2026:",null,{"$f":"AVERAGE(((G21-F6)/F6),((H21-G21)/G21),((I21-H21)/H21),((J21-I21)/I21))","v":{"$error":"#N/A"}},"Progress distributed evenly across years"]
[null,null,null,"% change 2022 - 2026: ",null,{"$f":"IFERROR((J21-F7)/F7, \"\")","v":""}]
[]
[null,"③b",null,"Review the path towards reaching this target outcome."]
[null,null,null,"• Look at the dashed red line on the graph in Visual A.  Does the trajectory of the target outcome seem reasonable given the contextual factors identified in step 2a? \n• To reach this target outcome, you would need to make progress each year as suggested in the cells above. Does this seem achievable?  \n• Continue working with this data to see how different target outcomes change the trajectory."]
[]
[]
[null,"CA SPM 7.3: Racial and ethnic disparities in the number of people exiting homelessness into permanent housing"]
[]
[null,"①a",null,"Identify an underserved or disproportionately impacted population",null,null,null,null,null,null,null,null,null,"Visual B: Subpopulation's share of all persons exiting homelessness into permanent housing"]
[null,null,null,"Use the charts in the \"Identifying Populations\" tab to identify an underserved and/or disproportionately impacted subpopulation. You may also use the Measure 7 section of the \"Detail\" tabs of your CA SPM Report to look for subpopulations that make up a smaller percentage of all people accessing services who are exiting homelessness into permanent housing.",null,null,null,null,null,null,null,null,null,null,null,null,null,null,null,null,null,null,2020,2021,2022,2023,2024,2025,2026]
[null,null,null,null,null,null,null,null,null,null,null,null,null,null,null,null,null,null,null,null,null,"Baseline",{"$f":"IF(OR($D$6=\"\",$E$6=\"\",$F$6=\"\",$D$41=\"\",$E$41=\"\",$F$41=\"\"),NA(),D41/D6)","v":{"$error":"#N/A"}},{"$f":"IF(OR($D$6=\"\",$E$6=\"\",$F$6=\"\",$D$41=\"\",$E$41=\"\",$F$41=\"\"),NA(),E41/E6)","v":{"$error":"#N/A"}},{"$f":"IF(OR($D$6=\"\",$E$6=\"\",$F$6=\"\",$D$41=\"\",$E$41=\"\",$F$41=\"\"),NA(),F41/F6)","v":{"$error":"#N/A"}}]
[null,null,null,"Identify a subpopulation from the dropdown menu and indicate it here.",null,null,null,null,null,null,null,null,null,null,null,null,null,null,null,null,null,"Projection",null,null,{"$f":"IF(OR($D$6=\"\",$E$6=\"\",$F$6=\"\",$D$41=\"\",$E$41=\"\",$F$41=\"\"),NA(),F41/F6)","v":{"$error":"#N/A"}},{"$f":"G41/G6","v":{"$error":"#N/A"}},{"$f":"H41/H6","v":{"$error":"#N/A"}},{"$f":"I41/I6","v":{"$error":"#N/A"}},{"$f":"J41/J6","v":{"$error":"#N/A"}}]
[null,null,null,"Persons in HHs without children ",null,null,null,null,null,null,null,null,null,null,null,null,null,null,null,null,null,"Target",null,null,{"$f":"IF(OR($D$6=\"\",$E$6=\"\",$F$6=\"\",$D$41=\"\",$E$41=\"\",$F$41=\"\"),NA(),F41/F6)","v":{"$error":"#N/A"}},{"$f":"G58/G21","v":{"$error":"#N/A"}},{"$f":"H58/H21","v":{"$error":"#N/A"}},{"$f":"I58/I21","v":{"$error":"#N/A"}},{"$f":"J58/J21","v":{"$error":"#N/A"}}]
[]
[null,"①b",null,"Enter the CA SPM 7.3 data for this subpopulation below in the highlighted cells. "]
[null,null,null,"This data is found in the Measure 7 sections of the CY2020, CY2021, CY2022 detail tabs of your CA SPM Data Report. "]
[null,null,null,"CY2020","CY2021","CY2022","CY2023","CY2024","CY2025","CY2026"]
[null,null,null,null,null,null,{"$f":"G46","v":{"$error":"#N/A"}},{"$f":"H46","v":{"$error":"#N/A"}},{"$f":"I46","v":{"$error":"#N/A"}},{"$f":"J46","v":{"$error":"#N/A"}}]
[null,null,null,{"$f":"IF(OR($D$41=\"\",$E$41=\"\",$F$41=\"\"),NA(),D41)","v":{"$error":"#N/A"}},{"$f":"IF(OR($D$41=\"\",$E$41=\"\",$F$41=\"\"),NA(),E41)","v":{"$error":"#N/A"}},{"$f":"IF(OR($D$41=\"\",$E$41=\"\",$F$41=\"\"),NA(),F41)","v":{"$error":"#N/A"}},{"$f":"IF(OR(F41=\"\",E41=\"\",D41=\"\"),\"\", \"Projection based on average annual change of \"&(F41-D41)/2&\" individuals\")","v":""}]
[null,null,null,"projected average annual rate of change\n2022 - 2026:",null,{"$f":"IFERROR(IF(OR(D41=\"\", E41=\"\", F41=\"\"), NA(), AVERAGE(((G41-F41)/F41),((H41-G41)/G41),((I41-H41)/H41),((J41-I41)/I41))), \"\")","v":""},"Annual change calculation: (CY2022 - CY2020) / 2 + prior CY"]
[null,null,null,"% change 2020 - 2022: ",null,{"$f":"IFERROR(IF(OR(D41=\"\", E41=\"\", F41=\"\"), NA(), (F41-D41)/D41), \"\")","v":""}]
[null,null,null,"% change 2022 - 2026: ",null,{"$f":"IFERROR(IF(OR(D41=\"\", E41=\"\", F41=\"\"), NA(), (J41-F41)/F41), \"\")","v":""}]
[null,null,null,null,null,{"$f":"IF(OR(F41=\"\", E41=\"\", D41=\"\"), NA(), F41)","v":{"$error":"#N/A"}},{"$f":"(F41-D41)/2+F46","v":{"$error":"#N/A"}},{"$f":"(F41-D41)/2+G46","v":{"$error":"#N/A"}},{"$f":"(F41-D41)/2+H46","v":{"$error":"#N/A"}},{"$f":"(F41-D41)/2+I46","v":{"$error":"#N/A"}}]
[null,null,null,null,null,{"$f":"F46","v":{"$error":"#N/A"}},{"$f":"IF($D$58=\"\",NA(),F47+(($D$58-$F$41)/4))","v":{"$error":"#N/A"}},{"$f":"IF($D$58=\"\",NA(),G47+(($D$58-$F$41)/4))","v":{"$error":"#N/A"}},{"$f":"IF($D$58=\"\",NA(),H47+(($D$58-$F$41)/4))","v":{"$error":"#N/A"}},{"$f":"IF($D$58=\"\",NA(),I47+(($D$58-$F$41)/4))","v":{"$error":"#N/A"}}]
[null,"②a",null,"Examine the subpopulation's size relative to all persons who are exiting homelessness into permanent housing."]
[null,null,null,"The dashed blue line in Visual B projects the subpopulation's proportion of the total population for this measure, based on the subpopulation's baseline data and the total population's baseline data. Is the subpopulation's proportion projected to grow, or to shrink?"]
[null,null,null,"• Compare the subpopulation's projected average annual rate of change (row 43) to the projected annual rate of change for all persons (row 8). Is the rate of change for the subpopulation greater or less than that of all persons?\n• Is the subpopulation underrepresented among those leaving for permanent housing as compared to the overall homeless population? As compared to the region’s population?\n• What does your HMIS data show in terms of this population’s access to housing?"]
[]
[null,"②b",null,"Consider potential strategies that promote equity."]
[null,null,null,"What types of programmatic, policy, or operational changes could be implemented to support a more equitable outcome for this subpopulation? If implemented, how might these strategies affect this outcome for this subpopulation? "]
[]
[]
[null,"③a",null,"Enter a target outcome to reach by CY2026 in the highlighted cell."]
[null,null,null,"CY2026",null,null,"CY2023","CY2024","CY2025","CY2026"]
[null,null,null,null,null,null,{"$f":"G47","v":{"$error":"#N/A"}},{"$f":"H47","v":{"$error":"#N/A"}},{"$f":"I47","v":{"$error":"#N/A"}},{"$f":"J47","v":{"$error":"#N/A"}}]
[null,null,null,null,null,null,"Annual targets given CY2026 target input"]
[null,null,null,"target average annual rate of change\n2022 - 2026:",null,{"$f":"AVERAGE(((G58-F41)/F41),((H58-G58)/G58),((I58-H58)/H58),((J58-I58)/I58))","v":{"$error":"#N/A"}},"Progress distributed evenly across years"]
[null,null,null,"% change 2022 - 2026: ",null,{"$f":"IFERROR(IF(D58=\"\", NA(), (J58-F42)/F42), \"\")","v":""}]
[]
[null,"③a",null,"Compare the paths towards the projected outcome and towards the target outcome."]
[null,null,null,"Compare the the dashed blue line to the dashed red line in Visual B, and compare the projected rate of change (row 43) to the target rate of change (row 60). Does the target change for the subpopulation make sense given the intended strategies to promote greater equity? If this does not seem ambitious enough, or achievable, then experiment with a different target."]

{"sheet":"4","index":8,"n_rows":64,"n_cols":29,"rows_kept":64,"cut":false,"hidden":false,"merged":[[44,3,44,4],[59,3,59,4],[59,6,59,9],[63,3,63,11],[47,3,47,12],[48,3,48,11],[49,3,49,11],[52,3,52,11],[58,6,58,9],[60,3,60,4],[60,6,60,9],[15,3,15,11],[21,6,21,9],[23,3,23,4],[23,6,23,9],[26,3,26,11],[22,3,22,4],[22,6,22,9],[29,1,29,19],[32,3,32,11],[35,3,35,9],[41,6,41,9],[43,3,43,4],[43,6,43,9],[38,3,38,11],[42,3,42,4],[42,6,42,9],[13,3,13,11],[1,1,1,19],[6,6,6,9],[8,3,8,4],[8,6,8,9],[9,3,9,4],[7,3,7,4],[7,6,7,9]]}
[]
[null,"CA SPM 4: Average length of time that people experienced homelessness while accessing services"]
[]
[null,"①",null,"Enter CA SPM 4 from CY2020, CY2021, and CY2022 in the \"Topline\" tab into the highlighted cells."]
[null,null,null,"CY2020","CY2021","CY2022","CY2023","CY2024","CY2025","CY2026"]
[null,null,null,null,null,null,{"$f":"G11","v":{"$error":"#N/A"}},{"$f":"H11","v":{"$error":"#N/A"}},{"$f":"I11","v":{"$error":"#N/A"}},{"$f":"J11","v":{"$error":"#N/A"}}]
[null,null,null,{"$f":"IF(OR($D$6=\"\",$E$6=\"\",$F$6=\"\"),NA(),D6)","v":{"$error":"#N/A"}},{"$f":"IF(OR($D$6=\"\",$E$6=\"\",$F$6=\"\"),NA(),E6)","v":{"$error":"#N/A"}},{"$f":"IF(OR($D$6=\"\",$E$6=\"\",$F$6=\"\"),NA(),F6)","v":{"$error":"#N/A"}},{"$f":"IF(OR(F6=\"\",E6=\"\",D6=\"\"),\"\",\"Projection based on average annual change of \"&ROUND((F6-D6)/2, 1)&\" days\")","v":""}]
[null,null,null,"projected average annual rate of change\n2022 - 2026:",null,{"$f":"IFERROR(IF(OR(D6=\"\", E6=\"\", F6=\"\"), NA(), AVERAGE(((G6-F6)/F6),((H6-G6)/G6),((I6-H6)/H6),((J6-I6)/I6))), \"\")","v":""},"Annual change calculation: (CY2022 - CY2020) / 2 + prior CY"]
[null,null,null,"% change 2020 - 2022: ",null,{"$f":"IFERROR(IF(OR(D6=\"\", E6=\"\", F6=\"\"), NA(), (F6-D6)/D6), \"\")","v":""}]
[null,null,null,"% change 2022 - 2026: ",null,{"$f":"IFERROR(IF(OR(D6=\"\", E6=\"\", F6=\"\"), NA(), (J6-F6)/F6), \"\")","v":""}]
[null,null,null,null,null,{"$f":"IF(OR(F6=\"\", E6=\"\", D6=\"\"), NA(), F6)","v":{"$error":"#N/A"}},{"$f":"(F6-D6)/2+F11","v":{"$error":"#N/A"}},{"$f":"(F6-D6)/2+G11","v":{"$error":"#N/A"}},{"$f":"(F6-D6)/2+H11","v":{"$error":"#N/A"}},{"$f":"(F6-D6)/2+I11","v":{"$error":"#N/A"}}]
[null,null,null,null,null,{"$f":"F11","v":{"$error":"#N/A"}},{"$f":"IF($D$21=\"\",NA(),F12+(($D$21-$F$6)/4))","v":{"$error":"#N/A"}},{"$f":"IF($D$21=\"\",NA(),G12+(($D$21-$F$6)/4))","v":{"$error":"#N/A"}},{"$f":"IF($D$21=\"\",NA(),H12+(($D$21-$F$6)/4))","v":{"$error":"#N/A"}},{"$f":"IF($D$21=\"\",NA(),I12+(($D$21-$F$6)/4))","v":{"$error":"#N/A"}}]
[null,"②a",null,"Consider what may be contributing to and influencing these outcomes."]
[null,null,null,"• Does this data reflect what your community is experiencing?\n• Were there changes in how data was collected with your community during this time ('20 - '22) that might account for upward or downward changes?\n• What recent changes in the community could be influencing this outcome (e.g., changes in rules about how long people can be sheltered, increase in available housing exits, etc.)?\n• What programs and efforts within the CoC influence this CA SPM most directly? \n• Do you plan to introduce new efforts that are likely to influence this outcome (e.g., because of HHAP funding or other resources)? "]
[]
[null,"②b",null,"Given the trajectory of past data and the influence of factors identified in 2a above, what is the likely direction this outcome will trend over the next few years (e.g., up steeply, up slightly, remain flat, go down slightly, go down steeply)?"]
[]
[]
[null,"③a",null,"Enter an ambitious but achievable target outcome to reach by CY2026 in the highlighted cell."]
[null,null,null,"CY2026",null,null,"CY2023","CY2024","CY2025","CY2026"]
[null,null,null,null,null,null,{"$f":"G12","v":{"$error":"#N/A"}},{"$f":"H12","v":{"$error":"#N/A"}},{"$f":"I12","v":{"$error":"#N/A"}},{"$f":"J12","v":{"$error":"#N/A"}}]
[null,null,null,null,null,null,"Annual targets given CY2026 target input"]
[null,null,null,"target average annual rate of change\n2022 - 2026:",null,{"$f":"AVERAGE(((G21-F6)/F6),((H21-G21)/G21),((I21-H21)/H21),((J21-I21)/I21))","v":{"$error":"#N/A"}},"Progress distributed evenly across years"]
[null,null,null,"% change 2022 - 2026: ",null,{"$f":"IFERROR((J21-F7)/F7, \"\")","v":""}]
[]
[null,"③b",null,"Review the path towards reaching this target outcome."]
[null,null,null,"• Look at the dashed red line on the graph in Visual A.  Does the trajectory of the target outcome seem reasonable given the contextual factors identified in step 2a?\n• To reach this target outcome, you will need to make average progress each year as shown in the cells above. Does this seem achievable?  \n• Continue working with this data to see how different target outcomes change the trajectory."]
[]
[]
[null,"CA SPM 7.4: Racial and ethnic disparities in the average length of time that people experienced homelessness while accessing services"]
[]
[null,"①a",null,"Identify an underserved or disproportionately impacted population"]
[null,null,null,"Use the charts in the \"Identifying Populations\" tab to identify an underserved and/or disproportionately impacted subpopulation. You may also use the Measure 7 section of the \"Detail\" tabs of your CA SPM Report to look for subpopulations that experience homelessness while accessing services for a longer amount of time on average.",null,null,null,null,null,null,null,null,null,null,null,null,null,null,null,null,null,null,null,"Past","Projected Outcome","Target Outcome","Past","Projected Outcome","Target Outcome"]
[null,null,null,null,null,null,null,null,null,null,null,null,null,null,null,null,null,null,null,null,null,"All Persons"]
[null,null,null,"Identify a subpopulation from the dropdown menu and indicate it here.",null,null,null,null,null,null,null,null,null,null,null,null,null,null,null,null,null,null,"CY20",{"$f":"IF(OR(D6=\"\",E6=\"\",F6=\"\"),NA(),D6)","v":{"$error":"#N/A"}}]
[null,null,null,"Persons in HHs without children ",null,null,null,null,null,null,null,null,null,null,null,null,null,null,null,null,null,null,"CY21",{"$f":"IF(OR(D6=\"\",E6=\"\",F6=\"\"),NA(),E6)","v":{"$error":"#N/A"}}]
[null,null,null,null,null,null,null,null,null,null,null,null,null,null,null,null,null,null,null,null,null,null,"CY22",{"$f":"IF(OR(D6=\"\",E6=\"\",F6=\"\"),NA(),F6)","v":{"$error":"#N/A"}},{"$f":"IF(OR(D6=\"\",E6=\"\",F6=\"\"),NA(),F6)","v":{"$error":"#N/A"}},{"$f":"IF(D21=\"\",NA(),F6)","v":{"$error":"#N/A"}}]
[null,"①b",null,"Enter the CA SPM 7.4 data for this subpopulation below in the highlighted cells. ",null,null,null,null,null,null,null,null,null,null,null,null,null,null,null,null,null,null,"CY23",null,{"$f":"IF(OR(D6=\"\",E6=\"\",F6=\"\"),NA(),G11)","v":{"$error":"#N/A"}},{"$f":"IF(D21=\"\",NA(),G12)","v":{"$error":"#N/A"}}]
[null,null,null,"This data is found in the Measure 7 sections of the CY2020, CY2021, CY2022 detail tabs of your CA SPM Data Report. ",null,null,null,null,null,null,null,null,null,null,null,null,null,null,null,null,null,null,"CY24",null,{"$f":"IF(OR(D6=\"\",E6=\"\",F6=\"\"),NA(),H11)","v":{"$error":"#N/A"}},{"$f":"IF(D21=\"\",NA(),H12)","v":{"$error":"#N/A"}}]
[null,null,null,"CY2020","CY2021","CY2022","CY2023","CY2024","CY2025","CY2026",null,null,null,null,null,null,null,null,null,null,null,null,"CY25",null,{"$f":"IF(OR(D6=\"\",E6=\"\",F6=\"\"),NA(),I11)","v":{"$error":"#N/A"}},{"$f":"IF(D21=\"\",NA(),I12)","v":{"$error":"#N/A"}}]
[null,null,null,null,null,null,{"$f":"G46","v":{"$error":"#N/A"}},{"$f":"H46","v":{"$error":"#N/A"}},{"$f":"I46","v":{"$error":"#N/A"}},{"$f":"J46","v":{"$error":"#N/A"}},null,null,null,null,null,null,null,null,null,null,null,null,"CY26",null,{"$f":"IF(OR(D6=\"\",E6=\"\",F6=\"\"),NA(),J11)","v":{"$error":"#N/A"}},{"$f":"IF(D21=\"\",NA(),J12)","v":{"$error":"#N/A"}}]
[null,null,null,{"$f":"IF(OR($D$41=\"\",$E$41=\"\",$F$41=\"\"),NA(),D41)","v":{"$error":"#N/A"}},{"$f":"IF(OR($D$41=\"\",$E$41=\"\",$F$41=\"\"),NA(),E41)","v":{"$error":"#N/A"}},{"$f":"IF(OR($D$41=\"\",$E$41=\"\",$F$41=\"\"),NA(),F41)","v":{"$error":"#N/A"}},{"$f":"IF(OR(F41=\"\",E41=\"\",D41=\"\"),\"\", \"Projection based on average annual change of \"&(F41-D41)/2&\" days\")","v":""}]
[null,null,null,"projected average annual rate of change\n2022 - 2026:",null,{"$f":"IFERROR(IF(OR(D41=\"\", E41=\"\", F41=\"\"), NA(), AVERAGE(((G41-F41)/F41),((H41-G41)/G41),((I41-H41)/H41),((J41-I41)/I41))), \"\")","v":""},"Annual change calculation: (CY2022 - CY2020) / 2 + prior CY",null,null,null,null,null,null,null,null,null,null,null,null,null,null,{"$f":"IF(D36=\"\",\"Subpopulation\", D36)","v":"Persons in HHs without children "},"CY20",null,null,null,{"$f":"IF(OR(D41=\"\",E41=\"\",F41=\"\"),NA(),D41)","v":{"$error":"#N/A"}}]
[null,null,null,"% change 2020 - 2022: ",null,{"$f":"IFERROR(IF(OR(D41=\"\", E41=\"\", F41=\"\"), NA(), (F41-D41)/D41), \"\")","v":""},null,null,null,null,null,null,null,null,null,null,null,null,null,null,null,null,"CY21",null,null,null,{"$f":"IF(OR(D41=\"\",E41=\"\",F41=\"\"),NA(),E41)","v":{"$error":"#N/A"}}]
[null,null,null,"% change 2022 - 2026: ",null,{"$f":"IFERROR(IF(OR(D41=\"\", E41=\"\", F41=\"\"), NA(), (J41-F41)/F41), \"\")","v":""},null,null,null,null,null,null,null,null,null,null,null,null,null,null,null,null,"CY22",null,null,null,{"$f":"IF(OR(D41=\"\",E41=\"\",F41=\"\"),NA(),F41)","v":{"$error":"#N/A"}},{"$f":"IF(OR(D41=\"\",E41=\"\",F41=\"\"),NA(),F41)","v":{"$error":"#N/A"}},{"$f":"IF(D58=\"\",NA(),F41)","v":{"$error":"#N/A"}}]
[null,null,null,null,null,{"$f":"IF(OR(F41=\"\", E41=\"\", D41=\"\"), NA(), F41)","v":{"$error":"#N/A"}},{"$f":"(F41-D41)/2+F46","v":{"$error":"#N/A"}},{"$f":"(F41-D41)/2+G46","v":{"$error":"#N/A"}},{"$f":"(F41-D41)/2+H46","v":{"$error":"#N/A"}},{"$f":"(F41-D41)/2+I46","v":{"$error":"#N/A"}},null,null,null,null,null,null,null,null,null,null,null,null,"CY23",null,null,null,null,{"$f":"IF(OR(D41=\"\",E41=\"\",F41=\"\"),NA(),G41)","v":{"$error":"#N/A"}},{"$f":"IF(D58=\"\",NA(),G58)","v":{"$error":"#N/A"}}]
[null,null,null,null,null,{"$f":"F46","v":{"$error":"#N/A"}},{"$f":"IF($D$58=\"\",NA(),F47+(($D$58-$F$41)/4))","v":{"$error":"#N/A"}},{"$f":"IF($D$58=\"\",NA(),G47+(($D$58-$F$41)/4))","v":{"$error":"#N/A"}},{"$f":"IF($D$58=\"\",NA(),H47+(($D$58-$F$41)/4))","v":{"$error":"#N/A"}},{"$f":"IF($D$58=\"\",NA(),I47+(($D$58-$F$41)/4))","v":{"$error":"#N/A"}},null,null,null,null,null,null,null,null,null,null,null,null,"CY24",null,null,null,null,{"$f":"IF(OR(D41=\"\",E41=\"\",F41=\"\"),NA(),H41)","v":{"$error":"#N/A"}},{"$f":"IF(D58=\"\",NA(),H58)","v":{"$error":"#N/A"}}]
[null,"②a",null,"Examine subpopulation's average length of time compared to that of all persons experiencing homelessness while accessing services.",null,null,null,null,null,null,null,null,null,null,null,null,null,null,null,null,null,null,"CY25",null,null,null,null,{"$f":"IF(OR(D41=\"\",E41=\"\",F41=\"\"),NA(),I41)","v":{"$error":"#N/A"}},{"$f":"IF(D58=\"\",NA(),I58)","v":{"$error":"#N/A"}}]
[null,null,null,"The solid blue line on the left side of Visual B shows the total population's average length of time homeless over the past two years, and the dashed blue line projects the total population's average length of time homeless in the subsequent four years based on the baseline data. The blue lines on the right side of Visual B show the baseline and projected average lengths of time homeless for the subpopulation.",null,null,null,null,null,null,null,null,null,null,null,null,null,null,null,null,null,null,"CY26",null,null,null,null,{"$f":"IF(OR(D41=\"\",E41=\"\",F41=\"\"),NA(),J41)","v":{"$error":"#N/A"}},{"$f":"IF(D58=\"\",NA(),J58)","v":{"$error":"#N/A"}}]
[null,null,null,"● Compare the subpopulation's projected average annual rate of change (row 43) to the projected annual rate of change for all persons (row 8). Is the rate of change for the subpopulation greater or less than that of all persons?  \n● Is the subpopulation homeless for a longer amount of time on average than the region's total population? \n● What does your HMIS data show in terms of this population’s access to housing and services?\n",null,null,null,null,null,null,null,null,null,null,null,null,null,null,null,null,null,null," "]
[]
[null,"②b",null,"Consider potential strategies that promote equity."]
[null,null,null,"What types of programmatic, policy, or operational changes could be implemented to support a more equitable outcome for this subpopulation? If implemented, how might these strategies affect this outcome for this subpopulation? "]
[]
[]
[null,"③a",null,"Enter a target outcome to reach by CY2026 in the highlighted cell."]
[null,null,null,"CY2026",null,null,"CY2023","CY2024","CY2025","CY2026"]
[null,null,null,null,null,null,{"$f":"G47","v":{"$error":"#N/A"}},{"$f":"H47","v":{"$error":"#N/A"}},{"$f":"I47","v":{"$error":"#N/A"}},{"$f":"J47","v":{"$error":"#N/A"}}]
[null,null,null,null,null,null,"Annual targets given CY2026 target input"]
[null,null,null,"target average annual rate of change\n2022 - 2026:",null,{"$f":"AVERAGE(((G58-F41)/F41),((H58-G58)/G58),((I58-H58)/H58),((J58-I58)/I58))","v":{"$error":"#N/A"}},"Progress distributed evenly across years"]
[null,null,null,"% change 2022 - 2026: ",null,{"$f":"IFERROR(IF(D58=\"\", NA(), (J58-F42)/F42), \"\")","v":""}]
[]
[null,"③a",null,"Compare the paths towards the projected outcome and towards the target outcome."]
[null,null,null,"Compare the the dashed blue line to the dashed red line in Visual B, and compare the projected rate of change (row 43) to the target rate of change (row 60). Does the target change for the subpopulation make sense given the intended strategies to promote greater equity? If this does not seem ambitious enough, or achievable, then experiment with a different target."]

{"sheet":"5","index":9,"n_rows":64,"n_cols":29,"rows_kept":64,"cut":false,"hidden":false,"merged":[[63,3,63,11],[7,3,7,4],[7,6,7,9],[22,6,22,9],[22,3,22,4],[42,6,42,9],[42,3,42,4],[59,3,59,4],[59,6,59,9],[48,3,48,11],[49,3,49,11],[52,3,52,11],[58,6,58,9],[60,3,60,4],[60,6,60,9],[32,3,32,11],[35,3,35,9],[41,6,41,9],[43,3,43,4],[43,6,43,9],[44,3,44,4],[29,1,29,19],[1,1,1,19],[6,6,6,9],[8,3,8,4],[8,6,8,9],[9,3,9,4],[13,3,13,11],[15,3,15,11],[21,6,21,9],[23,3,23,4],[23,6,23,9],[26,3,26,11]]}
[]
[null,"CA SPM 5: Percent of people who return to homelessness within 6 months of exiting the homelessness response system to permanent housing"]
[]
[null,"①",null,"Enter CA SPM 5 from CY2020, CY2021, and CY2022 in the \"Topline\" tab into the highlighted cells."]
[null,null,null,"CY2020","CY2021","CY2022","CY2023","CY2024","CY2025","CY2026"]
[null,null,null,null,null,null,{"$f":"G11","v":{"$error":"#N/A"}},{"$f":"H11","v":{"$error":"#N/A"}},{"$f":"I11","v":{"$error":"#N/A"}},{"$f":"J11","v":{"$error":"#N/A"}}]
[null,null,null,{"$f":"IF(OR($D$6=\"\",$E$6=\"\",$F$6=\"\"),NA(),D6)","v":{"$error":"#N/A"}},{"$f":"IF(OR($D$6=\"\",$E$6=\"\",$F$6=\"\"),NA(),E6)","v":{"$error":"#N/A"}},{"$f":"IF(OR($D$6=\"\",$E$6=\"\",$F$6=\"\"),NA(),F6)","v":{"$error":"#N/A"}},{"$f":"IF(OR(F6=\"\",E6=\"\",D6=\"\"),\"\",\"Projection based on average annual change of \"&(ROUND((F6-D6)/2,2)*100&\" % points\"))","v":""}]
[null,null,null,"projected average annual % point change\n2022 - 2026:",null,{"$f":"IFERROR(IF(OR(D6=\"\", E6=\"\", F6=\"\"), NA(), \"\"&100*ROUND(AVERAGE((G6-F6),(H6-G6),(I6-H6),(J6-I6)),2)&\" % points\"), \"\")","v":""},"Annual change calculation: (CY2022 - CY2020) / 2 + prior CY"]
[null,null,null,"% point change 2020 - 2022: ",null,{"$f":"IFERROR(IF(OR(D6=\"\", E6=\"\", F6=\"\"), NA(), \"\"&100*ROUND(F6-D6,2)&\" % points\"), \"\")","v":""}]
[null,null,null,"% point change 2022 - 2026: ",null,{"$f":"IFERROR(IF(OR(D6=\"\", E6=\"\", F6=\"\"), NA(), \"\"&100*ROUND(J6-F6,2)&\" % points\"), \"\")","v":""}]
[null,null,null,null,null,{"$f":"IF(OR(F6=\"\", E6=\"\", D6=\"\"), NA(), F6)","v":{"$error":"#N/A"}},{"$f":"(F6-D6)/2+F11","v":{"$error":"#N/A"}},{"$f":"(F6-D6)/2+G11","v":{"$error":"#N/A"}},{"$f":"(F6-D6)/2+H11","v":{"$error":"#N/A"}},{"$f":"(F6-D6)/2+I11","v":{"$error":"#N/A"}}]
[null,null,null,null,null,{"$f":"F11","v":{"$error":"#N/A"}},{"$f":"IF($D$21=\"\",NA(),F12+(($D$21-$F$6)/4))","v":{"$error":"#N/A"}},{"$f":"IF($D$21=\"\",NA(),G12+(($D$21-$F$6)/4))","v":{"$error":"#N/A"}},{"$f":"IF($D$21=\"\",NA(),H12+(($D$21-$F$6)/4))","v":{"$error":"#N/A"}},{"$f":"IF($D$21=\"\",NA(),I12+(($D$21-$F$6)/4))","v":{"$error":"#N/A"}}]
[null,"②a",null,"Consider what may be contributing to and influencing these outcomes."]
[null,null,null,"• Does this data reflect what your community is experiencing?\n• Were there changes in how data was collected with your community during this time ('20 - '22) that might account for upward or downward changes?\n• What recent changes in the community could be influencing this outcome (e.g., increasing rents, expansion of aftercare support or subsidies, etc.)?\n• What programs and efforts within the CoC influence this CA SPM most directly? \n• Do you plan to introduce new efforts that are likely to influence this outcome (e.g., because of HHAP funding or other resources)?  "]
[]
[null,"②b",null,"Given the trajectory of past data and the influence of factors identified in 2a above, what is the likely direction this outcome will trend over the next few years (e.g., up steeply, up slightly, remain flat, go down slightly, go down steeply)?"]
[]
[]
[null,"③a",null,"Enter an ambitious but achievable target outcome to reach by CY2026 in the highlighted cell."]
[null,null,null,"CY2026",null,null,"CY2023","CY2024","CY2025","CY2026"]
[null,null,null,null,null,null,{"$f":"G12","v":{"$error":"#N/A"}},{"$f":"H12","v":{"$error":"#N/A"}},{"$f":"I12","v":{"$error":"#N/A"}},{"$f":"J12","v":{"$error":"#N/A"}}]
[null,null,null,null,null,null,"Annual targets given CY2026 target input"]
[null,null,null,"target average annual % point change\n2022 - 2026:",null,{"$f":"IFERROR(IF(D21=\"\", NA(), \"\"&100*ROUND(AVERAGE((G21-F6),(H21-G21),(I21-H21),(J21-I21)),2)&\" % points\"), \"\")","v":""},"Progress distributed evenly across years"]
[null,null,null,"% change 2022 - 2026: ",null,{"$f":"IFERROR(\"\"&100*ROUND(J21-F7,2)&\" % points\",\"\")","v":""}]
[]
[null,"③b",null,"Review the path towards reaching this target outcome."]
[null,null,null,"• Look at the dashed red line on the graph in Visual A.  Does the trajectory of the target outcome seem reasonable given the contextual factors identified in step 2a? \n• To reach this target outcome, you will need to make average progress each year as shown in the cells above. Does this seem achievable?  \n• Continue working with this data to see how different target outcomes change the trajectory."]
[]
[]
[null,"CA SPM 7.5: Racial and ethnic disparities in the percent of people who return to homelessness within 6 months of exiting the homelessness response system to permanent housing"]
[]
[null,"①a",null,"Identify an underserved or disproportionately impacted population"]
[null,null,null,"Use the charts in the \"Identifying Populations\" tab to identify an underserved and/or disproportionately impacted subpopulation. You may also use the Measure 7 section of the \"Detail\" tabs of your CA SPM Report to look for subpopulations that return to homelessness at a higher rate.",null,null,null,null,null,null,null,null,null,null,null,null,null,null,null,null,null,null,null,"Past","Projected Outcome","Target Outcome","Past","Projected Outcome","Target Outcome"]
[null,null,null,null,null,null,null,null,null,null,null,null,null,null,null,null,null,null,null,null,null,"All Persons"]
[null,null,null,"Identify a subpopulation from the dropdown menu and indicate it here.",null,null,null,null,null,null,null,null,null,null,null,null,null,null,null,null,null,null,"CY20",{"$f":"IF(OR(D6=\"\",E6=\"\",F6=\"\"),NA(),D6)","v":{"$error":"#N/A"}}]
[null,null,null,"Persons in HHs without children ",null,null,null,null,null,null,null,null,null,null,null,null,null,null,null,null,null,null,"CY21",{"$f":"IF(OR(D6=\"\",E6=\"\",F6=\"\"),NA(),E6)","v":{"$error":"#N/A"}}]
[null,null,null,null,null,null,null,null,null,null,null,null,null,null,null,null,null,null,null,null,null,null,"CY22",{"$f":"IF(OR(D6=\"\",E6=\"\",F6=\"\"),NA(),F6)","v":{"$error":"#N/A"}},{"$f":"IF(OR(D6=\"\",E6=\"\",F6=\"\"),NA(),F6)","v":{"$error":"#N/A"}},{"$f":"IF(D21=\"\",NA(),F6)","v":{"$error":"#N/A"}}]
[null,"①b",null,"Enter the CA SPM 7.5 data for this subpopulation below in the highlighted cells. ",null,null,null,null,null,null,null,null,null,null,null,null,null,null,null,null,null,null,"CY23",null,{"$f":"IF(OR(D6=\"\",E6=\"\",F6=\"\"),NA(),G11)","v":{"$error":"#N/A"}},{"$f":"IF(D21=\"\",NA(),G12)","v":{"$error":"#N/A"}}]
[null,null,null,"This data is found in the Measure 7 sections of the CY2020, CY2021, CY2022 detail tabs of your CA SPM Data Report. ",null,null,null,null,null,null,null,null,null,null,null,null,null,null,null,null,null,null,"CY24",null,{"$f":"IF(OR(D6=\"\",E6=\"\",F6=\"\"),NA(),H11)","v":{"$error":"#N/A"}},{"$f":"IF(D21=\"\",NA(),H12)","v":{"$error":"#N/A"}}]
[null,null,null,"CY2020","CY2021","CY2022","CY2023","CY2024","CY2025","CY2026",null,null,null,null,null,null,null,null,null,null,null,null,"CY25",null,{"$f":"IF(OR(D6=\"\",E6=\"\",F6=\"\"),NA(),I11)","v":{"$error":"#N/A"}},{"$f":"IF(D21=\"\",NA(),I12)","v":{"$error":"#N/A"}}]
[null,null,null,null,null,null,{"$f":"G46","v":{"$error":"#N/A"}},{"$f":"H46","v":{"$error":"#N/A"}},{"$f":"I46","v":{"$error":"#N/A"}},{"$f":"J46","v":{"$error":"#N/A"}},null,null,null,null,null,null,null,null,null,null,null,null,"CY26",null,{"$f":"IF(OR(D6=\"\",E6=\"\",F6=\"\"),NA(),J11)","v":{"$error":"#N/A"}},{"$f":"IF(D21=\"\",NA(),J12)","v":{"$error":"#N/A"}}]
[null,null,null,{"$f":"IF(OR($D$41=\"\",$E$41=\"\",$F$41=\"\"),NA(),D41)","v":{"$error":"#N/A"}},{"$f":"IF(OR($D$41=\"\",$E$41=\"\",$F$41=\"\"),NA(),E41)","v":{"$error":"#N/A"}},{"$f":"IF(OR($D$41=\"\",$E$41=\"\",$F$41=\"\"),NA(),F41)","v":{"$error":"#N/A"}},{"$f":"IF(OR(F41=\"\",E41=\"\",D41=\"\"),\"\",\"Projection based on average annual change of \"&(ROUND((F41-D41)/2,2)*100&\" % points\"))","v":""}]
[null,null,null,"projected average annual % point change\n2022 - 2026:",null,{"$f":"IFERROR(IF(OR(D41=\"\", E41=\"\", F41=\"\"), NA(), \"\"&100*ROUND(AVERAGE((G41-F41),(H41-G41),(I41-H41),(J41-I41)),2)&\" % points\"), \"\")","v":""},"Annual change calculation: (CY2022 - CY2020) / 2 + prior CY",null,null,null,null,null,null,null,null,null,null,null,null,null,null,{"$f":"IF(D36=\"\",\"Subpopulation\", D36)","v":"Persons in HHs without children "},"CY20",null,null,null,{"$f":"IF(OR(D41=\"\",E41=\"\",F41=\"\"),NA(),D41)","v":{"$error":"#N/A"}}]
[null,null,null,"% point change 2020 - 2022: ",null,{"$f":"IFERROR(IF(OR(D41=\"\", E41=\"\", F41=\"\"), NA(), \"\"&100*ROUND(F41-D41,2)&\" % points\"), \"\")","v":""},null,null,null,null,null,null,null,null,null,null,null,null,null,null,null,null,"CY21",null,null,null,{"$f":"IF(OR(D41=\"\",E41=\"\",F41=\"\"),NA(),E41)","v":{"$error":"#N/A"}}]
[null,null,null,"% point change 2022 - 2026: ",null,{"$f":"IFERROR(IF(OR(D41=\"\", E41=\"\", F41=\"\"), NA(), \"\"&100*ROUND(J41-F41,2)&\" % points\"), \"\")","v":""},null,null,null,null,null,null,null,null,null,null,null,null,null,null,null,null,"CY22",null,null,null,{"$f":"IF(OR(D41=\"\",E41=\"\",F41=\"\"),NA(),F41)","v":{"$error":"#N/A"}},{"$f":"IF(OR(D41=\"\",E41=\"\",F41=\"\"),NA(),F41)","v":{"$error":"#N/A"}},{"$f":"IF(D58=\"\",NA(),F41)","v":{"$error":"#N/A"}}]
[null,null,null,null,null,{"$f":"IF(OR(F41=\"\", E41=\"\", D41=\"\"), NA(), F41)","v":{"$error":"#N/A"}},{"$f":"(F41-D41)/2+F46","v":{"$error":"#N/A"}},{"$f":"(F41-D41)/2+G46","v":{"$error":"#N/A"}},{"$f":"(F41-D41)/2+H46","v":{"$error":"#N/A"}},{"$f":"(F41-D41)/2+I46","v":{"$error":"#N/A"}},null,null,null,null,null,null,null,null,null,null,null,null,"CY23",null,null,null,null,{"$f":"IF(OR(D41=\"\",E41=\"\",F41=\"\"),NA(),G41)","v":{"$error":"#N/A"}},{"$f":"IF(D58=\"\",NA(),G58)","v":{"$error":"#N/A"}}]
[null,null,null,null,null,{"$f":"F46","v":{"$error":"#N/A"}},{"$f":"IF($D$58=\"\",NA(),F47+(($D$58-$F$41)/4))","v":{"$error":"#N/A"}},{"$f":"IF($D$58=\"\",NA(),G47+(($D$58-$F$41)/4))","v":{"$error":"#N/A"}},{"$f":"IF($D$58=\"\",NA(),H47+(($D$58-$F$41)/4))","v":{"$error":"#N/A"}},{"$f":"IF($D$58=\"\",NA(),I47+(($D$58-$F$41)/4))","v":{"$error":"#N/A"}},null,null,null,null,null,null,null,null,null,null,null,null,"CY24",null,null,null,null,{"$f":"IF(OR(D41=\"\",E41=\"\",F41=\"\"),NA(),H41)","v":{"$error":"#N/A"}},{"$f":"IF(D58=\"\",NA(),H58)","v":{"$error":"#N/A"}}]
[null,"②a",null,"Examine subpopulation's average rate of returning to homelessness compared to that of all persons experiencing homelessness while accessing services.",null,null,null,null,null,null,null,null,null,null,null,null,null,null,null,null,null,null,"CY25",null,null,null,null,{"$f":"IF(OR(D41=\"\",E41=\"\",F41=\"\"),NA(),I41)","v":{"$error":"#N/A"}},{"$f":"IF(D58=\"\",NA(),I58)","v":{"$error":"#N/A"}}]
[null,null,null,"The solid blue line on the left side of Visual B shows the total population's annual rate of return to homelessness over the past two years, and the dashed blue line projects the total population's annual rate of return to homelessness in the subsequent four years based on the baseline data. The blue lines on the right side of Visual B show the baseline and projected rates of return to homelessness for the subpopulation.",null,null,null,null,null,null,null,null,null,null,null,null,null,null,null,null,null,null,"CY26",null,null,null,null,{"$f":"IF(OR(D41=\"\",E41=\"\",F41=\"\"),NA(),J41)","v":{"$error":"#N/A"}},{"$f":"IF(D58=\"\",NA(),J58)","v":{"$error":"#N/A"}}]
[null,null,null,"• Compare the subpopulation's projected average annual percentage point change (row 43) to the projected average annual percentage point change for all persons (row 8). Is the rate of change for the subpopulation greater or less than that of all persons?  \n• Is the subpopulation disproportionately represented among those returning to homelessness compared to the overall homeless population? As compared to the region’s population?\n• What does your HMIS data show in terms of this population’s services?"]
[]
[null,"②b",null,"Consider potential strategies that promote equity."]
[null,null,null,"What types of programmatic, policy, or operational changes could be implemented to support a more equitable outcome for this subpopulation? If implemented, how might these strategies affect this outcome for this subpopulation? "]
[]
[]
[null,"③a",null,"Enter a target outcome to reach by CY2026 in the highlighted cell."]
[null,null,null,"CY2026",null,null,"CY2023","CY2024","CY2025","CY2026"]
[null,null,null,null,null,null,{"$f":"G47","v":{"$error":"#N/A"}},{"$f":"H47","v":{"$error":"#N/A"}},{"$f":"I47","v":{"$error":"#N/A"}},{"$f":"J47","v":{"$error":"#N/A"}}]
[null,null,null,null,null,null,"Annual targets given CY2026 target input"]
[null,null,null,"target average annual % point change\n2022 - 2026:",null,{"$f":"IFERROR(IF(D58=\"\", NA(), \"\"&100*ROUND(AVERAGE((G58-F41),(H58-G58),(I58-H58),(J58-I58)),2)&\" % points\"), \"\")","v":""},"Progress distributed evenly across years"]
[null,null,null,"% change 2022 - 2026: ",null,{"$f":"IFERROR(\"\"&100*ROUND(J58-F41,2)&\" % points\",\"\")","v":""}]
[]
[null,"③a",null,"Compare the paths towards the projected outcome and towards the target outcome."]
[null,null,null,"Compare the the dashed blue line to the dashed red line in Visual B, and compare the projected average annual percentage point change (row 43) to the target average annual percentage point change (row 60). Does the target change for the subpopulation make sense given the intended strategies to promote greater equity? If this does not seem ambitious enough, or achievable, then experiment with a different target."]

{"sheet":"6","index":10,"n_rows":64,"n_cols":29,"rows_kept":64,"cut":false,"hidden":false,"merged":[[63,3,63,11],[48,3,48,11],[49,3,49,11],[52,3,52,11],[58,6,58,9],[60,3,60,4],[60,6,60,9],[59,3,59,4],[59,6,59,9],[44,3,44,4],[15,3,15,11],[21,6,21,9],[23,3,23,4],[23,6,23,9],[26,3,26,11],[29,1,29,19],[42,3,42,4],[31,13,31,18],[42,6,42,9],[32,3,32,11],[35,3,35,9],[41,6,41,9],[43,3,43,4],[43,6,43,9],[1,1,1,19],[6,6,6,9],[8,3,8,4],[8,6,8,9],[9,3,9,4],[13,3,13,11],[7,3,7,4],[7,6,7,9],[22,3,22,4],[22,6,22,9]]}
[]
[null,"CA SPM 6: Number of people with successful placements from street outreach projects"]
[]
[null,"①",null,"Enter CA SPM 6 from CY2020, CY2021, and CY2022 in the \"Topline\" tab into the highlighted cells."]
[null,null,null,"CY2020","CY2021","CY2022","CY2023","CY2024","CY2025","CY2026"]
[null,null,null,null,null,null,{"$f":"G11","v":{"$error":"#N/A"}},{"$f":"H11","v":{"$error":"#N/A"}},{"$f":"I11","v":{"$error":"#N/A"}},{"$f":"J11","v":{"$error":"#N/A"}}]
[null,null,null,{"$f":"IF(OR($D$6=\"\",$E$6=\"\",$F$6=\"\"),NA(),D6)","v":{"$error":"#N/A"}},{"$f":"IF(OR($D$6=\"\",$E$6=\"\",$F$6=\"\"),NA(),E6)","v":{"$error":"#N/A"}},{"$f":"IF(OR($D$6=\"\",$E$6=\"\",$F$6=\"\"),NA(),F6)","v":{"$error":"#N/A"}},{"$f":"IF(OR(F6=\"\",E6=\"\",D6=\"\"),\"\",\"Projection based on average annual change of \"&(F6-D6)/2&\" individuals\")","v":""}]
[null,null,null,"projected average annual rate of change\n2022 - 2026:",null,{"$f":"IFERROR(IF(OR(D6=\"\", E6=\"\", F6=\"\"), NA(), AVERAGE(((G6-F6)/F6),((H6-G6)/G6),((I6-H6)/H6),((J6-I6)/I6))), \"\")","v":""},"Annual change calculation: (CY2022 - CY2020) / 2 + prior CY"]
[null,null,null,"% change 2020 - 2022: ",null,{"$f":"IFERROR(IF(OR(D6=\"\", E6=\"\", F6=\"\"), NA(), (F6-D6)/D6), \"\")","v":""}]
[null,null,null,"% change 2022 - 2026: ",null,{"$f":"IFERROR(IF(OR(D6=\"\", E6=\"\", F6=\"\"), NA(), (J6-F6)/F6), \"\")","v":""}]
[null,null,null,null,null,{"$f":"IF(OR(F6=\"\", E6=\"\", D6=\"\"), NA(), F6)","v":{"$error":"#N/A"}},{"$f":"(F6-D6)/2+F11","v":{"$error":"#N/A"}},{"$f":"(F6-D6)/2+G11","v":{"$error":"#N/A"}},{"$f":"(F6-D6)/2+H11","v":{"$error":"#N/A"}},{"$f":"(F6-D6)/2+I11","v":{"$error":"#N/A"}}]
[null,null,null,null,null,{"$f":"F11","v":{"$error":"#N/A"}},{"$f":"IF($D$21=\"\",NA(),F12+(($D$21-$F$6)/4))","v":{"$error":"#N/A"}},{"$f":"IF($D$21=\"\",NA(),G12+(($D$21-$F$6)/4))","v":{"$error":"#N/A"}},{"$f":"IF($D$21=\"\",NA(),H12+(($D$21-$F$6)/4))","v":{"$error":"#N/A"}},{"$f":"IF($D$21=\"\",NA(),I12+(($D$21-$F$6)/4))","v":{"$error":"#N/A"}}]
[null,"②a",null,"Consider what may be contributing to and influence these outcomes."]
[null,null,null,"• Does this data reflect what your community is experiencing?\n• Were there changes in how data was collected with your community during this time ('20 - '22) that might account for upward or downward changes?\n• What recent changes in the community could be influencing this outcome (e.g., decreasing vacancy rates, increased outreach efforts, etc.)?\n• What programs and efforts within the CoC influence this CA SPM most directly? \n• Do you plan to introduce new efforts that are likely to influence this outcome (e.g., because of HHAP funding or other resources)? "]
[]
[null,"②b",null,"Given the trajectory of past data and the influence of factors identified in 2a above, what is the likely direction this outcome will trend over the next few years (e.g., up steeply, up slightly, remain flat, go down slightly, go down steeply)?"]
[]
[]
[null,"③a",null,"Enter an ambitious but achievable target outcome to reach by CY2026 in the highlighted cell."]
[null,null,null,"CY2026",null,null,"CY2023","CY2024","CY2025","CY2026"]
[null,null,null,null,null,null,{"$f":"G12","v":{"$error":"#N/A"}},{"$f":"H12","v":{"$error":"#N/A"}},{"$f":"I12","v":{"$error":"#N/A"}},{"$f":"J12","v":{"$error":"#N/A"}}]
[null,null,null,null,null,null,"Annual targets given CY2026 target input"]
[null,null,null,"target average annual rate of change\n2022 - 2026:",null,{"$f":"AVERAGE(((G21-F6)/F6),((H21-G21)/G21),((I21-H21)/H21),((J21-I21)/I21))","v":{"$error":"#N/A"}},"Progress distributed evenly across years"]
[null,null,null,"% change 2022 - 2026: ",null,{"$f":"IFERROR((J21-F7)/F7, \"\")","v":""}]
[]
[null,"③b",null,"Review the path towards reaching this target outcome."]
[null,null,null,"• Look at the dashed red line on the graph in Visual A.  Does the trajectory of the target outcome seem reasonable given the contextual factors identified in step 2a? \n• To reach this target outcome, you will need to make average progress each year as shown in the cells above. Does this seem achievable?  \n• Continue working with this data to see how different target outcomes change the trajectory."]
[]
[]
[null,"CA SPM 7.6: Racial and ethnic disparities in the number of people with successful placements from street outreach projects"]
[]
[null,"①a",null,"Identify an underserved or disproportionately impacted population",null,null,null,null,null,null,null,null,null,"Visual B: Subpopulation's share of all persons exiting homelessness into permanent housing"]
[null,null,null,"Use the charts in the \"Identifying Populations\" tab to identify an underserved and/or disproportionately impacted subpopulation. You may also use the Measure 7 section of the \"Detail\" tabs of your CA SPM Report to look for subpopulations that make up a smaller percentage of all people accessing services with successful placements from street outreach projects, and/or explore your HMIS data to look for subpopulations with less outreach support or access to housing.",null,null,null,null,null,null,null,null,null,null,null,null,null,null,null,null,null,null,2020,2021,2022,2023,2024,2025,2026]
[null,null,null,null,null,null,null,null,null,null,null,null,null,null,null,null,null,null,null,null,null,"Baseline",{"$f":"IF(OR($D$6=\"\",$E$6=\"\",$F$6=\"\",$D$41=\"\",$E$41=\"\",$F$41=\"\"),NA(),D41/D6)","v":{"$error":"#N/A"}},{"$f":"IF(OR($D$6=\"\",$E$6=\"\",$F$6=\"\",$D$41=\"\",$E$41=\"\",$F$41=\"\"),NA(),E41/E6)","v":{"$error":"#N/A"}},{"$f":"IF(OR($D$6=\"\",$E$6=\"\",$F$6=\"\",$D$41=\"\",$E$41=\"\",$F$41=\"\"),NA(),F41/F6)","v":{"$error":"#N/A"}}]
[null,null,null,"Identify a subpopulation from the dropdown menu and indicate it here.",null,null,null,null,null,null,null,null,null,null,null,null,null,null,null,null,null,"Projection",null,null,{"$f":"IF(OR($D$6=\"\",$E$6=\"\",$F$6=\"\",$D$41=\"\",$E$41=\"\",$F$41=\"\"),NA(),F41/F6)","v":{"$error":"#N/A"}},{"$f":"G41/G6","v":{"$error":"#N/A"}},{"$f":"H41/H6","v":{"$error":"#N/A"}},{"$f":"I41/I6","v":{"$error":"#N/A"}},{"$f":"J41/J6","v":{"$error":"#N/A"}}]
[null,null,null,"Persons in HHs without children ",null,null,null,null,null,null,null,null,null,null,null,null,null,null,null,null,null,"Target",null,null,{"$f":"IF(OR($D$6=\"\",$E$6=\"\",$F$6=\"\",$D$41=\"\",$E$41=\"\",$F$41=\"\"),NA(),F41/F6)","v":{"$error":"#N/A"}},{"$f":"G58/G21","v":{"$error":"#N/A"}},{"$f":"H58/H21","v":{"$error":"#N/A"}},{"$f":"I58/I21","v":{"$error":"#N/A"}},{"$f":"J58/J21","v":{"$error":"#N/A"}}]
[]
[null,"①b",null,"Enter the CA SPM 7.6 data for this subpopulation below in the highlighted cells. "]
[null,null,null,"This data is found in the Measure 7 sections of the CY2020, CY2021, CY2022 detail tabs of your CA SPM Data Report. "]
[null,null,null,"CY2020","CY2021","CY2022","CY2023","CY2024","CY2025","CY2026"]
[null,null,null,null,null,null,{"$f":"G46","v":{"$error":"#N/A"}},{"$f":"H46","v":{"$error":"#N/A"}},{"$f":"I46","v":{"$error":"#N/A"}},{"$f":"J46","v":{"$error":"#N/A"}}]
[null,null,null,{"$f":"IF(OR($D$41=\"\",$E$41=\"\",$F$41=\"\"),NA(),D41)","v":{"$error":"#N/A"}},{"$f":"IF(OR($D$41=\"\",$E$41=\"\",$F$41=\"\"),NA(),E41)","v":{"$error":"#N/A"}},{"$f":"IF(OR($D$41=\"\",$E$41=\"\",$F$41=\"\"),NA(),F41)","v":{"$error":"#N/A"}},{"$f":"IF(OR(F41=\"\",E41=\"\",D41=\"\"),\"\", \"Projection based on average annual change of \"&(F41-D41)/2&\" individuals\")","v":""}]
[null,null,null,"projected average annual rate of change\n2022 - 2026:",null,{"$f":"IFERROR(IF(OR(D41=\"\", E41=\"\", F41=\"\"), NA(), AVERAGE(((G41-F41)/F41),((H41-G41)/G41),((I41-H41)/H41),((J41-I41)/I41))), \"\")","v":""},"Annual change calculation: (CY2022 - CY2020) / 2 + prior CY"]
[null,null,null,"% change 2020 - 2022: ",null,{"$f":"IFERROR(IF(OR(D41=\"\", E41=\"\", F41=\"\"), NA(), (F41-D41)/D41), \"\")","v":""}]
[null,null,null,"% change 2022 - 2026: ",null,{"$f":"IFERROR(IF(OR(D41=\"\", E41=\"\", F41=\"\"), NA(), (J41-F41)/F41), \"\")","v":""}]
[null,null,null,null,null,{"$f":"IF(OR(F41=\"\", E41=\"\", D41=\"\"), NA(), F41)","v":{"$error":"#N/A"}},{"$f":"(F41-D41)/2+F46","v":{"$error":"#N/A"}},{"$f":"(F41-D41)/2+G46","v":{"$error":"#N/A"}},{"$f":"(F41-D41)/2+H46","v":{"$error":"#N/A"}},{"$f":"(F41-D41)/2+I46","v":{"$error":"#N/A"}}]
[null,null,null,null,null,{"$f":"F46","v":{"$error":"#N/A"}},{"$f":"IF($D$58=\"\",NA(),F47+(($D$58-$F$41)/4))","v":{"$error":"#N/A"}},{"$f":"IF($D$58=\"\",NA(),G47+(($D$58-$F$41)/4))","v":{"$error":"#N/A"}},{"$f":"IF($D$58=\"\",NA(),H47+(($D$58-$F$41)/4))","v":{"$error":"#N/A"}},{"$f":"IF($D$58=\"\",NA(),I47+(($D$58-$F$41)/4))","v":{"$error":"#N/A"}}]
[null,"②a",null,"Examine the subpopulation's size relative to all persons with successful placements from street outreach projects."]
[null,null,null,"The dashed blue line in Visual B projects the subpopulation's proportion of the total population for this measure, based on the subpopulation's baseline data and the total population's baseline data. Is the subpopulation's proportion projected to grow, or to shrink?"]
[null,null,null,"• Compare the subpopulation's projected average annual rate of change (row 43) to the projected annual rate of change for all persons (row 8). Is the rate of change for the subpopulation greater or less than that of all persons?\n• Is the subpopulation underrepresented among those with successful placements from street outreach, compared to the overall homeless population? Compared to the region’s population?\n• What does your HMIS data show in terms of this population’s access to outreach services, and access to placements in shelter and housing?"]
[]
[null,"②b",null,"Consider potential strategies that promote equity."]
[null,null,null,"What types of programmatic, policy, or operational changes could be implemented to support a more equitable outcome for this subpopulation? If implemented, how might these strategies affect this outcome for this subpopulation? "]
[]
[]
[null,"③a",null,"Enter a target outcome to reach by CY2026 in the highlighted cell."]
[null,null,null,"CY2026",null,null,"CY2023","CY2024","CY2025","CY2026"]
[null,null,null,null,null,null,{"$f":"G47","v":{"$error":"#N/A"}},{"$f":"H47","v":{"$error":"#N/A"}},{"$f":"I47","v":{"$error":"#N/A"}},{"$f":"J47","v":{"$error":"#N/A"}}]
[null,null,null,null,null,null,"Annual targets given CY2026 target input"]
[null,null,null,"target average annual rate of change\n2022 - 2026:",null,{"$f":"AVERAGE(((G58-F41)/F41),((H58-G58)/G58),((I58-H58)/H58),((J58-I58)/I58))","v":{"$error":"#N/A"}},"Progress distributed evenly across years"]
[null,null,null,"% change 2022 - 2026: ",null,{"$f":"IFERROR(IF(D58=\"\", NA(), (J58-F42)/F42), \"\")","v":""}]
[]
[null,"③a",null,"Compare the paths towards the projected outcome and towards the target outcome."]
[null,null,null,"Compare the the dashed blue line to the dashed red line in Visual B, and compare the projected rate of change (row 43) to the target rate of change (row 60). Does the target change for the subpopulation make sense given the intended strategies to promote greater equity? If this does not seem ambitious enough, or achievable, then experiment with a different target."]

{"sheet":"Subpopulations","index":11,"n_rows":23,"n_cols":1,"rows_kept":23,"cut":false,"hidden":true,"merged":[]}
["Persons in HHs without children "]
["Persons in HHs with at least 1 adult and 1 child "]
["Persons in HHs with only children "]
["Woman/Girl"]
["Male/Boy"]
["People who are Transgender "]
["People who are Hispanic/Latino "]
["People who are Non-Hispanic/ Non-Latino "]
["People with Unknown Ethnicity (client doesn't know ethnicity, refused to repond, or data were not collected)"]
["People who are American Indian or Alaska Native "]
["People who are Asian "]
["People who are Black or African American "]
["People who are Native Hawaiian or Other Pacific Islander "]
["People who are White "]
["People who are Multiple Races "]
["# of Adults who are Experiencing Significant Mental Illness"]
["# of Adults who are Experiencing Substance Abuse Disorders"]
["# of Adults who are Veterans"]
["# of Adults with HIV/AIDS"]
["# of Adults who are Currently Fleeing Domestic Violence"]
["# of Unaccompanied Youth (18- 24 years old)"]
["# of Parenting Youth (18-24 years old)"]
["Other"]